Organisation Name,Organisation Code,Effective Date,Directorate,Service Category,Service Category URI,Supplier Name,Payment Date,Transaction Number,Net Amount,Irrecoverable VAT,Purpose_of_the_expenditure,Merchant Category
Wyre Council,http://opendatacommunities.org/doc/district-council/wyre,30/12/2023,Resources,Cultural and Related Services,132A,Blackpool Council,21/12/2023,RS155061,900.00,0.00,Full page editorial for DW to go in Destination Blackpool 2024,Advertising - General
Wyre Council,http://opendatacommunities.org/doc/district-council/wyre,30/12/2023,People and Places,Cultural and Related Services,132A,Lancashire And North West Magazine,04/12/2023,PE154375,447.50,0.00,Weddings edition,Advertising - General
Wyre Council,http://opendatacommunities.org/doc/district-council/wyre,30/12/2023,Resources,Cultural and Related Services,132A,Preston City Council,18/12/2023,RS155350,41.39,0.00,500 x A5 2pp Star Wars event / Visit Niamos,Advertising - General
Wyre Council,http://opendatacommunities.org/doc/district-council/wyre,30/12/2023,People and Places,Cultural and Related Services,132A,Preston City Council,20/12/2023,PE155349,109.34,0.00,Esplanade Notice Board posters - x2 Christmas Festival / x2 We 3 Kings / x2 Beer and Cider Festival,Advertising - General
Wyre Council,http://opendatacommunities.org/doc/district-council/wyre,30/12/2023,People and Places,Cultural and Related Services,132A,Preston City Council,20/12/2023,PE155349,82.90,0.00,x4 Fleetwood Christmas Festival Bus stop posters,Advertising - General
Wyre Council,http://opendatacommunities.org/doc/district-council/wyre,30/12/2023,People and Places,Cultural and Related Services,132A,Preston City Council,20/12/2023,PE155349,8.00,0.00,Panto posters   5k A5  40 A4  20 A3,Advertising - General
Wyre Council,http://opendatacommunities.org/doc/district-council/wyre,30/12/2023,People and Places,Cultural and Related Services,132A,Preston City Council,20/12/2023,PE155349,82.50,0.00,2k A5 Panto leaflets / x40 A4 Panto posters / x20 A3 Panto posters,Advertising - General
Wyre Council,http://opendatacommunities.org/doc/district-council/wyre,30/12/2023,People and Places,Cultural and Related Services,132A,Preston City Council,20/12/2023,PE155349,157.50,0.00,Panto leaflets,Advertising - General
Wyre Council,http://opendatacommunities.org/doc/district-council/wyre,30/12/2023,People and Places,Cultural and Related Services,132A,Preston City Council,20/12/2023,PE155349,8.00,0.00,Panto posters,Advertising - General
Wyre Council,http://opendatacommunities.org/doc/district-council/wyre,30/12/2023,People and Places,Cultural and Related Services,132A,Preston City Council,20/12/2023,PE155349,82.90,0.00,x4 Panto bus stop posters,Advertising - General
Wyre Council,http://opendatacommunities.org/doc/district-council/wyre,30/12/2023,People and Places,Cultural and Related Services,132A,Preston City Council,18/12/2023,PE155351,638.00,0.00,40k A5 Panto double sided leaflets,Advertising - General
Wyre Council,http://opendatacommunities.org/doc/district-council/wyre,30/12/2023,People and Places,Cultural and Related Services,132A,Preston City Council,18/12/2023,PE155351,154.66,0.00,x2 panto bus stop  x2 panto esplanade posters x2 jive talkin bus stop x2 jive talkin esplanade posters,Advertising - General
Wyre Council,http://opendatacommunities.org/doc/district-council/wyre,30/12/2023,Resources,Planning and Development Servs,132C,Daisy Communications LTD,11/12/2023,RS155033,50.70,0.00,Service Charges 01/12/23 to 31/12/23,Advertising - General
Wyre Council,http://opendatacommunities.org/doc/district-council/wyre,30/12/2023,People and Places,Cultural and Related Services,132A,NEWSQUEST MEDIA GROUP,11/12/2023,PE154959,412.50,0.00,Half page in the Christmas edition of Lancs Life magazine - for Fleetwood Christmas trail,Advertising - General
Wyre Council,http://opendatacommunities.org/doc/district-council/wyre,30/12/2023,People and Places,Cultural and Related Services,132A,Link Mag Ltd,13/12/2023,PE155269,1500.00,0.00," December 2023 40,000 Leaflets, FY5, FY6, FY7 DISTRIBUTION ONLY",Advertising - General
Wyre Council,http://opendatacommunities.org/doc/district-council/wyre,30/12/2023,Resources,Support Services,135B,Redactive Publishing LTD,21/12/2023,RS155539,1392.00,0.00,"PFJobs Advert for: Assistant Director of Finance, Revenues and Benefits (Deputy S.151 Officer) post.",Advertising - Recruitment
Wyre Council,http://opendatacommunities.org/doc/district-council/wyre,30/12/2023,People and Places,Planning and Development Servs,132C,National World Publishing Ltd,11/12/2023,PE155178,554.76,0.00,Blackpool Gazette and Garstang Courier 29.11.23,Advertising - Statutory Notices
Wyre Council,http://opendatacommunities.org/doc/district-council/wyre,30/12/2023,People and Places,Planning and Development Servs,132C,National World Publishing Ltd,11/12/2023,PE155177,261.36,0.00,Fleetwood Weekly News 15.11.23,Advertising - Statutory Notices
Wyre Council,http://opendatacommunities.org/doc/district-council/wyre,30/12/2023,People and Places,Planning and Development Servs,132C,National World Publishing Ltd,11/12/2023,PE155176,693.45,0.00,Garstang Courier and Blackpool Gazette 15.11.23,Advertising - Statutory Notices
Wyre Council,http://opendatacommunities.org/doc/district-council/wyre,30/12/2023,People and Places,Planning and Development Servs,132C,National World Publishing Ltd,11/12/2023,PE155175,190.08,0.00,Fleetwood Weekly News 1.11.23,Advertising - Statutory Notices
Wyre Council,http://opendatacommunities.org/doc/district-council/wyre,30/12/2023,People and Places,Planning and Development Servs,132C,National World Publishing Ltd,11/12/2023,PE155174,323.61,0.00,Garstang Courier and Blackpool Gazette 1.11.23,Advertising - Statutory Notices
Wyre Council,http://opendatacommunities.org/doc/district-council/wyre,30/12/2023,People and Places,Planning and Development Servs,132C,National World Publishing Ltd,07/12/2023,PE155059,554.76,0.00,Garstang and Blackpool Press Notice 11.10.23,Advertising - Statutory Notices
Wyre Council,http://opendatacommunities.org/doc/district-council/wyre,30/12/2023,People and Places,Planning and Development Servs,132C,National World Publishing Ltd,07/12/2023,PE155058,166.32,0.00,Fleetwood Weekly News Press Notice 04.10.23,Advertising - Statutory Notices
Wyre Council,http://opendatacommunities.org/doc/district-council/wyre,30/12/2023,People and Places,Planning and Development Servs,132C,National World Publishing Ltd,07/12/2023,PE155057,323.61,0.00,Blackpool and Garstang Press Notice 04.10.23,Advertising - Statutory Notices
Wyre Council,http://opendatacommunities.org/doc/district-council/wyre,30/12/2023,People and Places,Planning and Development Servs,132C,National World Publishing Ltd,07/12/2023,PE155060,1017.06,0.00,Garstang and Blackpool Press Notice 18/10/23,Advertising - Statutory Notices
Wyre Council,http://opendatacommunities.org/doc/district-council/wyre,30/12/2023,Resources,Support Services,135B,National World Publishing Ltd,12/12/2023,RS155184,508.53,0.00,Advert - Notice of Public Path Order (Diversion of part of FP0209009) order 2023 Ref NMC6277789,Advertising - Statutory Notices
Wyre Council,http://opendatacommunities.org/doc/district-council/wyre,30/12/2023,Resources,Housing General Fund,134A,Huck Properties LTD,19/12/2023,RS155514,3105.00,0.00,Payment of invoice No 3973 - Affordable warmth support,Affordable Warmth 2017/18
Wyre Council,http://opendatacommunities.org/doc/district-council/wyre,30/12/2023,Resources,Housing General Fund,134A,RHEA PROJECTS LTD,15/12/2023,RS155323,2343.60,0.00,Payment of Inv - RP-2012,Affordable Warmth 2017/18
Wyre Council,http://opendatacommunities.org/doc/district-council/wyre,30/12/2023,Resources,Housing General Fund,134A,RHEA PROJECTS LTD,18/12/2023,PE155411,2100.00,0.00,Invoice RP2024 - Affordable warmth,Affordable Warmth 2017/18
Wyre Council,http://opendatacommunities.org/doc/district-council/wyre,30/12/2023,Resources,Housing General Fund,134A,RHEA PROJECTS LTD,18/12/2023,PE155410,1970.00,0.00,Invoice RP2023 - Affordable warmth,Affordable Warmth 2017/18
Wyre Council,http://opendatacommunities.org/doc/district-council/wyre,30/12/2023,Resources,Housing General Fund,134A,RHEA PROJECTS LTD,14/12/2023,RS155288,2350.00,0.00,Invoice no RP-2007,Affordable Warmth 2017/18
Wyre Council,http://opendatacommunities.org/doc/district-council/wyre,30/12/2023,Resources,Housing General Fund,134A,RHEA PROJECTS LTD,14/12/2023,RS155289,640.00,0.00,Invoice RP-2013,Affordable Warmth 2017/18
Wyre Council,http://opendatacommunities.org/doc/district-council/wyre,30/12/2023,People and Places,Planning and Development Servs,132C,Vivid Resourcing Ltd,19/12/2023,PE155439,7920.00,0.00,Fleetwood Market,Agency Staff
Wyre Council,http://opendatacommunities.org/doc/district-council/wyre,30/12/2023,Resources,Planning and Development Servs,132C,Vivid Resourcing Ltd,11/12/2023,RS155088,4500.00,0.00,Fleetwood market,Agency Staff
Wyre Council,http://opendatacommunities.org/doc/district-council/wyre,30/12/2023,Resources,Housing General Fund,134A,Vivid Resourcing Ltd,22/12/2023,RS155166,5537.66,0.00, Housing Options,Agency Staff
Wyre Council,http://opendatacommunities.org/doc/district-council/wyre,30/12/2023,Resources,Support Services,135B,Daisy Communications LTD,11/12/2023,RS155033,13.87,0.00,Service Charges 01/12/23 to 31/12/23,Alarm Systems and Security - Annual
Wyre Council,http://opendatacommunities.org/doc/district-council/wyre,30/12/2023,People and Places,Support Services,135B,M D Security,20/12/2023,PE155511,60.00,0.00,Civic Centre: Carried out emergency light test for 12/23,Alarm Systems and Security - Annual
Wyre Council,http://opendatacommunities.org/doc/district-council/wyre,30/12/2023,People and Places,Cultural and Related Services,132A,Lancashire County Council,20/12/2023,PE154406,211.93,0.00,17.04.2023 INS324625 Thornton Cleveleys Little Theatre - Fire Alarm,Alarm Systems and Security - Responsive
Wyre Council,http://opendatacommunities.org/doc/district-council/wyre,30/12/2023,People and Places,Cultural and Related Services,132A,Lancashire County Council,20/12/2023,PE154406,26.69,0.00,17.04.2023 INS324626 Thornton Cleveleys Little Theatre - Disabled Toilet  Alarm,Alarm Systems and Security - Responsive
Wyre Council,http://opendatacommunities.org/doc/district-council/wyre,30/12/2023,People and Places,Cultural and Related Services,132A,Lancashire County Council,20/12/2023,PE154406,133.40,0.00,17.05.2023 INS324997 Thornton Cleveleys Marsh Mill - Intruder Alarm,Alarm Systems and Security - Responsive
Wyre Council,http://opendatacommunities.org/doc/district-council/wyre,30/12/2023,People and Places,Support Services,135B,Lancashire County Council,20/12/2023,PE154406,897.84,0.00,14.07.2023 INS339643 Poulton-Le-Fylde Civic Centre - Emergency  Lightning,Alarm Systems and Security - Responsive
Wyre Council,http://opendatacommunities.org/doc/district-council/wyre,30/12/2023,People and Places,Support Services,135B,Lancashire County Council,20/12/2023,PE154406,2211.56,0.00,14.07.2023 INS339909 Poulton-Le-Fylde Civic Centre - Fire Alarm,Alarm Systems and Security - Responsive
Wyre Council,http://opendatacommunities.org/doc/district-council/wyre,30/12/2023,People and Places,Cultural and Related Services,132A,Lancashire County Council,20/12/2023,PE154406,201.84,0.00,16.05.2023 INS324877 Fleetwood Marine Hall - Emergency Lightning,Alarm Systems and Security - Responsive
Wyre Council,http://opendatacommunities.org/doc/district-council/wyre,30/12/2023,People and Places,Cultural and Related Services,132A,Lancashire County Council,20/12/2023,PE154406,249.98,0.00,16.05.2023 INS324878 Fleetwood Marine Hall - Fire Alarm,Alarm Systems and Security - Responsive
Wyre Council,http://opendatacommunities.org/doc/district-council/wyre,30/12/2023,People and Places,Planning and Development Servs,132C,Lancashire County Council,20/12/2023,PE154406,216.53,0.00,07.07.2023 INS339986 Fleetwood Copse Road Depot - Fire Alarm,Alarm Systems and Security - Responsive
Wyre Council,http://opendatacommunities.org/doc/district-council/wyre,30/12/2023,People and Places,Planning and Development Servs,132C,Lancashire County Council,20/12/2023,PE154406,47.63,0.00,07.07.2023 INS339987 Fleetwood Copse Road Depot - Fire Alarm Transport  Department,Alarm Systems and Security - Responsive
Wyre Council,http://opendatacommunities.org/doc/district-council/wyre,30/12/2023,People and Places,Planning and Development Servs,132C,Lancashire County Council,20/12/2023,PE154406,26.69,0.00,07.07.2023 INS339988 Fleetwood Copse Road Depot - Disabled Toilet Alarm,Alarm Systems and Security - Responsive
Wyre Council,http://opendatacommunities.org/doc/district-council/wyre,30/12/2023,People and Places,Planning and Development Servs,132C,M D Security,14/12/2023,PE154718,258.00,0.00,"Copse Rd Depot: Further to October em light test, replaced 1 x bulkhead in gardeners shed, 2 x ceiling spots in 1st floor offices",Alarm Systems and Security - Responsive
Wyre Council,http://opendatacommunities.org/doc/district-council/wyre,30/12/2023,People and Places,Cultural and Related Services,132A,M D Security,12/12/2023,PE154863,55.00,0.00,"Mount Pavilion: Callout to fault on security alarm, found battery to be on detector window 2 GF. Replaced and left working",Alarm Systems and Security - Responsive
Wyre Council,http://opendatacommunities.org/doc/district-council/wyre,30/12/2023,People and Places,Cultural and Related Services,132A,M D Security,12/12/2023,PE154915,130.00,0.00,Rossal Point: Replaced faulty emergency light fitting,Alarm Systems and Security - Responsive
Wyre Council,http://opendatacommunities.org/doc/district-council/wyre,30/12/2023,Finance,Support Services,135B,,20/12/2023,WPST00128653,4660.00,0.00,Total Apprenticeship Levy,Apprenticeship Levy
Wyre Council,http://opendatacommunities.org/doc/district-council/wyre,30/12/2023,Resources,Corporate and Democratic Core,131A,PR Chauffeuring Services,07/12/2023,RS155056,1838.00,0.00,Mayoral Chauffeur journeys - November 2023,Attendant Chauffeur Service
Wyre Council,http://opendatacommunities.org/doc/district-council/wyre,30/12/2023,Finance,Corporate and Democratic Core,131A,NATWEST BANK,04/12/2023,WPST00126949,814.58,0.00,30/11/23 03NOV GRP 99795000,Bank Charges
Wyre Council,http://opendatacommunities.org/doc/district-council/wyre,30/12/2023,Finance,Corporate and Democratic Core,131A,NATWEST BANK,21/12/2023,WPST00128821,1486.06,0.00,19/12/23 Worldpay Invoice 283755207,Bank Charges
Wyre Council,http://opendatacommunities.org/doc/district-council/wyre,30/12/2023,Finance,Corporate and Democratic Core,131A,NATWEST BANK,21/12/2023,WPST00128823,865.16,0.00,19/12/23 Worldpay Invoice 283769239,Bank Charges
Wyre Council,http://opendatacommunities.org/doc/district-council/wyre,30/12/2023,People and Places,Environmental Services,132B,Nicholaus Cardwell Building & Maintenance,18/12/2023,PE155422,485.00,0.00,To remove waste,Boarding Up Premises/House Clearance
Wyre Council,http://opendatacommunities.org/doc/district-council/wyre,30/12/2023,People and Places,Environmental Services,132B,Nicholaus Cardwell Building & Maintenance,11/12/2023,PE155131,330.00,0.00,TO CLEAR RUBBISH,Boarding Up Premises/House Clearance
Wyre Council,http://opendatacommunities.org/doc/district-council/wyre,30/12/2023,People and Places,Environmental Services,132B,Blackpool Council,21/12/2023,PE155046,2040.37,0.00,PO to replace PEO0025686,CCTV Running Costs
Wyre Council,http://opendatacommunities.org/doc/district-council/wyre,30/12/2023,People and Places,Environmental Services,132B,Blackpool Council,21/12/2023,PE155046,2380.43,0.00,PO to replace PEO0025686,CCTV Running Costs
Wyre Council,http://opendatacommunities.org/doc/district-council/wyre,30/12/2023,People and Places,Environmental Services,132B,Blackpool Council,21/12/2023,PE155046,4420.81,0.00,PO to replace PEO0025686,CCTV Running Costs
Wyre Council,http://opendatacommunities.org/doc/district-council/wyre,30/12/2023,People and Places,Environmental Services,132B,Blackpool Council,21/12/2023,PE155046,1360.26,0.00,PO to replace PEO0025686,CCTV Running Costs
Wyre Council,http://opendatacommunities.org/doc/district-council/wyre,30/12/2023,People and Places,Environmental Services,132B,M D Security,12/12/2023,PE155171,60.00,0.00,Chatsworth Depot: Callout to fault on CCTV found cable to be faulty. Disconnected and left other cameras working. Future investigation needed,CCTV Running Costs
Wyre Council,http://opendatacommunities.org/doc/district-council/wyre,30/12/2023,People and Places,Environmental Services,132B,N Power LTD,07/12/2023,PE155032,150.99,0.00,Unmetered Town Centre CCTV Cameras Electricity Charges,CCTV Running Costs
Wyre Council,http://opendatacommunities.org/doc/district-council/wyre,30/12/2023,People and Places,Environmental Services,132B,N Power LTD,07/12/2023,PE155032,16.79,0.00,Unmetered Town Centre CCTV Cameras Electricity Charges,CCTV Running Costs
Wyre Council,http://opendatacommunities.org/doc/district-council/wyre,30/12/2023,People and Places,Environmental Services,132B,N Power LTD,07/12/2023,PE155032,100.64,0.00,Unmetered Town Centre CCTV Cameras Electricity Charges,CCTV Running Costs
Wyre Council,http://opendatacommunities.org/doc/district-council/wyre,30/12/2023,Resources,Support Services,135B,Konica Minolta Business Solutions UK LTD,18/12/2023,RS155405,34.65,0.00,1840141295 - WECP,Central Printer/Copier Expenses
Wyre Council,http://opendatacommunities.org/doc/district-council/wyre,30/12/2023,Resources,Support Services,135B,Konica Minolta Business Solutions UK LTD,20/12/2023,RS155353,90.08,0.00,WECP,Central Printer/Copier Expenses
Wyre Council,http://opendatacommunities.org/doc/district-council/wyre,30/12/2023,Resources,Housing General Fund,134A,Blackpool Council,15/12/2023,RS155334,343.16,0.00,REDACT,Choice Based Letting Scheme
Wyre Council,http://opendatacommunities.org/doc/district-council/wyre,30/12/2023,Resources,Support Services,135B,Serco Shared Service Centre,22/12/2023,RS155563,2123.00,0.00,Lee Rossi - Starting Out in Civil Protection,Civil Contingency/Business Con. Training
Wyre Council,http://opendatacommunities.org/doc/district-council/wyre,30/12/2023,Resources,Support Services,135B,Key Engineering & Hygiene Supplies LTD,19/12/2023,RS155296,18.36,0.00,EAUFRESH NON ACIDIC POT POURRI TOILET CLEANER 1 LTR,Cleaning Materials
Wyre Council,http://opendatacommunities.org/doc/district-council/wyre,30/12/2023,Resources,Support Services,135B,Key Engineering & Hygiene Supplies LTD,19/12/2023,RS155296,5.22,0.00,WASHING UP LIQUID 5 LTR,Cleaning Materials
Wyre Council,http://opendatacommunities.org/doc/district-council/wyre,30/12/2023,Resources,Support Services,135B,Key Engineering & Hygiene Supplies LTD,19/12/2023,RS155296,145.04,0.00,WHITE 2PLY LUXURY TOILET ROLL 320 40 PER PACK,Cleaning Materials
Wyre Council,http://opendatacommunities.org/doc/district-council/wyre,30/12/2023,Resources,Support Services,135B,Key Engineering & Hygiene Supplies LTD,19/12/2023,RS155296,292.60,0.00,1 PLY BLUE INTERFOLD 3600 SHEETS,Cleaning Materials
Wyre Council,http://opendatacommunities.org/doc/district-council/wyre,30/12/2023,Resources,Support Services,135B,Key Engineering & Hygiene Supplies LTD,19/12/2023,RS155296,19.32,0.00,MEDIUM BLACK REFUSE SACK 18X29X34 100G,Cleaning Materials
Wyre Council,http://opendatacommunities.org/doc/district-council/wyre,30/12/2023,Resources,Support Services,135B,Key Engineering & Hygiene Supplies LTD,19/12/2023,RS155296,8.24,0.00,FLORATILE GENERAL PURPOSE  CLEANER 5 LTR,Cleaning Materials
Wyre Council,http://opendatacommunities.org/doc/district-council/wyre,30/12/2023,Resources,Support Services,135B,Key Engineering & Hygiene Supplies LTD,19/12/2023,RS155296,45.44,0.00,METAL POLISH BRASSO 175ML,Cleaning Materials
Wyre Council,http://opendatacommunities.org/doc/district-council/wyre,30/12/2023,Resources,Support Services,135B,Key Engineering & Hygiene Supplies LTD,19/12/2023,RS155296,14.58,0.00,LATEX POWDER FREE GLOVES MED,Cleaning Materials
Wyre Council,http://opendatacommunities.org/doc/district-council/wyre,30/12/2023,Resources,Support Services,135B,Key Engineering & Hygiene Supplies LTD,19/12/2023,RS155296,7.52,0.00,EVANS FOAMING LEMON SOAP 5L,Cleaning Materials
Wyre Council,http://opendatacommunities.org/doc/district-council/wyre,30/12/2023,Resources,Support Services,135B,Key Engineering & Hygiene Supplies LTD,19/12/2023,RS155296,6.38,0.00,KEYPINE GENERAL DISINFECTANT 5LTR,Cleaning Materials
Wyre Council,http://opendatacommunities.org/doc/district-council/wyre,30/12/2023,Resources,Support Services,135B,Key Engineering & Hygiene Supplies LTD,19/12/2023,RS155296,65.87,0.00,AZURE FOAM WASH SOAP 1 LITRE CARTRIDGE,Cleaning Materials
Wyre Council,http://opendatacommunities.org/doc/district-council/wyre,30/12/2023,Resources,Support Services,135B,Key Engineering & Hygiene Supplies LTD,19/12/2023,RS155296,6.40,0.00,SAFE ZONE PLUS  5 LITRE,Cleaning Materials
Wyre Council,http://opendatacommunities.org/doc/district-council/wyre,30/12/2023,People and Places,Planning and Development Servs,132C,Key Engineering & Hygiene Supplies LTD,11/12/2023,PE155082,22.56,0.00,E-PINE DISINFECTANT 5 LITRE,Cleaning Materials
Wyre Council,http://opendatacommunities.org/doc/district-council/wyre,30/12/2023,People and Places,Planning and Development Servs,132C,Key Engineering & Hygiene Supplies LTD,11/12/2023,PE155082,9.00,0.00,Red Colour coded dishcloths,Cleaning Materials
Wyre Council,http://opendatacommunities.org/doc/district-council/wyre,30/12/2023,People and Places,Planning and Development Servs,132C,Key Engineering & Hygiene Supplies LTD,11/12/2023,PE155082,7.62,0.00,BLUE 200GM EXEL PY MOP HEAD ( PUSH FIT),Cleaning Materials
Wyre Council,http://opendatacommunities.org/doc/district-council/wyre,30/12/2023,People and Places,Planning and Development Servs,132C,Key Engineering & Hygiene Supplies LTD,11/12/2023,PE155082,7.62,0.00,RED 200GM EXEL PY MOP HEAD ( PUSH FIT),Cleaning Materials
Wyre Council,http://opendatacommunities.org/doc/district-council/wyre,30/12/2023,People and Places,Planning and Development Servs,132C,Key Engineering & Hygiene Supplies LTD,11/12/2023,PE155082,9.00,0.00,BLUE STRIP DISH CLOTH EA,Cleaning Materials
Wyre Council,http://opendatacommunities.org/doc/district-council/wyre,30/12/2023,People and Places,Planning and Development Servs,132C,Key Engineering & Hygiene Supplies LTD,11/12/2023,PE155082,20.16,0.00,EAUFRESH NON ACIDIC APPLE TOILET CLEANER 1 LTR,Cleaning Materials
Wyre Council,http://opendatacommunities.org/doc/district-council/wyre,30/12/2023,People and Places,Planning and Development Servs,132C,Key Engineering & Hygiene Supplies LTD,11/12/2023,PE155082,202.05,0.00,2PLY WHITE JUMBO TOILET ROLL,Cleaning Materials
Wyre Council,http://opendatacommunities.org/doc/district-council/wyre,30/12/2023,Resources,Support Services,135B,Ebuyer (UK) Ltd,07/12/2023,RS155064,5079.20,0.00,60 x Samsung T45F Full HD IPS Monitor with Height Adjustable Stand.,Comp Hardware Purchases
Wyre Council,http://opendatacommunities.org/doc/district-council/wyre,30/12/2023,Resources,Support Services,135B,Ebuyer (UK) Ltd,08/12/2023,RS154007,205.79,0.00,LG 34WR50QC-B (34``) 3440x1440 pixels QHD,Comp Hardware Purchases
Wyre Council,http://opendatacommunities.org/doc/district-council/wyre,30/12/2023,Resources,Support Services,135B,Kingsfield Computers Products,08/12/2023,RS155089,1429.99,0.00,H7600ZM-L2016W ASUS ProArt StudioBook 16 OLED,Comp Hardware Purchases
Wyre Council,http://opendatacommunities.org/doc/district-council/wyre,30/12/2023,Resources,Support Services,135B,Amazon Business,11/12/2023,RS155086,91.62,0.00,1 x Logitech iPad (10th generation) Keyboard Case | Slim Folio with integrated wireless keyboard - Graphite.,Comp Hardware Purchases
Wyre Council,http://opendatacommunities.org/doc/district-council/wyre,30/12/2023,Resources,Support Services,135B,Amazon Business,13/12/2023,RS155273,892.25,0.00,5 x Samsung Galaxy A34 5G unlocked.,Comp Hardware Purchases
Wyre Council,http://opendatacommunities.org/doc/district-council/wyre,30/12/2023,Resources,Support Services,135B,Amazon Business,07/12/2023,RS155079,185.83,0.00,1 X Sam Galaxy A34 5G EE 128-6-5G-gy Sams Galaxy A34 5G EE 128GB/6GB graphite.,Comp Hardware Purchases
Wyre Council,http://opendatacommunities.org/doc/district-council/wyre,30/12/2023,Resources,Support Services,135B,Amazon Business,07/12/2023,RS155077,2399.80,0.00,"20 x SAMSUNG Galaxy A14 5G 64GB Black EU 16,72cm (6,6``) LCD Display, Android 13, 50MP Triple-Kamera.",Comp Hardware Purchases
Wyre Council,http://opendatacommunities.org/doc/district-council/wyre,30/12/2023,Resources,Support Services,135B,Amazon Business,07/12/2023,RS155074,182.50,0.00,"1 x Samsung Galaxy A34 5G (German Version), unlocked.",Comp Hardware Purchases
Wyre Council,http://opendatacommunities.org/doc/district-council/wyre,30/12/2023,Resources,Support Services,135B,Amazon Business,13/12/2023,RS155282,29.98,0.00,2 x NETGEAR 5 Port Gigabit Network Switch (GS305) - Ethernet Splitter - Ethernet Switch - Ethernet Hub - Plug-and-Play - Silent Operation - Desktop or Wall Mount.,Comp Hardware Purchases
Wyre Council,http://opendatacommunities.org/doc/district-council/wyre,30/12/2023,Resources,Support Services,135B,Amazon Business,13/12/2023,RS155271,27.67,0.00,"5 x BLACKSYNCZE USB C to Lightning Cable, [2Pack 2M] MFi Certified iPhone Charger Cable Nylon Braided PD Fast Lightning Type C Charging Cable Lead for iPhone 13 12 11 Pro Max Mini XR XS X 8Plus SE 2020.",Comp Hardware Purchases
Wyre Council,http://opendatacommunities.org/doc/district-council/wyre,30/12/2023,Resources,Support Services,135B,Amazon Business,13/12/2023,RS155280,56.30,0.00,"10 x 2 Pack iPhone Charging Cable 2 M, Nylon USB A to Lightning Cable Long Fast Charging Cable Compatible with Apple iPhone14 13 12 11 Pro Max Xs Xr X 8 7 6 Plus SE (2M)",Comp Hardware Purchases
Wyre Council,http://opendatacommunities.org/doc/district-council/wyre,30/12/2023,Resources,Support Services,135B,Amazon Business,13/12/2023,RS155280,524.80,0.00,"10 x UGREEN Revodok Pro 211 USB C Docking Station, 11-in-1 USB C Hub Dual HDMI 4K@60Hz, Single 8K@30Hz, 10Gbps USB-C and USB-A Data Ports, 100W PD, Ethernet, SD/TF, 3.5mm Audio for XPS, ThinkPad, Surface.",Comp Hardware Purchases
Wyre Council,http://opendatacommunities.org/doc/district-council/wyre,30/12/2023,Resources,Support Services,135B,OX IT Solutions Ltd,14/12/2023,RS155285,2750.00,0.00,iiyama G-MASTER Red Eagle 34`` Class QHD Curved Screen Gaming LCD Monitor - 21:9 - Matte Black - 86.4 cm (34``) Viewable - Vertical Alignment (VA) - WLED Backlight - 3440 x 1440 - 16.7 Million Colours - FreeSync Premium - 550 cd/m� - 4 ms - 16,Comp Hardware Purchases
Wyre Council,http://opendatacommunities.org/doc/district-council/wyre,30/12/2023,Resources,Support Services,135B,OX IT Solutions Ltd,14/12/2023,RS155285,1140.00,0.00,iiyama G-MASTER Red Eagle 34`` Class QHD Curved Screen Gaming LCD Monitor - 21:9 - Matte Black - 86.4 cm (34``) Viewable - Vertical Alignment (VA) - WLED Backlight - 3440 x 1440 - 16.7 Million Colours - FreeSync Premium - 550 cd/m� - 4 ms - 16,Comp Hardware Purchases
Wyre Council,http://opendatacommunities.org/doc/district-council/wyre,30/12/2023,Resources,Support Services,135B,Amazon Business,13/12/2023,RS155279,51.40,0.00,"5 x AOUIA for Samsung A34 5G Case with 2 Screen Protector, Shockproof and Anti Scratch 360� Magnetic Ring Holder Stand Phone Cover for Samsung Galaxy A34 5G - Black-6.6``.",Computer Stationery and Consumables
Wyre Council,http://opendatacommunities.org/doc/district-council/wyre,30/12/2023,Resources,Support Services,135B,Amazon Business,07/12/2023,RS155062,99.90,0.00,10 x Laptop Stand Desk Tablet Stand (UK COMPANY) Home Office Accessories Adjustable Laptop Stand Computer Holder.,Computer Stationery and Consumables
Wyre Council,http://opendatacommunities.org/doc/district-council/wyre,30/12/2023,Resources,Support Services,135B,Amazon Business,07/12/2023,RS155045,5.79,0.00,"1 x iCatchy for Samsung Galaxy A34 Case, Heavy Duty Hard Tough Dual Layer Hybrid Shockproof Cover compatible For Samsung Galaxy A34 Phone Case (Black).",Computer Stationery and Consumables
Wyre Council,http://opendatacommunities.org/doc/district-council/wyre,30/12/2023,Resources,Support Services,135B,Amazon Business,07/12/2023,RS155075,10.82,0.00,"1 x AOUIA for Samsung A34 5G Case with 2 Screen Protector, Shockproof and Anti Scratch 360� Magnetic Ring Holder Stand Phone Cover for Samsung Galaxy A34 5G - Black-6.6``.",Computer Stationery and Consumables
Wyre Council,http://opendatacommunities.org/doc/district-council/wyre,30/12/2023,Resources,Support Services,135B,Amazon Business,07/12/2023,RS155078,79.08,0.00,"10 x Lidasen Laptop Stand Tablet,Foldable Portable Ventilated Desktop Laptop Holder, Cooling Stand (10``-15.6``) compatible with Dell XPS, HP, Lenovo,Universal Lightweight&Adjustable Ergonomic Tray (Black).",Computer Stationery and Consumables
Wyre Council,http://opendatacommunities.org/doc/district-council/wyre,30/12/2023,Resources,Support Services,135B,Amazon Business,07/12/2023,RS155081,226.40,0.00,"20 x OWKEY Case for Samsung Galaxy A14 5G/4G with Built-in Screen Protector Anti-Scratch, 360 Degree Full Body Military Grade Rugged Phone Cover for Samsung Galaxy A14 5G/4G 6.6-Inch (Black).",Computer Stationery and Consumables
Wyre Council,http://opendatacommunities.org/doc/district-council/wyre,30/12/2023,People and Places,Planning and Development Servs,132C,Blackpool Council,06/12/2023,PE154889,12326.17,0.00,"Economic Needs Update and Employment Land Review for Blackpool, Fylde and Wyre Council (Planning Policy)",Consultants Fees
Wyre Council,http://opendatacommunities.org/doc/district-council/wyre,30/12/2023,People and Places,Planning and Development Servs,132C,Knight Kavanagh & Page,06/12/2023,PE154810,2171.10,0.00,Green Infrastructure Audit and Strategy,Consultants Fees
Wyre Council,http://opendatacommunities.org/doc/district-council/wyre,30/12/2023,Resources,Central Services to the Public,131C,Inform CPI,07/12/2023,RS154962,525.00,0.00,"Forton Morots Lancaster New Rd, Cabus, PR3 1AB (BA Ref N00240280230004",Consultants Fees
Wyre Council,http://opendatacommunities.org/doc/district-council/wyre,30/12/2023,Resources,Support Services,135B,NTA Monitor LTD,22/12/2023,RS155531,3375.00,0.00,Internal Penetration Test,Consultants Fees
Wyre Council,http://opendatacommunities.org/doc/district-council/wyre,30/12/2023,Resources,Support Services,135B,PSTAX Consulting Limited,15/12/2023,RS155367,2450.00,0.00,HMRC VAT Inspection Preparation,Consultants Fees
Wyre Council,http://opendatacommunities.org/doc/district-council/wyre,30/12/2023,People and Places,Planning and Development Servs,132C,Jeremy Benn Associates Limited,11/12/2023,PE155129,3096.00,0.00,Fylde Coast Strategic Flood Risk Assessment (Level 1),Consultants Fees
Wyre Council,http://opendatacommunities.org/doc/district-council/wyre,30/12/2023,Resources,Cultural and Related Services,132A,GJG Consultancy,11/12/2023,RS155163,4864.10,0.00,Invoice 3 - final invoice for consultancy support with Marine Hall review,Consultants Fees
Wyre Council,http://opendatacommunities.org/doc/district-council/wyre,30/12/2023,People and Places,"Cultural, Environ and Planning",137B,Halcrow Group LTD,11/12/2023,PE155084,3223.41,0.00,"Extend the existing OBC commission to include the following, as defined in your proposal dated 4 July 2023, Beach Management Plan fee value 40,652, excluding VAT",Consultants Fees (New CCR)
Wyre Council,http://opendatacommunities.org/doc/district-council/wyre,30/12/2023,People and Places,"Cultural, Environ and Planning",137B,Lancashire County Council,07/12/2023,PE155068,24943.91,0.00,Mark O`Donnell B.Eng (Hons) I.Eng FIHE email Mark.O`Donnell@lancashire.gov.ukOperations ManagerHighways and TransportWyre and Fylde DistrictsLancashire County CouncilSingleton DepotGrange RoadSingletonFY6 8LPInstall vehicular drop cros,Consultants Fees (New CCR)
Wyre Council,http://opendatacommunities.org/doc/district-council/wyre,30/12/2023,People and Places,"Cultural, Environ and Planning",137B,Lancashire County Council,12/12/2023,PE155183,1412.39,0.00,Could you raise a purchase order for the following please. FAO Tony EnglishbyHighway Regulation OfficerHighways and TransportLancashire County Council Tel: (01772) 533433Provide Temporary Traffic Regulation Order for a temporary road closu,Consultants Fees (New CCR)
Wyre Council,http://opendatacommunities.org/doc/district-council/wyre,30/12/2023,People and Places,"Cultural, Environ and Planning",137B,KEYSTONE DESIGN LTD,19/12/2023,PE155495,960.00,0.00,"To David Hadwin,Keystone Design Associated Ltd,Development House,261 Church Street,Blackpool.FY1 3PB. Carry out structural monitoring of The Venue for the Wyre Beach Management Scheme as your email dated 27th October 2023. 120 per hour,",Consultants Fees (New CCR)
Wyre Council,http://opendatacommunities.org/doc/district-council/wyre,30/12/2023,People and Places,"Cultural, Environ and Planning",137B,MARLAN MARITIME TECHNOLOGIES LTD,21/12/2023,PE155546,13500.00,0.00,Works to provide synoptic radar monitoring at sites across NW for Eco-CoBS project.Deployment at first site Fleetwood 16 Dec 2021.Contract until 31 March 2027.,Consultants Fees (New CCR)
Wyre Council,http://opendatacommunities.org/doc/district-council/wyre,30/12/2023,People and Places,"Cultural, Environ and Planning",137B,MARLAN MARITIME TECHNOLOGIES LTD,21/12/2023,PE155548,8250.00,0.00,Works to provide synoptic radar monitoring at sites across NW for Eco-CoBS project.Deployment at first site Fleetwood 16 Dec 2021.Contract until 31 March 2027.,Consultants Fees (New CCR)
Wyre Council,http://opendatacommunities.org/doc/district-council/wyre,30/12/2023,People and Places,"Cultural, Environ and Planning",137B,Susannah Bleakley Consulting,01/12/2023,PE154902,206.45,0.00,ECO-CoBS Project,Consultants Fees (New CCR)
Wyre Council,http://opendatacommunities.org/doc/district-council/wyre,30/12/2023,People and Places,"Cultural, Environ and Planning",137B,Susannah Bleakley Consulting,01/12/2023,PE154927,8172.70,0.00,Additional works for My Future Coast,Consultants Fees (New CCR)
Wyre Council,http://opendatacommunities.org/doc/district-council/wyre,30/12/2023,People and Places,"Cultural, Environ and Planning",137B,Wyre Catchment CIC,07/12/2023,PE155048,1623.62,0.00,Wyre NFM Project,Consultants Fees (New CCR)
Wyre Council,http://opendatacommunities.org/doc/district-council/wyre,30/12/2023,People and Places,"Cultural, Environ and Planning",137B,Ribble Catchment Conservation Trust Ltd,11/12/2023,PE155138,675.00,0.00,Preparing and Presenting at the OFC Workshop,Consultants Fees (New CCR)
Wyre Council,http://opendatacommunities.org/doc/district-council/wyre,30/12/2023,People and Places,"Cultural, Environ and Planning",137B,MC & MA Stewart (Haulage) LTD,07/12/2023,PE155067,1848.91,0.00,Supply and deliver asap 60T of top soil at price quoted 30.50 per tonne based on 20/30 tonne load Delivery address to 4 Tebay Ave Thornton/Cleveleys.Delivery date Thursday 9th November 2023 from 7:30amContact Bob Greaves upon delivery on 0796,Contract (New CCR)
Wyre Council,http://opendatacommunities.org/doc/district-council/wyre,30/12/2023,People and Places,"Cultural, Environ and Planning",137B,M J Wilkinson,21/12/2023,PE155556,26.41,0.00,Collection charge3T Machine,Contract (New CCR)
Wyre Council,http://opendatacommunities.org/doc/district-council/wyre,30/12/2023,People and Places,"Cultural, Environ and Planning",137B,M J Wilkinson,21/12/2023,PE155556,26.41,0.00,Collection charge3T Machine,Contract (New CCR)
Wyre Council,http://opendatacommunities.org/doc/district-council/wyre,30/12/2023,People and Places,"Cultural, Environ and Planning",137B,M J Wilkinson,21/12/2023,PE155556,26.41,0.00,Collection chargeFor trailer,Contract (New CCR)
Wyre Council,http://opendatacommunities.org/doc/district-council/wyre,30/12/2023,People and Places,"Cultural, Environ and Planning",137B,M J Wilkinson,21/12/2023,PE155557,105.60,0.00,Labour 30/10/23Time sheet 11156,Contract (New CCR)
Wyre Council,http://opendatacommunities.org/doc/district-council/wyre,30/12/2023,People and Places,"Cultural, Environ and Planning",137B,M J Wilkinson,21/12/2023,PE155558,274.43,0.00,MJW104 Hitachi ZX26U Excavator 2/11/23 to 3/11/23Time sheet 11156,Contract (New CCR)
Wyre Council,http://opendatacommunities.org/doc/district-council/wyre,30/12/2023,People and Places,"Cultural, Environ and Planning",137B,M J Wilkinson,21/12/2023,PE155558,73.92,0.00,P-ACC-BRE-030 Breaker to fit 3T Excavator 2/11/23 to 3/11/23Time sheet 11155,Contract (New CCR)
Wyre Council,http://opendatacommunities.org/doc/district-council/wyre,30/12/2023,People and Places,"Cultural, Environ and Planning",137B,M J Wilkinson,21/12/2023,PE155558,274.43,0.00,3T Dumper 2/11/23 to 3/11/23Time sheet 11155,Contract (New CCR)
Wyre Council,http://opendatacommunities.org/doc/district-council/wyre,30/12/2023,People and Places,"Cultural, Environ and Planning",137B,M J Wilkinson,21/12/2023,PE155558,80.00,0.00,Trailer 2/11/23 to 3/11/23,Contract (New CCR)
Wyre Council,http://opendatacommunities.org/doc/district-council/wyre,30/12/2023,People and Places,"Cultural, Environ and Planning",137B,M J Wilkinson,21/12/2023,PE155558,26.41,0.00,Delivery charge 2/11/23 to 3/11/233T Machine,Contract (New CCR)
Wyre Council,http://opendatacommunities.org/doc/district-council/wyre,30/12/2023,People and Places,"Cultural, Environ and Planning",137B,M J Wilkinson,21/12/2023,PE155558,26.41,0.00,Delivery charge 3T Dumper,Contract (New CCR)
Wyre Council,http://opendatacommunities.org/doc/district-council/wyre,30/12/2023,People and Places,"Cultural, Environ and Planning",137B,M J Wilkinson,21/12/2023,PE155558,26.41,0.00,Delivery charge 2/11/23 to 3/11/23Trailer,Contract (New CCR)
Wyre Council,http://opendatacommunities.org/doc/district-council/wyre,30/12/2023,People and Places,"Cultural, Environ and Planning",137B,M J Wilkinson,21/12/2023,PE155555,781.07,0.00,MJW104 Hitachi ZX26U Excavator6/11/23 - 10/11/23Time sheet 11158,Contract (New CCR)
Wyre Council,http://opendatacommunities.org/doc/district-council/wyre,30/12/2023,People and Places,"Cultural, Environ and Planning",137B,M J Wilkinson,21/12/2023,PE155555,184.80,0.00,P-ACC-BRE-030 Breaker to fit 3T Excavator6/11/23 to 12/11/23,Contract (New CCR)
Wyre Council,http://opendatacommunities.org/doc/district-council/wyre,30/12/2023,People and Places,"Cultural, Environ and Planning",137B,M J Wilkinson,21/12/2023,PE155555,781.07,0.00,3T Dumper 6/11/23,Contract (New CCR)
Wyre Council,http://opendatacommunities.org/doc/district-council/wyre,30/12/2023,People and Places,"Cultural, Environ and Planning",137B,M J Wilkinson,21/12/2023,PE155555,200.00,0.00,Trailer 6/11/23 - 10/11/23,Contract (New CCR)
Wyre Council,http://opendatacommunities.org/doc/district-council/wyre,30/12/2023,People and Places,"Cultural, Environ and Planning",137B,M J Wilkinson,21/12/2023,PE155556,168.88,0.00,Hitachi ZX26U Excavator 13/11/23Time sheet 1160,Contract (New CCR)
Wyre Council,http://opendatacommunities.org/doc/district-council/wyre,30/12/2023,People and Places,"Cultural, Environ and Planning",137B,M J Wilkinson,21/12/2023,PE155556,36.96,0.00,P-ACC-BRE-030 Breaker to fit 3T Excavator 13/11/23,Contract (New CCR)
Wyre Council,http://opendatacommunities.org/doc/district-council/wyre,30/12/2023,People and Places,"Cultural, Environ and Planning",137B,M J Wilkinson,21/12/2023,PE155556,168.88,0.00,3T Dumper 6/12/23Time sheet 11159,Contract (New CCR)
Wyre Council,http://opendatacommunities.org/doc/district-council/wyre,30/12/2023,People and Places,"Cultural, Environ and Planning",137B,M J Wilkinson,21/12/2023,PE155556,40.00,0.00,Trailer13/11/23,Contract (New CCR)
Wyre Council,http://opendatacommunities.org/doc/district-council/wyre,30/12/2023,People and Places,"Cultural, Environ and Planning",137B,F PARKINSON LTD,13/12/2023,PE155126,28916.48,0.00,Fleetwood Market Contract (UKSPF) - 2023/24,Contract (New CCR)
Wyre Council,http://opendatacommunities.org/doc/district-council/wyre,30/12/2023,People and Places,"Cultural, Environ and Planning",137B,F PARKINSON LTD,13/12/2023,PE155127,65421.13,0.00,Fleetwood Market.  Annex & Associated Works,Contract (New CCR)
Wyre Council,http://opendatacommunities.org/doc/district-council/wyre,30/12/2023,People and Places,"Cultural, Environ and Planning",137B,F PARKINSON LTD,14/12/2023,PE155128,116338.19,0.00,Fleetwood Market Refurbishments.  Additional Works Brought Forward into the Main Contract,Contract (New CCR)
Wyre Council,http://opendatacommunities.org/doc/district-council/wyre,30/12/2023,People and Places,"Cultural, Environ and Planning",137B,F PARKINSON LTD,14/12/2023,PE155125,159621.20,0.00,Fleetwood Market Contract Works 2023/24,Contract (New CCR)
Wyre Council,http://opendatacommunities.org/doc/district-council/wyre,30/12/2023,People and Places,"Cultural, Environ and Planning",137B,Balfour Beatty Civil Engineering Ltd,07/12/2023,PE154999,1727179.00,0.00,"FAO Chloe Sumner Balfour Beatty Civil Engineering Ltd Chaddock Lane  Worsley Manchester M28 1XY  Wyre Beach Management Scheme Phase 2 � Construction Works.  Cost 35,601,957.69  Carl Green / Mike Wilkinson",Contract (New CCR)
Wyre Council,http://opendatacommunities.org/doc/district-council/wyre,30/12/2023,People and Places,"Cultural, Environ and Planning",137B,Balfour Beatty Civil Engineering Ltd,07/12/2023,PE154998,2182.84,0.00,"FAO Chloe Sumner Balfour Beatty Civil Engineering Ltd Chaddock Lane  Worsley Manchester M28 1XY  Tel, 0161 638 0800 Chloe.Sumner@balfourbeatty.com   Wyre Beach Management Scheme Phase 1 - Construction Works.  Cost 2,687,156.94",Contract (New CCR)
Wyre Council,http://opendatacommunities.org/doc/district-council/wyre,30/12/2023,People and Places,"Cultural, Environ and Planning",137B,Blackpool Industrial Roofing NW,19/12/2023,PE155072,43717.80,0.00,"Please undertake re-roofing works at Units 11, 12, 14, 17 and 18 Croft Court, Butts Close, Redmarsh Industrial Estate, Thornton Cleveleys, as per quotation - 127,786.45  VAT. labour",Contract (New CCR)
Wyre Council,http://opendatacommunities.org/doc/district-council/wyre,30/12/2023,People and Places,"Cultural, Environ and Planning",137B,Blackpool Industrial Roofing NW,19/12/2023,PE155072,65576.72,0.00,"Please undertake re-roofing works at Units 11, 12, 14, 17 and 18 Croft Court, Butts Close, Redmarsh Industrial Estate, Thornton Cleveleys, as per quotation - 127,786.45  VAT. materials",Contract (New CCR)
Wyre Council,http://opendatacommunities.org/doc/district-council/wyre,30/12/2023,Resources,Housing General Fund,134A,IRRV Services LTD,18/12/2023,RS155393,1320.00,0.00,"IRRV ForumsNorth Wales and North WestIRRV Forum Membership 2024 - BAND A Domestic Properties up to 75,000",Corporate and Professional Subscriptions
Wyre Council,http://opendatacommunities.org/doc/district-council/wyre,30/12/2023,Resources,Support Services,135B,BRADLEY ENVIRONMENTAL CONSULTANTS LTD,06/12/2023,RS155018,878.41,0.00,To deliver 1 day Non Licenced Asbestos Full Course at our depot in Fleetwood4 December 2023 as per booking formValue to include 128.41 travel,Corporate Training - Health and Safety
Wyre Council,http://opendatacommunities.org/doc/district-council/wyre,30/12/2023,Finance,Current Assets,130B,,19/12/2023,WPST00128442,28515.99,0.00,15/12/23 Ctax Refunds,Council Tax Refunds
Wyre Council,http://opendatacommunities.org/doc/district-council/wyre,30/12/2023,Finance,Current Assets,130B,,12/12/2023,WPST00127801,12536.00,0.00,08/12/23 Ctax Refunds,Council Tax Refunds
Wyre Council,http://opendatacommunities.org/doc/district-council/wyre,30/12/2023,Finance,Current Assets,130B,,05/12/2023,WPST00127176,18946.19,0.00,01/12/23 Ctax Refunds,Council Tax Refunds
Wyre Council,http://opendatacommunities.org/doc/district-council/wyre,30/12/2023,People and Places,Environmental Services,132B,EK Motors Factors LTD,15/12/2023,PE155388,5.91,0.00,Parts,Daywork Materials (Excl.Tyres)
Wyre Council,http://opendatacommunities.org/doc/district-council/wyre,30/12/2023,People and Places,Environmental Services,132B,EK Motors Factors LTD,15/12/2023,PE155385,107.83,0.00,Parts,Daywork Materials (Excl.Tyres)
Wyre Council,http://opendatacommunities.org/doc/district-council/wyre,30/12/2023,People and Places,Support Services,135B,EK Motors Factors LTD,15/12/2023,PE155372,59.50,0.00,Parts,Daywork Materials (Excl.Tyres)
Wyre Council,http://opendatacommunities.org/doc/district-council/wyre,30/12/2023,People and Places,Support Services,135B,EK Motors Factors LTD,15/12/2023,PE155371,30.46,0.00,Parts,Daywork Materials (Excl.Tyres)
Wyre Council,http://opendatacommunities.org/doc/district-council/wyre,30/12/2023,People and Places,Support Services,135B,EK Motors Factors LTD,18/12/2023,PE155370,63.55,0.00,Parts,Daywork Materials (Excl.Tyres)
Wyre Council,http://opendatacommunities.org/doc/district-council/wyre,30/12/2023,People and Places,Cultural and Related Services,132A,EK Motors Factors LTD,18/12/2023,PE155384,76.02,0.00,Parts,Daywork Materials (Excl.Tyres)
Wyre Council,http://opendatacommunities.org/doc/district-council/wyre,30/12/2023,People and Places,Environmental Services,132B,EK Motors Factors LTD,15/12/2023,PE155386,146.32,0.00,Parts,Daywork Materials (Excl.Tyres)
Wyre Council,http://opendatacommunities.org/doc/district-council/wyre,30/12/2023,People and Places,Environmental Services,132B,EK Motors Factors LTD,15/12/2023,PE155387,24.83,0.00,Parts,Daywork Materials (Excl.Tyres)
Wyre Council,http://opendatacommunities.org/doc/district-council/wyre,30/12/2023,People and Places,Support Services,135B,EK Motors Factors LTD,15/12/2023,PE155383,22.59,0.00,Parts,Daywork Materials (Excl.Tyres)
Wyre Council,http://opendatacommunities.org/doc/district-council/wyre,30/12/2023,People and Places,Support Services,135B,EK Motors Factors LTD,15/12/2023,PE155374,41.62,0.00,Parts,Daywork Materials (Excl.Tyres)
Wyre Council,http://opendatacommunities.org/doc/district-council/wyre,30/12/2023,People and Places,Support Services,135B,EK Motors Factors LTD,18/12/2023,PE155373,0.59,0.00,Parts,Daywork Materials (Excl.Tyres)
Wyre Council,http://opendatacommunities.org/doc/district-council/wyre,30/12/2023,People and Places,Support Services,135B,EK Motors Factors LTD,18/12/2023,PE155375,1.18,0.00,Parts,Daywork Materials (Excl.Tyres)
Wyre Council,http://opendatacommunities.org/doc/district-council/wyre,30/12/2023,People and Places,Support Services,135B,FR Sharrock LTD,21/12/2023,PE155497,259.71,0.00,Parts,Daywork Materials (Excl.Tyres)
Wyre Council,http://opendatacommunities.org/doc/district-council/wyre,30/12/2023,People and Places,Support Services,135B,FR Sharrock LTD,13/12/2023,PE154987,241.74,0.00,items bought between 14/11/23 and 30/*11/23  - blades/ starter motors /flail kits  +screws,Daywork Materials (Excl.Tyres)
Wyre Council,http://opendatacommunities.org/doc/district-council/wyre,30/12/2023,People and Places,Support Services,135B,FR Sharrock LTD,13/12/2023,PE154987,462.86,0.00,items bought between 14/11/23 and 30/*11/23  - blades/ starter motors /flail kits  +screws,Daywork Materials (Excl.Tyres)
Wyre Council,http://opendatacommunities.org/doc/district-council/wyre,30/12/2023,People and Places,Support Services,135B,FR Sharrock LTD,13/12/2023,PE154987,293.25,0.00,items bought between 14/11/23 and 30/*11/23  - blades/ starter motors /flail kits  +screws,Daywork Materials (Excl.Tyres)
Wyre Council,http://opendatacommunities.org/doc/district-council/wyre,30/12/2023,People and Places,Support Services,135B,FR Sharrock LTD,13/12/2023,PE154987,462.86,0.00,items bought between 14/11/23 and 30/*11/23  - blades/ starter motors /flail kits  +screws,Daywork Materials (Excl.Tyres)
Wyre Council,http://opendatacommunities.org/doc/district-council/wyre,30/12/2023,People and Places,Support Services,135B,FR Sharrock LTD,13/12/2023,PE154987,462.86,0.00,items bought between 14/11/23 and 30/*11/23  - blades/ starter motors /flail kits  +screws,Daywork Materials (Excl.Tyres)
Wyre Council,http://opendatacommunities.org/doc/district-council/wyre,30/12/2023,People and Places,Environmental Services,132B,Scarab Sweepers Ltd,04/12/2023,PE154888,719.48,0.00,Parts,Daywork Materials (Excl.Tyres)
Wyre Council,http://opendatacommunities.org/doc/district-council/wyre,30/12/2023,People and Places,Environmental Services,132B,Scarab Sweepers Ltd,21/12/2023,PE155333,438.85,0.00,Parts  V143,Daywork Materials (Excl.Tyres)
Wyre Council,http://opendatacommunities.org/doc/district-council/wyre,30/12/2023,People and Places,Environmental Services,132B,Hako Machines Limited,01/12/2023,PE154895,135.75,0.00,Filters Part numbers 01500640 01500420,Daywork Materials (Excl.Tyres)
Wyre Council,http://opendatacommunities.org/doc/district-council/wyre,30/12/2023,People and Places,Environmental Services,132B,Hako Machines Limited,08/12/2023,PE154961,69.08,0.00,Air filter element,Daywork Materials (Excl.Tyres)
Wyre Council,http://opendatacommunities.org/doc/district-council/wyre,30/12/2023,People and Places,Environmental Services,132B,Hako Machines Limited,08/12/2023,PE154905,564.38,0.00,Service and replacement parts to Citymaster 1650,Daywork Materials (Excl.Tyres)
Wyre Council,http://opendatacommunities.org/doc/district-council/wyre,30/12/2023,Resources,Support Services,135B,THE NETWORKING PEOPLE (TNP) LTD,05/12/2023,RS155005,362.50,0.00,Professional Services days,Disaster Recovery
Wyre Council,http://opendatacommunities.org/doc/district-council/wyre,30/12/2023,People and Places,Environmental Services,132B,RENTOKIL INITIAL UK LTD,12/12/2023,PE154807,133.85,0.00,Clinical waste collection and disposal services to Wyre domestic customers.  To include provision of containers for financial year 2023/24,Disposal Costs Hazardous Waste
Wyre Council,http://opendatacommunities.org/doc/district-council/wyre,30/12/2023,People and Places,Public Transport,133G,M J Wilkinson,21/12/2023,PE155561,4370.00,0.00,"Hire of 20T Longreach, JCB 714Drivers & Banksman including Transport",Dredging
Wyre Council,http://opendatacommunities.org/doc/district-council/wyre,30/12/2023,People and Places,Cultural and Related Services,132A,N Power LTD,18/12/2023,PE155360,1681.15,0.00,"1600000125794 Garstang Swimming Pool, Birch Rd, PR3 1WJ 01/11/23 to 30/11/23 (6,454.9kWh)",Electricity
Wyre Council,http://opendatacommunities.org/doc/district-council/wyre,30/12/2023,People and Places,Cultural and Related Services,132A,N Power LTD,18/12/2023,PE155356,1964.54,0.00,"16100023220857 YMCA Garstang Leisure Centre, Windsor Rd, Garstang PR3 1ED 01/11/23 to 30/11/23 (6,752.9kWh)",Electricity
Wyre Council,http://opendatacommunities.org/doc/district-council/wyre,30/12/2023,People and Places,Cultural and Related Services,132A,N Power LTD,18/12/2023,PE155354,7943.96,0.00,"1600000162884 Fleetwood Leisure Centre, The Esplanade, Fleetwood, FY7 6HF 01/11/23 to 30/11/23 (32,346.80kWh)",Electricity
Wyre Council,http://opendatacommunities.org/doc/district-council/wyre,30/12/2023,People and Places,Cultural and Related Services,132A,N Power LTD,18/12/2023,PE155355,7514.44,0.00,"2500000793090 Thornton Leisure Centre Victoria Rd E FY5 3SX 01/11/23 to 30/11/23 (27,974.1kWh)",Electricity
Wyre Council,http://opendatacommunities.org/doc/district-council/wyre,30/12/2023,People and Places,Cultural and Related Services,132A,N Power LTD,18/12/2023,PE155359,4417.66,0.00,"2500000676813 Swimming & Fitness Centre, Breck Rd, Poulton, FY9 7HU 01/11/23 to 30/11/23 (15,597.80kWh)",Electricity
Wyre Council,http://opendatacommunities.org/doc/district-council/wyre,30/12/2023,People and Places,Parking Services,133F,N Power LTD,07/12/2023,PE155031,52.31,0.00,1610036002855 unmetered supply 01/11/23 to 30/11/23 (8.7kWh),Electricity
Wyre Council,http://opendatacommunities.org/doc/district-council/wyre,30/12/2023,People and Places,Parking Services,133F,N Power LTD,07/12/2023,PE155030,499.48,0.00,1620000821031 unmetered supply lighting  01/11/23 to 30/11/23 (1393.40 kWh),Electricity
Wyre Council,http://opendatacommunities.org/doc/district-council/wyre,30/12/2023,People and Places,Parking Services,133F,N Power LTD,07/12/2023,PE155029,1878.58,0.00,1610036002846 unmetered supply lighting 01/11/23 to 30/11/23 (7658.4kWh),Electricity
Wyre Council,http://opendatacommunities.org/doc/district-council/wyre,30/12/2023,People and Places,Environmental Services,132B,N Power LTD,07/12/2023,PE155031,9.33,0.00,1610036002855 unmetered supply 01/11/23 to 30/11/23 (1.6kWh),Electricity
Wyre Council,http://opendatacommunities.org/doc/district-council/wyre,30/12/2023,People and Places,Environmental Services,132B,N Power LTD,07/12/2023,PE155029,334.97,0.00,1610036002846 unmetered supply lighting 01/11/23 to 30/11/23 (1006.6kWh),Electricity
Wyre Council,http://opendatacommunities.org/doc/district-council/wyre,30/12/2023,People and Places,Environmental Services,132B,OPUS Energy LTD,19/12/2023,PE155193,400.35,0.00,1610004313728 Queensway Public Conveniences Teanlowe Centre Poulton FY6 7DF01-11-23 to 30-11-231298.00E,Electricity
Wyre Council,http://opendatacommunities.org/doc/district-council/wyre,30/12/2023,People and Places,Environmental Services,132B,OPUS Energy LTD,19/12/2023,PE155199,435.38,0.00,"1610004665168 Public Conveniences, Cleveleys Bus Station, Rough Lea Road FY5 1BW01-11-23 to 30-11-231425.00E",Electricity
Wyre Council,http://opendatacommunities.org/doc/district-council/wyre,30/12/2023,People and Places,Environmental Services,132B,OPUS Energy LTD,19/12/2023,PE155205,99.26,0.00,"1610023232505 Public Conveniences, High Street Car Park, Garstang PR3 1FA 01-11-23 to 30-11-23212.00E",Electricity
Wyre Council,http://opendatacommunities.org/doc/district-council/wyre,30/12/2023,People and Places,Environmental Services,132B,OPUS Energy LTD,19/12/2023,PE155198,21.01,0.00,"1610004421200 New Lane Pumping Station 2,New Lane, Thornton FY5 5NH01-11-23 to 30-11-2330.00E",Electricity
Wyre Council,http://opendatacommunities.org/doc/district-council/wyre,30/12/2023,People and Places,Environmental Services,132B,OPUS Energy LTD,19/12/2023,PE155197,44.74,0.00,"1610004421042 New Lane Pumping Station 1, New Lane Thornton Cleveleys FY5 5NS 01-11-23 to 30-11-239.00E",Electricity
Wyre Council,http://opendatacommunities.org/doc/district-council/wyre,30/12/2023,People and Places,Cultural and Related Services,132A,OPUS Energy LTD,18/12/2023,PE155208,573.21,0.00,1610004742404 River Road Thornton Cleveleys FY5 5LR01-11-23 to 30-11-232011.00A/E,Electricity
Wyre Council,http://opendatacommunities.org/doc/district-council/wyre,30/12/2023,People and Places,Cultural and Related Services,132A,OPUS Energy LTD,12/12/2023,PE154977,488.39,0.00,"1610004742399 River Rd, Thornton Cleveleys, FY5 5LR 01/10/23 to 31/10/23 (1650.70 kWh)",Electricity
Wyre Council,http://opendatacommunities.org/doc/district-council/wyre,30/12/2023,People and Places,Environmental Services,132B,OPUS Energy LTD,19/12/2023,PE155196,732.89,0.00,"1610004347328 Garstang Road East Cemetery, Garstang Road East, Poulton FY6 7SN 01-11-23 to 30-11-232674.00E",Electricity
Wyre Council,http://opendatacommunities.org/doc/district-council/wyre,30/12/2023,People and Places,Cultural and Related Services,132A,OPUS Energy LTD,19/12/2023,PE155206,480.08,0.00,"1640000960322 The Mount Lodge, The Esplanade, Fleetwood FY7 6EZ01-11-23 to 30-11-231694.00E",Electricity
Wyre Council,http://opendatacommunities.org/doc/district-council/wyre,30/12/2023,People and Places,Cultural and Related Services,132A,OPUS Energy LTD,19/12/2023,PE155207,15.78,0.00,"1630000861704 North Promenade Kiosk, Childrens Corner, Thornton Cleveleys FY5 1DB01-11-23 to 30-11-231.00E",Electricity
Wyre Council,http://opendatacommunities.org/doc/district-council/wyre,30/12/2023,People and Places,Cultural and Related Services,132A,OPUS Energy LTD,19/12/2023,PE155192,6.36,0.00,"1610004305443 Blackpool Old Road, Sports Pavilion, Cottam Hall FY6 7RH01-11-23 to 30-11-231.00E",Electricity
Wyre Council,http://opendatacommunities.org/doc/district-council/wyre,30/12/2023,People and Places,Cultural and Related Services,132A,OPUS Energy LTD,19/12/2023,PE155203,851.14,0.00,"1610004773866 Thornton Little Theatre, Fleetwood Road Thornton FY5 4AD 01-11-23 to 30-11-232682.00E",Electricity
Wyre Council,http://opendatacommunities.org/doc/district-council/wyre,30/12/2023,People and Places,Cultural and Related Services,132A,OPUS Energy LTD,19/12/2023,PE155194,47.53,0.00,"1610004318841 Jean Stansfield Bowling Green, Vicarage Road Poulton FY6 7BE01-11-23 to 30-11-23126.00E",Electricity
Wyre Council,http://opendatacommunities.org/doc/district-council/wyre,30/12/2023,People and Places,Cultural and Related Services,132A,OPUS Energy LTD,19/12/2023,PE155200,59.08,0.00,"1610004724089 North Drive Pavilion, North Drive, Thornton FY5 2QD01-11-23 to 30-11-23168.00E",Electricity
Wyre Council,http://opendatacommunities.org/doc/district-council/wyre,30/12/2023,People and Places,Central Services to the Public,131C,OPUS Energy LTD,19/12/2023,PE155195,1562.63,0.00,1610004322012 WRVS Teanlowe Day Centre Queensway Poulton FY6 7ST01-11-23 to 30-11-235261.00E,Electricity
Wyre Council,http://opendatacommunities.org/doc/district-council/wyre,30/12/2023,People and Places,Cultural and Related Services,132A,OPUS Energy LTD,19/12/2023,PE155204,129.50,0.00,"1610004863632 Beach Bungalows, The Esplanade, Fleetwood FY7 6QD 01-11-23 to 30-11-23416.00E",Electricity
Wyre Council,http://opendatacommunities.org/doc/district-council/wyre,30/12/2023,People and Places,Environmental Services,132B,OPUS Energy LTD,19/12/2023,PE155201,228.20,0.00,"16100047442413 Stanah Pumphouse 11, River Road, Thornton Cleveleys FY5 5LR01-11-23 to 30-11-23674.00E",Electricity
Wyre Council,http://opendatacommunities.org/doc/district-council/wyre,30/12/2023,People and Places,Environmental Services,132B,Corona Energy Retail 4 Limited,19/12/2023,PE155156,272.00,0.00,1600000023675 Royles Brook Pumping Station  Off Victoria Road East Thornton FY55OX 01/11/23 to 30/11/23 (775kWh),Electricity
Wyre Council,http://opendatacommunities.org/doc/district-council/wyre,30/12/2023,People and Places,Cultural and Related Services,132A,Corona Energy Retail 4 Limited,19/12/2023,PE155155,1173.18,0.00,1630000670291 Promendae Cafe North  Promenade Thornton-Cleveleys FY51DB 01/11/23 to 30/11/23 (3131kWh),Electricity
Wyre Council,http://opendatacommunities.org/doc/district-council/wyre,30/12/2023,People and Places,Planning and Development Servs,132C,Corona Energy Retail 4 Limited,19/12/2023,PE155154,804.01,0.00,1620000784666 Main Hall Adelaide Street  Fleetwood FY76AB 01/11/23 to 30/11/23 (0kWh),Electricity
Wyre Council,http://opendatacommunities.org/doc/district-council/wyre,30/12/2023,People and Places,Cultural and Related Services,132A,Corona Energy Retail 4 Limited,19/12/2023,PE155160,9762.23,0.00,1600000162875 Marine Hall The Esplanade  Fleetwood FY76HF 01/11/23 to 30/11/23 (24719kWh),Electricity
Wyre Council,http://opendatacommunities.org/doc/district-council/wyre,30/12/2023,People and Places,Support Services,135B,Corona Energy Retail 4 Limited,19/12/2023,PE155157,15014.95,0.00,1600000162857 Civic Centre Breck Road  Blackpool FY39DT 01/11/23 to 30/11/23 (41727kWh),Electricity
Wyre Council,http://opendatacommunities.org/doc/district-council/wyre,30/12/2023,People and Places,Planning and Development Servs,132C,Corona Energy Retail 4 Limited,19/12/2023,PE155158,2445.47,0.00,1640000184606 Council Depot Copse Road  Fleetwood FY76RP 01/11/23 to 30/11/23 (6652kWh),Electricity
Wyre Council,http://opendatacommunities.org/doc/district-council/wyre,30/12/2023,People and Places,Cultural and Related Services,132A,Corona Energy Retail 4 Limited,19/12/2023,PE155159,274.61,0.00,1640000233705 Coastal Observation Point  Rossal Point Fleetwood FY78AF 01/11/23 to 30/11/23 (731kWh),Electricity
Wyre Council,http://opendatacommunities.org/doc/district-council/wyre,30/12/2023,People and Places,Planning and Development Servs,132C,Drax Energy Solutions Limited,14/12/2023,PE155123,122.81,0.00,"3200000534807 LL Supply, Dock AVe, Fleetwood, FY7 6PS 01/11/23 to 30/11/23 (35.07kWh)",Electricity
Wyre Council,http://opendatacommunities.org/doc/district-council/wyre,30/12/2023,People and Places,Planning and Development Servs,132C,Drax Energy Solutions Limited,14/12/2023,PE155122,127.72,0.00,"3200000534791 Unit 10 Dock Ave, Fleetwood, FY7 6PS 01/11/23 to 30/11/23 (35.07kWh)",Electricity
Wyre Council,http://opendatacommunities.org/doc/district-council/wyre,30/12/2023,People and Places,Planning and Development Servs,132C,Drax Energy Solutions Limited,14/12/2023,PE155121,129.12,0.00,"320000534782 Unit 9 Dock Ave, Fleetwood, FY7 6PS 01/11/23 to 30/11/23 (35.07kWh)",Electricity
Wyre Council,http://opendatacommunities.org/doc/district-council/wyre,30/12/2023,People and Places,Planning and Development Servs,132C,Drax Energy Solutions Limited,19/12/2023,PE155106,448.89,0.00,"3200000534694 1 Dock Ave, Fleetwood, FY7  6PS 12/09/23 to 21/09/23 (418.2kWh)",Electricity
Wyre Council,http://opendatacommunities.org/doc/district-council/wyre,30/12/2023,People and Places,Planning and Development Servs,132C,Drax Energy Solutions Limited,19/12/2023,PE155106,84.59,0.00,"3200000534694 1 Dock Ave, Fleetwood, FY7  6PS 12/09/23 to 21/09/23",Electricity
Wyre Council,http://opendatacommunities.org/doc/district-council/wyre,30/12/2023,People and Places,Planning and Development Servs,132C,Drax Energy Solutions Limited,19/12/2023,PE155105,396.02,0.00,"3200000534694 Unit 1 Dock Ave, FY7 6PS  01/09/23 to 11/09/23 (22.5kWh)",Electricity
Wyre Council,http://opendatacommunities.org/doc/district-council/wyre,30/12/2023,People and Places,Planning and Development Servs,132C,Drax Energy Solutions Limited,19/12/2023,PE155105,3.33,0.00,"3200000534694 Unit 1 Dock Ave, FY7 6PS  01/09/23 to 11/09/23",Electricity
Wyre Council,http://opendatacommunities.org/doc/district-council/wyre,30/12/2023,People and Places,Planning and Development Servs,132C,Drax Energy Solutions Limited,19/12/2023,PE155104,1114.91,0.00,"3200000534694 Unit 1 Dock Ave, FY7 6PS  01/08/23 to 31/08/23 (32.72kWh)",Electricity
Wyre Council,http://opendatacommunities.org/doc/district-council/wyre,30/12/2023,People and Places,Planning and Development Servs,132C,Drax Energy Solutions Limited,19/12/2023,PE155104,3.33,0.00,"3200000534694 Unit 1 Dock Ave, FY7 6PS  01/08/23 to 31/08/23",Electricity
Wyre Council,http://opendatacommunities.org/doc/district-council/wyre,30/12/2023,People and Places,Planning and Development Servs,132C,Drax Energy Solutions Limited,19/12/2023,PE155103,60.00,0.00,"3200000534694 Unit 1 Dock Ave, FY7 6PS Third  Party Charges",Electricity
Wyre Council,http://opendatacommunities.org/doc/district-council/wyre,30/12/2023,People and Places,Planning and Development Servs,132C,Drax Energy Solutions Limited,19/12/2023,PE155103,20.00,0.00,"3200000534694 Unit 1 Dock Ave, FY7 6PS Third  Party Charges",Electricity
Wyre Council,http://opendatacommunities.org/doc/district-council/wyre,30/12/2023,People and Places,Planning and Development Servs,132C,Drax Energy Solutions Limited,19/12/2023,PE155102,354.02,0.00,"3200000534694 Unit 1 Dock Ave, FY7 6PS Third  Party Charges",Electricity
Wyre Council,http://opendatacommunities.org/doc/district-council/wyre,30/12/2023,People and Places,Planning and Development Servs,132C,Drax Energy Solutions Limited,19/12/2023,PE155101,50.00,0.00,"3200000534694 Unit 1 Dock Ave, FY7 6PS Third  Party Charges",Electricity
Wyre Council,http://opendatacommunities.org/doc/district-council/wyre,30/12/2023,Resources,Planning and Development Servs,132C,Drax Energy Solutions Limited,19/12/2023,RS155107,192.36,0.00,"3200000534694 Unit 1 Dock Ave, FY7 6PS Third  Party Charges",Electricity
Wyre Council,http://opendatacommunities.org/doc/district-council/wyre,30/12/2023,People and Places,Cultural and Related Services,132A,Engie Power Limited,21/12/2023,PE155226,91.17,0.00,"1640000400837 Beach Huts, The  Esplanade, Fleetwood, FY7 6QD 01/11/23 to 30/11/23 (133.3kWh) E",Electricity
Wyre Council,http://opendatacommunities.org/doc/district-council/wyre,30/12/2023,People and Places,Environmental Services,132B,Engie Power Limited,19/12/2023,PE155252,243.38,0.00,"1610004933625 Springfield  Pumping Station 17, Fleeetwood Road, Fleetwood, Lancashire, FY7 8TW 01/11/23  to 30/11/23 (511.9kWh) E",Electricity
Wyre Council,http://opendatacommunities.org/doc/district-council/wyre,30/12/2023,People and Places,Environmental Services,132B,Engie Power Limited,19/12/2023,PE155243,263.30,0.00,"1610004845313 Fleetwood Corp  Cemetery, Beach Rd, Fleetwood, FY7 8PH 01/11/23 to 30/11/23 (728.9kWh) E",Electricity
Wyre Council,http://opendatacommunities.org/doc/district-council/wyre,30/12/2023,People and Places,Environmental Services,132B,Engie Power Limited,19/12/2023,PE155242,435.40,0.00,"1610004845304 Fleetwood Corp  Cemetery, Beach Rd, Fleetwood, FY7 8PH 01/11/23 to 30/11/23 (999.1kWh) A",Electricity
Wyre Council,http://opendatacommunities.org/doc/district-council/wyre,30/12/2023,People and Places,Cultural and Related Services,132A,Engie Power Limited,19/12/2023,PE155239,71.41,0.00,"1610004846502 Valve House,  Marine Lake, Laidleys Walk, Fleetwood, FY7 7JL 01/11/23 to 30/11/23 (0.7kWh)  E",Electricity
Wyre Council,http://opendatacommunities.org/doc/district-council/wyre,30/12/2023,People and Places,Cultural and Related Services,132A,Engie Power Limited,19/12/2023,PE155237,535.08,0.00,"1610004863623 Pitch &amp; Putt  Kiosk, Carr Rd, The Esplanade, Fleetwood, FY7 6QE 01/11/23 to 30/11/23  (1272.5kWh) E",Electricity
Wyre Council,http://opendatacommunities.org/doc/district-council/wyre,30/12/2023,People and Places,Cultural and Related Services,132A,Engie Power Limited,19/12/2023,PE155236,359.01,0.00,"1610004863605 Central Toilets  Kiosk, The Esplanade, Fleetwood, FY7 7BE 01/11/23 to 30/11/23 (806.7kWh) A",Electricity
Wyre Council,http://opendatacommunities.org/doc/district-council/wyre,30/12/2023,People and Places,Cultural and Related Services,132A,Engie Power Limited,19/12/2023,PE155235,176.03,0.00,"1610004846558 Pump Station, The  Esplanade, Fleetwood, FY7 6HF 01/11/23 to 30/11/23 (293.9kWh) A",Electricity
Wyre Council,http://opendatacommunities.org/doc/district-council/wyre,30/12/2023,People and Places,Cultural and Related Services,132A,Engie Power Limited,06/12/2023,PE152836,774.28,0.00,"1610004846558 Pump Station, The Esplanade,  Fleetwood, FY7 6HF 01/08/23 to 31/08/23 A (1922.1kWh)",Electricity
Wyre Council,http://opendatacommunities.org/doc/district-council/wyre,30/12/2023,People and Places,Cultural and Related Services,132A,Engie Power Limited,19/12/2023,PE155256,290.78,0.00,"1610004897385 Tennis Pavillion,  Memorial Park, Fleetwood, FY7 7AE 01/11/23 to 30/11/23 (671.8kWh) E",Electricity
Wyre Council,http://opendatacommunities.org/doc/district-council/wyre,30/12/2023,People and Places,Cultural and Related Services,132A,Engie Power Limited,19/12/2023,PE155250,535.12,0.00,"1610004897400 Ladies Bowls  Pavilion, Memorial Park, Fleetwood, FY7 7AE 01/11/23 to 30/11/23 (1272.6kWh)  E",Electricity
Wyre Council,http://opendatacommunities.org/doc/district-council/wyre,30/12/2023,People and Places,Cultural and Related Services,132A,Engie Power Limited,19/12/2023,PE155249,304.27,0.00,"1610004897394 Bowls House,  Memorial Park, Fleetwood, FY7 7AE 01/11/23 to 30/11/23 (653.3kWh) A",Electricity
Wyre Council,http://opendatacommunities.org/doc/district-council/wyre,30/12/2023,People and Places,Cultural and Related Services,132A,Engie Power Limited,19/12/2023,PE155244,116.01,0.00,"1610004775074 The Windmill,  Fleetwood Rd North, Thornton Cleveleys, FY5 4BP 01/11/23 to 30/11/23  (125.7kWh) A",Electricity
Wyre Council,http://opendatacommunities.org/doc/district-council/wyre,30/12/2023,People and Places,Cultural and Related Services,132A,Engie Power Limited,19/12/2023,PE155240,361.45,0.00,"1610004775083 The Windmill,  Fleetwood Road North, Thornton Cleveleys, FY5 4BP 01/11/23 to 30/11/23  (1069.8kWh) E",Electricity
Wyre Council,http://opendatacommunities.org/doc/district-council/wyre,30/12/2023,People and Places,Cultural and Related Services,132A,Engie Power Limited,06/12/2023,PE154643,463.76,0.00,"The Windmill, Fleetwood Road North, Thornton Cleveleys FY5 4BP for the period 01/10/23-31/10/23  1438.1kWh used",Electricity
Wyre Council,http://opendatacommunities.org/doc/district-council/wyre,30/12/2023,People and Places,Planning and Development Servs,132C,Engie Power Limited,19/12/2023,PE155224,71.07,0.00,"1640000947181 Kiosk 6, Fleetwood  Market, Adelaide St, Fleetwood, FY7 6AB 01/11/23 to 30/11/23 (71.8kWh) A",Electricity
Wyre Council,http://opendatacommunities.org/doc/district-council/wyre,30/12/2023,People and Places,Planning and Development Servs,132C,Engie Power Limited,19/12/2023,PE155223,53.09,0.00,"1640000947172 Kiosk 5, Fleetwood  Market, Adelaide St, Fleetwood, FY7 6AB 01/11/23 to 30/11/23 (16.8kWh) A",Electricity
Wyre Council,http://opendatacommunities.org/doc/district-council/wyre,30/12/2023,People and Places,Planning and Development Servs,132C,Engie Power Limited,19/12/2023,PE155222,56.33,0.00,"1640000947163 Kiosk 4, Fleetwood  Market, Adelaide St, Fleetwood, FY7 6AB 01/11/23 to 30/11/23 (26.7kWh) A",Electricity
Wyre Council,http://opendatacommunities.org/doc/district-council/wyre,30/12/2023,People and Places,Planning and Development Servs,132C,Engie Power Limited,19/12/2023,PE155221,55.77,0.00,"1640000947154 Kiosk 3, Fleetwood  Market, Adelaide St, Fleetwood, FY7 6AB 01/11/23 to 30/11/23 (25kWh) A",Electricity
Wyre Council,http://opendatacommunities.org/doc/district-council/wyre,30/12/2023,People and Places,Planning and Development Servs,132C,Engie Power Limited,19/12/2023,PE155232,73.06,0.00,"1640000947206 Kiosk 8, Fleetwood  Market, Adelaide St, Fleetwood, FY7 6AB 01/11/23 to 30/11/23 (77.9kWh) A",Electricity
Wyre Council,http://opendatacommunities.org/doc/district-council/wyre,30/12/2023,People and Places,Planning and Development Servs,132C,Engie Power Limited,19/12/2023,PE155231,289.10,0.00,"1640000947190 Kiosk 7, Fleetwood  Market, Adelaide St, Fleetwood, FY7 6AB 01/11/23 to 30/11/23 (738.8kWh) A",Electricity
Wyre Council,http://opendatacommunities.org/doc/district-council/wyre,30/12/2023,People and Places,Planning and Development Servs,132C,Engie Power Limited,19/12/2023,PE155234,57.11,0.00,"1640000947215 Landlord Supply,  Fleetwood Market, Adelaide St, Fleetwood, FY7 6AB 01/11/23 to 30/11/23  (29.1kWh) A",Electricity
Wyre Council,http://opendatacommunities.org/doc/district-council/wyre,30/12/2023,People and Places,Planning and Development Servs,132C,Engie Power Limited,19/12/2023,PE155228,397.48,0.00,"1640000947145 Kiosk 2, Fleetwood  Market, Adelaie St, Fleetwood, FY7 6AB 01/11/23 to 30/11/23 (1045.6kWh) A",Electricity
Wyre Council,http://opendatacommunities.org/doc/district-council/wyre,30/12/2023,People and Places,Planning and Development Servs,132C,Engie Power Limited,19/12/2023,PE155227,53.42,0.00,"1640000947136 Kiosk 1, Fleetwood  Market, Adelaide St, Fleetwood, FY7 6AB 01/11/23 to 30/11/23 (17.6kWh) A",Electricity
Wyre Council,http://opendatacommunities.org/doc/district-council/wyre,30/12/2023,People and Places,Planning and Development Servs,132C,Engie Power Limited,06/12/2023,PE153775,250.75,0.00,"1640000947190 Kiosk 7, Fleetwood Market,  Adelaide St, Fleetwood, FY7 6AB 01/09/23 to 30/09/23 (621.5kWh) A",Electricity
Wyre Council,http://opendatacommunities.org/doc/district-council/wyre,30/12/2023,People and Places,Environmental Services,132B,Engie Power Limited,19/12/2023,PE155265,149.30,0.00,"1630000819048 Public  Conveniences, Cherestanc Square, Garstang, Lancashire, PR3 1EF 01/11/23 to  30/11/23 (219kWh) E",Electricity
Wyre Council,http://opendatacommunities.org/doc/district-council/wyre,30/12/2023,People and Places,Environmental Services,132B,Engie Power Limited,19/12/2023,PE155264,297.96,0.00,"1630000740099 PC, Wyreside,  Knott End on Sea, FY6 0AA 01/11/23 to 30/11/23 (635.6kWh) E",Electricity
Wyre Council,http://opendatacommunities.org/doc/district-council/wyre,30/12/2023,People and Places,Environmental Services,132B,Engie Power Limited,19/12/2023,PE155263,241.47,0.00,"1630000584632 PC, rear of Tesco,  Rough Lea Rd, Thornton Cleveleys, FY5 1BW 01/11/23 to 30/11/23 (477.3kWh) E",Electricity
Wyre Council,http://opendatacommunities.org/doc/district-council/wyre,30/12/2023,People and Places,Environmental Services,132B,Engie Power Limited,19/12/2023,PE155262,109.38,0.00,"1620001343345 PC, Thornton  Centre, Victoria Rd East, FY5 5DZ 01/11/23 to 30/11/23 (107.1kWh) A",Electricity
Wyre Council,http://opendatacommunities.org/doc/district-council/wyre,30/12/2023,People and Places,Environmental Services,132B,Engie Power Limited,19/12/2023,PE155254,137.28,0.00,"1610004885487 PC, Preston St,  Fleetwood, FY7 6JA 01/11/23 to 30/11/23 (185.3kWh) E",Electricity
Wyre Council,http://opendatacommunities.org/doc/district-council/wyre,30/12/2023,People and Places,Environmental Services,132B,Engie Power Limited,19/12/2023,PE155238,148.38,0.00,"1610004845322 PC, Beach Rd,  Fleetwood, FY7 8PH 01/11/23 to 30/11/23 (216.4kWh) E",Electricity
Wyre Council,http://opendatacommunities.org/doc/district-council/wyre,30/12/2023,People and Places,Environmental Services,132B,Engie Power Limited,19/12/2023,PE155245,218.35,0.00,"1610013371994 PC, The Weind,  Great Eccleston, PR3 0ZU 01/11/23 to 30/11/23 (412.5kWh) E",Electricity
Wyre Council,http://opendatacommunities.org/doc/district-council/wyre,30/12/2023,People and Places,Environmental Services,132B,Engie Power Limited,19/12/2023,PE155248,323.04,0.00,"1610023251891 PC, Gubberford  Lane, Scorton, PR3 1BL 01/11/23 to 30/11/23 (705.9kWh) E",Electricity
Wyre Council,http://opendatacommunities.org/doc/district-council/wyre,30/12/2023,People and Places,Environmental Services,132B,Engie Power Limited,19/12/2023,PE155247,249.22,0.00,"1610023195261 PC, Smallwood Hey,  Pilling, Preston, PR3 6HJ 01/11/23 to 30/11/23 (499kWh) E",Electricity
Wyre Council,http://opendatacommunities.org/doc/district-council/wyre,30/12/2023,People and Places,Environmental Services,132B,Engie Power Limited,19/12/2023,PE155246,158.43,0.00,"1610023169146 Public  Conveniences, Barton Square, Knott End on Sea, Lancashire, FY6 0AG 01/11/23  to 30/11/23 (254.7kWh) E",Electricity
Wyre Council,http://opendatacommunities.org/doc/district-council/wyre,30/12/2023,People and Places,Cultural and Related Services,132A,Engie Power Limited,19/12/2023,PE155229,275.89,0.00,"1640000118533 Feeder Pillar,  Vicarage Rd, Poulton le Fylde, FY6 7BE 01/11/23 to 30/11/23 (698.4kWh) A",Electricity
Wyre Council,http://opendatacommunities.org/doc/district-council/wyre,30/12/2023,People and Places,Cultural and Related Services,132A,Engie Power Limited,19/12/2023,PE155261,106.99,0.00,"1640000004924 Feeder Pillar,  Hawthorne Park, Hawthorne Rd, Thornton Cleveleys, FY5 5DH 01/11/23 to  30/11/23 (100.7kWh) E",Electricity
Wyre Council,http://opendatacommunities.org/doc/district-council/wyre,30/12/2023,People and Places,Cultural and Related Services,132A,Engie Power Limited,19/12/2023,PE155257,71.16,0.00,"1610004863776 Tourist  Information Office, The Esplanade, Fleetwood, FY7 6DL 01/11/23 to 30/11/23  (0kWh) A",Electricity
Wyre Council,http://opendatacommunities.org/doc/district-council/wyre,30/12/2023,People and Places,Cultural and Related Services,132A,Engie Power Limited,19/12/2023,PE155255,535.55,0.00,"1610004890636 Fishermans Walk,  Lord St, Fleetwood, FY7 6DU 01/11/23 to 30/11/23 (1273.8kWh) E",Electricity
Wyre Council,http://opendatacommunities.org/doc/district-council/wyre,30/12/2023,People and Places,Cultural and Related Services,132A,Engie Power Limited,01/12/2023,PE154644,96.96,0.00,"King Georges Field, Broadwater, Fleetwood Road, Fleetwood FY7 8BD for the period 01/10/23-31/10/23  88.9kWh used",Electricity
Wyre Council,http://opendatacommunities.org/doc/district-council/wyre,30/12/2023,People and Places,Cultural and Related Services,132A,Engie Power Limited,19/12/2023,PE155251,102.34,0.00,"1610004932427 King Georges  Field, Boradwater, Fleetwood Road, Fleetwood, Lancashire, FY7 8BD 01/11/23 to  30/11/23 (118.3kWh) E",Electricity
Wyre Council,http://opendatacommunities.org/doc/district-council/wyre,30/12/2023,People and Places,Cultural and Related Services,132A,Engie Power Limited,19/12/2023,PE155253,192.89,0.00,"1610004867488 Mount Pavilion,  Mount Rd, Fleetwood, FY7 6EZ 01/11/23 to 30/11/23 (461.8kWh) E",Electricity
Wyre Council,http://opendatacommunities.org/doc/district-council/wyre,30/12/2023,People and Places,Environmental Services,132B,Engie Power Limited,19/12/2023,PE155230,192.08,0.00,"1640000218200 PC, Bold St,  Fleetwood, FY7 6BW 01/11/23 to 30/11/23 (442kWh) E",Electricity
Wyre Council,http://opendatacommunities.org/doc/district-council/wyre,30/12/2023,People and Places,Environmental Services,132B,Engie Power Limited,19/12/2023,PE155225,144.52,0.00,"1640000258365 PC, River Road,  Thornton Cleveleys, FY5 5LR 01/11/23 to 30/11/23 (296.5kWh) E",Electricity
Wyre Council,http://opendatacommunities.org/doc/district-council/wyre,30/12/2023,People and Places,Environmental Services,132B,Engie Power Limited,19/12/2023,PE155241,470.04,0.00,"1610004828771 Council Depot,  Chatsworth Day Centre, Chatsworth Ave, Fleetwood, FY7 8AP 01/11/23 to  30/11/23 (1094.1kWh) E",Electricity
Wyre Council,http://opendatacommunities.org/doc/district-council/wyre,30/12/2023,People and Places,Cultural and Related Services,132A,Engie Power Limited,19/12/2023,PE155259,193.02,0.00,"1610004867441 Mount Hotel, Mount  Rd, Fleetwood, FY7 6RA 01/11/23 to 30/11/23 (462.3kWh) E",Electricity
Wyre Council,http://opendatacommunities.org/doc/district-council/wyre,30/12/2023,People and Places,Cultural and Related Services,132A,Engie Power Limited,19/12/2023,PE155258,447.55,0.00,"1610004867432 Mount Hotel, Mount  Rd, Fleetwood, FY7 6RA 01/11/23 to 30/11/23 (1032.4kWh) E",Electricity
Wyre Council,http://opendatacommunities.org/doc/district-council/wyre,30/12/2023,People and Places,Cultural and Related Services,132A,Engie Power Limited,01/12/2023,PE154642,164.97,0.00,"The Mount Pavilion, Mount Road, Fleetwood FY7 6EZ for the period 01/10/23-31/10/23  346.90kWh used",Electricity
Wyre Council,http://opendatacommunities.org/doc/district-council/wyre,30/12/2023,People and Places,Cultural and Related Services,132A,Engie Power Limited,01/12/2023,PE154645,165.05,0.00,"Mount Hotel, Mount Road, Fleetwood FY7 6RA  for the period 01/10/23-31/10/23  347.2kWh used",Electricity
Wyre Council,http://opendatacommunities.org/doc/district-council/wyre,30/12/2023,People and Places,Cultural and Related Services,132A,Npower Commercial Gas Ltd,18/12/2023,PE155118,473.84,0.00,77981703 wrong address,Electricity
Wyre Council,http://opendatacommunities.org/doc/district-council/wyre,30/12/2023,People and Places,Cultural and Related Services,132A,Npower Commercial Gas Ltd,18/12/2023,PE155113,3817.70,0.00,77981703 wrong address,Electricity
Wyre Council,http://opendatacommunities.org/doc/district-council/wyre,30/12/2023,People and Places,Cultural and Related Services,132A,Npower Commercial Gas Ltd,18/12/2023,PE155108,473.84,0.00,"77981703 Poulton Swimming and Fitness Centre, Breck Rd, Poulton, FY6 7HJ 01/10/23 to 31/10/23 (0kWh)",Electricity
Wyre Council,http://opendatacommunities.org/doc/district-council/wyre,30/12/2023,People and Places,Cultural and Related Services,132A,Npower Commercial Gas Ltd,18/12/2023,PE155363,4745.78,0.00,"777981703 Poulton Swimming and Fitness Centre, Breck Rd, Poulton, FY6 7HJ 01/11/23 to 30/11/23 (58,282.0kWh)",Electricity
Wyre Council,http://opendatacommunities.org/doc/district-council/wyre,30/12/2023,People and Places,Cultural and Related Services,132A,Npower Commercial Gas Ltd,18/12/2023,PE155117,-3817.70,0.00,77981703 wrong address,Electricity
Wyre Council,http://opendatacommunities.org/doc/district-council/wyre,30/12/2023,People and Places,Cultural and Related Services,132A,Npower Commercial Gas Ltd,18/12/2023,PE155362,2312.86,0.00,"9159039903 Garstang Swimming Centre, YMCA, Oak Rd, Garstang, PR3 1HT 01/11/23 to 30/11/23 (35,074.0kWh)",Electricity
Wyre Council,http://opendatacommunities.org/doc/district-council/wyre,30/12/2023,People and Places,Cultural and Related Services,132A,Npower Commercial Gas Ltd,18/12/2023,PE155116,1755.94,0.00,"9159039903 Garstang Swimming Centre, YMCA, Oak Rd, Garstang, PR3 1HT 01/10/23 to 31/10/23 (25,830.9kWh)",Electricity
Wyre Council,http://opendatacommunities.org/doc/district-council/wyre,30/12/2023,People and Places,Cultural and Related Services,132A,Npower Commercial Gas Ltd,18/12/2023,PE155110,10065.48,0.00,"20411606 Fleetwood YMCA, The Esplanade, Fleetwood, FY7 6HF, 01/10/23 to 31/10/23 (151,243.2kWh)",Electricity
Wyre Council,http://opendatacommunities.org/doc/district-council/wyre,30/12/2023,People and Places,Cultural and Related Services,132A,Npower Commercial Gas Ltd,18/12/2023,PE155112,10065.48,0.00,20411606 wrong address,Electricity
Wyre Council,http://opendatacommunities.org/doc/district-council/wyre,30/12/2023,People and Places,Cultural and Related Services,132A,Npower Commercial Gas Ltd,18/12/2023,PE155111,-10065.48,0.00,20411606 wrong address,Electricity
Wyre Council,http://opendatacommunities.org/doc/district-council/wyre,30/12/2023,People and Places,Cultural and Related Services,132A,Npower Commercial Gas Ltd,18/12/2023,PE155358,-641.48,0.00,"56039908 Garstang Sports Centre, 34 Windsor Rd Garstang, PR3 1ED, (-8146.2kWh)",Electricity
Wyre Council,http://opendatacommunities.org/doc/district-council/wyre,30/12/2023,People and Places,Cultural and Related Services,132A,Npower Commercial Gas Ltd,18/12/2023,PE155115,848.83,0.00,"50171305 Thornton Cleveleys Sports Centre, Victoria Rd E, Thornton Cleveleys, FY5 3SX 01/10/23 to 31/10/23 (8,872.9kWh)",Electricity
Wyre Council,http://opendatacommunities.org/doc/district-council/wyre,30/12/2023,People and Places,Cultural and Related Services,132A,Npower Commercial Gas Ltd,18/12/2023,PE155364,17148.85,0.00,"50171305 Thornton Cleveleys Sports Centre, Victoria Rd, FY5 3SX 01/11/23 to 30/11/23 (272,494.7kWh)",Electricity
Wyre Council,http://opendatacommunities.org/doc/district-council/wyre,30/12/2023,People and Places,Cultural and Related Services,132A,Npower Commercial Gas Ltd,18/12/2023,PE155361,641.48,0.00,"56039908 Garstang Sports Centre, 34 Windsor Rd, Garstang, PR3 1ED 01/11/23 to 30/11/23 (8,146.2kWh)",Electricity
Wyre Council,http://opendatacommunities.org/doc/district-council/wyre,30/12/2023,People and Places,Cultural and Related Services,132A,Npower Commercial Gas Ltd,18/12/2023,PE155114,298.76,0.00,"56039908 Garstang Sports Centre, 34 Windsor Rd, Garstang, PR3 1ED, 01/10/23 to 31/10/23 (3,415.3kWh)",Electricity
Wyre Council,http://opendatacommunities.org/doc/district-council/wyre,30/12/2023,People and Places,Cultural and Related Services,132A,Npower Commercial Gas Ltd,18/12/2023,PE155357,668.98,0.00,"56039908 Garstang Sports Centre, 34 Winsdor Rd, Garstang PR3 1ED 01/11/23 to 30/11/23 (8,546.8kWh)",Electricity
Wyre Council,http://opendatacommunities.org/doc/district-council/wyre,30/12/2023,Resources,Support Services,135B,Zurich Municipal,15/12/2023,RS155345,50884.47,0.00,Combined renewal invoice,Employee Related Insurance
Wyre Council,http://opendatacommunities.org/doc/district-council/wyre,30/12/2023,Resources,Support Services,135B,Zurich Municipal,15/12/2023,RS155344,6092.65,0.00,Engineering inspection policy,Engineering Insurance
Wyre Council,http://opendatacommunities.org/doc/district-council/wyre,30/12/2023,Resources,Planning and Development Servs,132C,Preston City Council,18/12/2023,RS155348,206.00,0.00,WBA23 Brochures 125 copies,Event Hospitality
Wyre Council,http://opendatacommunities.org/doc/district-council/wyre,30/12/2023,Resources,Planning and Development Servs,132C,Preston City Council,18/12/2023,RS155348,47.95,0.00,2 x Correx boards for WBAs 2023,Event Hospitality
Wyre Council,http://opendatacommunities.org/doc/district-council/wyre,30/12/2023,People and Places,Planning and Development Servs,132C,Twelve Event Management LTD,06/12/2023,PE155041,343.40,0.00,Wyre Business Awards - Napkins,Event Hospitality
Wyre Council,http://opendatacommunities.org/doc/district-council/wyre,30/12/2023,People and Places,Planning and Development Servs,132C,Twelve Event Management LTD,06/12/2023,PE155042,9191.73,0.00,WBA Dinner,Event Hospitality
Wyre Council,http://opendatacommunities.org/doc/district-council/wyre,30/12/2023,People and Places,Planning and Development Servs,132C,DANIEL SINGS,12/12/2023,PE155188,500.00,0.00,WBA 2023 Entertainment - Daniel Sings,Event Hospitality
Wyre Council,http://opendatacommunities.org/doc/district-council/wyre,30/12/2023,People and Places,Support Services,135B,Amazon Business,19/12/2023,PE155330,4.94,0.00,Christmas raffle prizes,Event Hospitality
Wyre Council,http://opendatacommunities.org/doc/district-council/wyre,30/12/2023,People and Places,Support Services,135B,Amazon Business,19/12/2023,PE155294,6.66,0.00,Christmas raffle prizes,Event Hospitality
Wyre Council,http://opendatacommunities.org/doc/district-council/wyre,30/12/2023,People and Places,Support Services,135B,Amazon Business,19/12/2023,PE155293,5.82,0.00,Christmas raffle prizes,Event Hospitality
Wyre Council,http://opendatacommunities.org/doc/district-council/wyre,30/12/2023,People and Places,Support Services,135B,Amazon Business,19/12/2023,PE155295,11.08,0.00,Christmas raffle prizes,Event Hospitality
Wyre Council,http://opendatacommunities.org/doc/district-council/wyre,30/12/2023,People and Places,Support Services,135B,Amazon Business,19/12/2023,PE155332,3.99,0.00,Christmas raffle prizes,Event Hospitality
Wyre Council,http://opendatacommunities.org/doc/district-council/wyre,30/12/2023,People and Places,Planning and Development Servs,132C,Wingate Media Limited,12/12/2023,PE155185,600.00,0.00,Wyre Business Awards 2023 - videographer,Event Hospitality
Wyre Council,http://opendatacommunities.org/doc/district-council/wyre,30/12/2023,People and Places,Cultural and Related Services,132A,Lancashire And North West Magazine,04/12/2023,PE154375,447.50,0.00,Weddings edition,Exhibitions and Events
Wyre Council,http://opendatacommunities.org/doc/district-council/wyre,30/12/2023,People and Places,Cultural and Related Services,132A,Play Inclusion Project,11/12/2023,PE155173,939.66,0.00,Play Inclusion Project SEND Saturday CLUB November 2023 - March 2024,External Coaching
Wyre Council,http://opendatacommunities.org/doc/district-council/wyre,30/12/2023,People and Places,Cultural and Related Services,132A,The Creation Station Blackpool,05/12/2023,PE154966,550.00,0.00,"Payment 2 of 2 for arts and craft sessions at Victoria Day Centre, Autumn 2023 - 550",External Coaching
Wyre Council,http://opendatacommunities.org/doc/district-council/wyre,30/12/2023,Resources,Support Services,135B,Zurich Municipal,15/12/2023,RS155346,4366.06,0.00,Crime/Fidelity Guarantee,Fidelity Insurance
Wyre Council,http://opendatacommunities.org/doc/district-council/wyre,30/12/2023,People and Places,Environmental Services,132B,NWIFCA      N W Inshore Fisheries and Conservation,12/12/2023,PE155186,586.00,0.00,Shellfish Collections sept 23- Mar24,Food and Drug Etc Samples
Wyre Council,http://opendatacommunities.org/doc/district-council/wyre,30/12/2023,People and Places,Cultural and Related Services,132A,Engie Gas Limited,15/12/2023,PE155219,1348.50,0.00,"73570403 Thornton Little  Theatre, Victoia Rd East, Thornton Cleveleys, FY5 3SZ 01/11/23 to 30/11/23  (13250kWh)",Gas
Wyre Council,http://opendatacommunities.org/doc/district-council/wyre,30/12/2023,People and Places,Planning and Development Servs,132C,Engie Gas Limited,15/12/2023,RS155270,6098.21,0.00,"49097909 Wyre BC, Adelaide St,  Fleetwood, FY7 6AB 01/11/23 to 30/11/23 (70177.1kWh)",Gas
Wyre Council,http://opendatacommunities.org/doc/district-council/wyre,30/12/2023,People and Places,Support Services,135B,Engie Gas Limited,15/12/2023,PE155220,7386.01,0.00,"20867010 Wyre Civic Centre,  Breck Rd, Poulton le Fylde, FY6 7PU 01/11/23 to 30/11/23 (85611.8kWh)",Gas
Wyre Council,http://opendatacommunities.org/doc/district-council/wyre,30/12/2023,People and Places,Planning and Development Servs,132C,Engie Gas Limited,15/12/2023,PE155218,418.20,0.00,"9322410204 Copse Rd Depot, Copse  Rd, Fleetwood, FY7 6RP 01/11/23 to 30/11/23 (2283.9kWh)",Gas
Wyre Council,http://opendatacommunities.org/doc/district-council/wyre,30/12/2023,Resources,Planning and Development Servs,132C,Konica Minolta Business Solutions UK LTD,20/12/2023,RS155353,22.30,0.00,Copy and print charges 2023-2024  Fleetwood Market,Hire of Tools or Equipment
Wyre Council,http://opendatacommunities.org/doc/district-council/wyre,30/12/2023,Resources,Planning and Development Servs,132C,Konica Minolta Business Solutions UK LTD,18/12/2023,RS155405,34.65,0.00,1840080773 - Fleetwood Market,Hire of Tools or Equipment
Wyre Council,http://opendatacommunities.org/doc/district-council/wyre,30/12/2023,Resources,Support Services,135B,Konica Minolta Business Solutions UK LTD,18/12/2023,RS154907,1510.65,0.00,"Bizhub C300i - Equipment numbers    1825856503,1825856487, 1825843155,   1825856493, 1825856455, 1825856489,   1825856490,1825843157, 1825856492,   1825863267, 1825858491, 1825856452,   1900083122, 190083356, 190083035    Contract number 420746628 - 29th",Hire of Tools or Equipment
Wyre Council,http://opendatacommunities.org/doc/district-council/wyre,30/12/2023,Resources,Central Services to the Public,131C,Huggg Limited,05/12/2023,RS154982,552750.00,0.00,"HS4 FundingDependants               265,450.00Attendance Allowance 30,500.00PCGC                       203,400.00Carers Allowance         53,400.00",Household Support Fund
Wyre Council,http://opendatacommunities.org/doc/district-council/wyre,30/12/2023,People and Places,Environmental Services,132B,Poulton Pets LTD,11/12/2023,PE155167,1401.00,0.00,Provision of stray dog kennelling service 2023/24,Impounded Dogs Costs
Wyre Council,http://opendatacommunities.org/doc/district-council/wyre,30/12/2023,Resources,Cultural and Related Services,132A,Daisy Communications LTD,11/12/2023,RS155033,13.87,0.00,Service Charges 01/12/23 to 31/12/23,Internet and Telephone Charges
Wyre Council,http://opendatacommunities.org/doc/district-council/wyre,30/12/2023,Resources,Cultural and Related Services,132A,Daisy Communications LTD,11/12/2023,RS155033,33.25,0.00,Service Charges 01/12/23 to 31/12/23,Internet and Telephone Charges
Wyre Council,http://opendatacommunities.org/doc/district-council/wyre,30/12/2023,Resources,Corporate and Democratic Core,131A,Daisy Communications LTD,11/12/2023,RS155033,13.87,0.00,Service Charges 01/12/23 to 31/12/23,Internet and Telephone Charges
Wyre Council,http://opendatacommunities.org/doc/district-council/wyre,30/12/2023,Resources,Support Services,135B,Daisy Communications LTD,11/12/2023,RS155033,19.39,0.00,Service Charges 01/12/23 to 31/12/23,Internet and Telephone Charges
Wyre Council,http://opendatacommunities.org/doc/district-council/wyre,30/12/2023,Resources,Support Services,135B,Daisy Communications LTD,11/12/2023,RS155033,80.86,0.00,Service Charges 01/12/23 to 31/12/23,Internet and Telephone Charges
Wyre Council,http://opendatacommunities.org/doc/district-council/wyre,30/12/2023,Resources,Support Services,135B,THE NETWORKING PEOPLE (TNP) LTD,14/12/2023,RS155324,4528.21,0.00," Annual Rental 0.1/0.1Gb Internet service, 1 year minimum term at Marine Hall,FY7 6HF",Internet and Telephone Charges
Wyre Council,http://opendatacommunities.org/doc/district-council/wyre,30/12/2023,Resources,Support Services,135B,Zurich Municipal,15/12/2023,RS155345,4989.75,0.00,Combined renewal invoice,Land Charges Insurance
Wyre Council,http://opendatacommunities.org/doc/district-council/wyre,30/12/2023,Resources,Support Services,135B,Forbes Solicitors,07/12/2023,RS154784,1577.50,0.00,Employment Law Advice,Legal Fees
Wyre Council,http://opendatacommunities.org/doc/district-council/wyre,30/12/2023,Resources,Support Services,135B,Forbes Solicitors,07/12/2023,RS154783,3994.00,0.00,Employment Advice,Legal Fees
Wyre Council,http://opendatacommunities.org/doc/district-council/wyre,30/12/2023,Resources,Support Services,135B,Sellick Partnership Limited,11/12/2023,RS154921,1187.50,0.00,Re Liz Palmer Locum Solicitor,Legal Fees
Wyre Council,http://opendatacommunities.org/doc/district-council/wyre,30/12/2023,Resources,Support Services,135B,Sellick Partnership Limited,18/12/2023,RS155343,281.25,0.00,Invoice INV527571  W/E 03/12/2023 - Elizabeth Palmer Land and Property locum Solicitor 4.50 @ 62.50,Legal Fees
Wyre Council,http://opendatacommunities.org/doc/district-council/wyre,30/12/2023,Resources,Support Services,135B,Sellick Partnership Limited,18/12/2023,RS154917,1218.75,0.00,Re Liz Palmer Locum Solicitor,Legal Fees
Wyre Council,http://opendatacommunities.org/doc/district-council/wyre,30/12/2023,Resources,Support Services,135B,Sellick Partnership Limited,18/12/2023,RS154917,125.00,0.00,Locum solicitor -  Elizabeth Palmer Invoice:  INV524541 1375.00 INV524543 1343.75 INV524540 31.25 balance owing relating to P/O RES0013941,Legal Fees
Wyre Council,http://opendatacommunities.org/doc/district-council/wyre,30/12/2023,Resources,Support Services,135B,Sellick Partnership Limited,18/12/2023,RS154918,1375.00,0.00,Locum solicitor -  Elizabeth Palmer Invoice:  INV524541 1375.00 INV524543 1343.75 INV524540 31.25 balance owing relating to P/O RES0013941,Legal Fees
Wyre Council,http://opendatacommunities.org/doc/district-council/wyre,30/12/2023,Resources,Support Services,135B,Sellick Partnership Limited,18/12/2023,RS154916,1250.00,0.00,Locum solicitor -  Elizabeth Palmer Invoice:  INV524541 1375.00 INV524543 1343.75 INV524540 31.25 balance owing relating to P/O RES0013941,Legal Fees
Wyre Council,http://opendatacommunities.org/doc/district-council/wyre,30/12/2023,Resources,Support Services,135B,Sellick Partnership Limited,11/12/2023,RS154920,1343.75,0.00,Re Liz Palmer Locum Solicitor,Legal Fees
Wyre Council,http://opendatacommunities.org/doc/district-council/wyre,30/12/2023,Resources,Support Services,135B,Sellick Partnership Limited,11/12/2023,RS154919,1250.00,0.00,Re Liz Palmer Locum Solicitor,Legal Fees
Wyre Council,http://opendatacommunities.org/doc/district-council/wyre,30/12/2023,People and Places,Support Services,135B,Sellick Partnership Limited,20/12/2023,PE155433,1187.50,0.00,W/E 10/12/2023 Elizabeth Palmer 19hrs x 62.50,Legal Fees
Wyre Council,http://opendatacommunities.org/doc/district-council/wyre,30/12/2023,People and Places,Highways,133B,Aitch Tools & Fasteners LTD,14/12/2023,PE155290,27.85,0.00,Materials,Maint. of Unadopted Assets - Engineers
Wyre Council,http://opendatacommunities.org/doc/district-council/wyre,30/12/2023,People and Places,Highways,133B,Dr Tree Surgeons,20/12/2023,PE155544,200.00,0.00,Quote Number: 914 (Garstang Road West)1 The removal of one blown over leaning tree on the highway asinstructed.200.00 200.00Total Net Amount: 200.00VAT @ 20%: 40.00Quote Total: 240.00,Maintenance of Trees and Shrubs
Wyre Council,http://opendatacommunities.org/doc/district-council/wyre,30/12/2023,People and Places,Environmental Services,132B,Everglades Nurseries TD,19/12/2023,PE155513,3948.10,0.00,"Date:31/10/2023             Quote document No 171395 SundriesBio Deg Rabbit Spiral Gaurds   Qty 1100  at 1.00 each = 1,100.00Bamboo Canes 3 ft QTY 1100 at 0.12 each  = 132.00 TransplantsAcer campestre 40/60 cm Qty 200 at 0.54 each =",Maintenance of Trees and Shrubs
Wyre Council,http://opendatacommunities.org/doc/district-council/wyre,30/12/2023,People and Places,Highways,133B,T-Fer Tree Surgeons,18/12/2023,PE155426,790.00,0.00,"Also Quote 0045 Broadwater Woods, Highways tree works along Bridle Way 790Total net amount  790VAT @20% 0All major tree works risks have been discussed with the tree contractor and include but not exclusively: weather, chainsaw use,",Maintenance of Trees and Shrubs
Wyre Council,http://opendatacommunities.org/doc/district-council/wyre,30/12/2023,People and Places,Support Services,135B,EK Motors Factors LTD,15/12/2023,PE155382,27.55,0.00,Parts,Materials and Consumables
Wyre Council,http://opendatacommunities.org/doc/district-council/wyre,30/12/2023,People and Places,Support Services,135B,EK Motors Factors LTD,15/12/2023,PE155380,14.85,0.00,Parts,Materials and Consumables
Wyre Council,http://opendatacommunities.org/doc/district-council/wyre,30/12/2023,People and Places,Support Services,135B,EK Motors Factors LTD,18/12/2023,PE155377,55.96,0.00,Parts,Materials and Consumables
Wyre Council,http://opendatacommunities.org/doc/district-council/wyre,30/12/2023,People and Places,Support Services,135B,EK Motors Factors LTD,15/12/2023,PE155376,66.92,0.00,Parts,Materials and Consumables
Wyre Council,http://opendatacommunities.org/doc/district-council/wyre,30/12/2023,People and Places,Support Services,135B,EK Motors Factors LTD,15/12/2023,PE155381,24.74,0.00,Parts,Materials and Consumables
Wyre Council,http://opendatacommunities.org/doc/district-council/wyre,30/12/2023,People and Places,Support Services,135B,EK Motors Factors LTD,15/12/2023,PE155379,59.34,0.00,Parts,Materials and Consumables
Wyre Council,http://opendatacommunities.org/doc/district-council/wyre,30/12/2023,People and Places,Support Services,135B,EK Motors Factors LTD,15/12/2023,PE155378,44.40,0.00,Parts,Materials and Consumables
Wyre Council,http://opendatacommunities.org/doc/district-council/wyre,30/12/2023,People and Places,Support Services,135B,HARRISONS OILS LTD,18/12/2023,PE155336,722.60,0.00,"Supply 1000 litres of Kerosene @ 72.26 ppl  Delivered 12/12/23 @ 16:58 Copse Road Depot, Fleetwood",Materials and Consumables
Wyre Council,http://opendatacommunities.org/doc/district-council/wyre,30/12/2023,People and Places,Environmental Services,132B,Key Engineering & Hygiene Supplies LTD,04/12/2023,PE154940,22.56,0.00,"Supply Evans Final Touch as your quote 21505Deliver to Wyre Council, Copse Road Depot, Copse Road, Fleetwood, FY7 6RP.",Materials and Consumables
Wyre Council,http://opendatacommunities.org/doc/district-council/wyre,30/12/2023,People and Places,Support Services,135B,Key Engineering & Hygiene Supplies LTD,01/12/2023,PE154925,20.56,0.00,"URGENT SUPPLY AS QUOTE 21189Delivery to Wyre Council, Copse Road Depot, Copse Road, Fleetwood, FY7 6RP.",Materials and Consumables
Wyre Council,http://opendatacommunities.org/doc/district-council/wyre,30/12/2023,People and Places,Environmental Services,132B,Killgerm Chemicals LTD,20/12/2023,PE155519,34.74,0.00,1x black Pearl grain bait (BLKPEARLWHEAT1K),Materials and Consumables
Wyre Council,http://opendatacommunities.org/doc/district-council/wyre,30/12/2023,People and Places,Environmental Services,132B,Killgerm Chemicals LTD,20/12/2023,PE155519,59.40,0.00,1x Selontra 3kg (SELONTRA003k),Materials and Consumables
Wyre Council,http://opendatacommunities.org/doc/district-council/wyre,30/12/2023,People and Places,Environmental Services,132B,Killgerm Chemicals LTD,20/12/2023,PE155519,31.50,0.00,2x Sakarat D whole wheat (SAKDW010K),Materials and Consumables
Wyre Council,http://opendatacommunities.org/doc/district-council/wyre,30/12/2023,People and Places,Environmental Services,132B,Killgerm Chemicals LTD,20/12/2023,PE155519,13.65,0.00,1x Sakarat bromakill rolled oats 7kg (SAKBROAT7K),Materials and Consumables
Wyre Council,http://opendatacommunities.org/doc/district-council/wyre,30/12/2023,People and Places,Environmental Services,132B,Killgerm Chemicals LTD,20/12/2023,PE155519,222.20,0.00,5x Contract all weather blocks 8kg (CONTRA008K),Materials and Consumables
Wyre Council,http://opendatacommunities.org/doc/district-council/wyre,30/12/2023,People and Places,Environmental Services,132B,Killgerm Chemicals LTD,20/12/2023,PE155519,59.36,0.00,2x Ficam D 3kg (FICDU003K),Materials and Consumables
Wyre Council,http://opendatacommunities.org/doc/district-council/wyre,30/12/2023,People and Places,Environmental Services,132B,Killgerm Chemicals LTD,20/12/2023,PE155519,33.86,0.00,2x Detex 4kg (DETEX004k),Materials and Consumables
Wyre Council,http://opendatacommunities.org/doc/district-council/wyre,30/12/2023,People and Places,Environmental Services,132B,Killgerm Chemicals LTD,20/12/2023,PE155519,28.35,0.00,1x AF Advanced mouse box 100 (ADV100BLA),Materials and Consumables
Wyre Council,http://opendatacommunities.org/doc/district-council/wyre,30/12/2023,People and Places,Environmental Services,132B,Killgerm Chemicals LTD,20/12/2023,PE155519,8.00,0.00,2x100 small oblong red trays (TRAYNO2SO),Materials and Consumables
Wyre Council,http://opendatacommunities.org/doc/district-council/wyre,30/12/2023,People and Places,Environmental Services,132B,Killgerm Chemicals LTD,20/12/2023,PE155519,28.80,0.00,1x CLU-LITER CLASSIC LED (CLULED13),Materials and Consumables
Wyre Council,http://opendatacommunities.org/doc/district-council/wyre,30/12/2023,People and Places,Environmental Services,132B,Killgerm Chemicals LTD,20/12/2023,PE155519,26.64,0.00,1x pest bag (PESTBAG2),Materials and Consumables
Wyre Council,http://opendatacommunities.org/doc/district-council/wyre,30/12/2023,People and Places,Environmental Services,132B,Killgerm Chemicals LTD,20/12/2023,PE155519,8.64,0.00,2x pest jar (PESTJAR),Materials and Consumables
Wyre Council,http://opendatacommunities.org/doc/district-council/wyre,30/12/2023,People and Places,Environmental Services,132B,Killgerm Chemicals LTD,20/12/2023,PE155519,19.80,0.00,2x overshoes (TYVSHOE20),Materials and Consumables
Wyre Council,http://opendatacommunities.org/doc/district-council/wyre,30/12/2023,People and Places,Support Services,135B,Malcolm McCulloch & Sons LTD,11/12/2023,PE155172,447.00,0.00,MM 2T 100ML300x100ML,Materials and Consumables
Wyre Council,http://opendatacommunities.org/doc/district-council/wyre,30/12/2023,People and Places,Environmental Services,132B,Malcolm McCulloch & Sons LTD,11/12/2023,PE155172,69.75,0.00,Toilet rolls,Materials and Consumables
Wyre Council,http://opendatacommunities.org/doc/district-council/wyre,30/12/2023,People and Places,Planning and Development Servs,132C,Malcolm McCulloch & Sons LTD,11/12/2023,PE155172,69.75,0.00,Toilet rolls,Materials and Consumables
Wyre Council,http://opendatacommunities.org/doc/district-council/wyre,30/12/2023,People and Places,Environmental Services,132B,Aitch Tools & Fasteners LTD,14/12/2023,PE155290,660.30,0.00,Materials,Materials and Consumables
Wyre Council,http://opendatacommunities.org/doc/district-council/wyre,30/12/2023,People and Places,Cultural and Related Services,132A,Aitch Tools & Fasteners LTD,14/12/2023,PE155290,45.66,0.00,Materials,Materials and Consumables
Wyre Council,http://opendatacommunities.org/doc/district-council/wyre,30/12/2023,People and Places,Support Services,135B,HUWS GRAY LTD,20/12/2023,PE155475,307.50,0.00,Postcrete Hawthorne Park,Materials and Consumables
Wyre Council,http://opendatacommunities.org/doc/district-council/wyre,30/12/2023,People and Places,Support Services,135B,HUWS GRAY LTD,08/12/2023,PE155054,47.54,0.00,Materials Keith Urwin,Materials and Consumables
Wyre Council,http://opendatacommunities.org/doc/district-council/wyre,30/12/2023,People and Places,Environmental Services,132B,HUWS GRAY LTD,12/12/2023,PE154952,1260.00,0.00,2023/2024 Direct Works/ Sea Wall Engineer purchases for works around the Borough,Materials and Consumables
Wyre Council,http://opendatacommunities.org/doc/district-council/wyre,30/12/2023,People and Places,Environmental Services,132B,HUWS GRAY LTD,12/12/2023,PE155070,167.76,0.00,2023/2024 Direct Works/ Sea Wall Engineer purchases for works around the Borough,Materials and Consumables
Wyre Council,http://opendatacommunities.org/doc/district-council/wyre,30/12/2023,People and Places,Environmental Services,132B,HUWS GRAY LTD,12/12/2023,PE155071,1.88,0.00,2023/2024 Direct Works/ Sea Wall Engineer purchases for works around the Borough,Materials and Consumables
Wyre Council,http://opendatacommunities.org/doc/district-council/wyre,30/12/2023,People and Places,Environmental Services,132B,HUWS GRAY LTD,18/12/2023,PE155347,17.87,0.00,2023/2024 Direct Works/ Sea Wall Engineer purchases for works around the Borough,Materials and Consumables
Wyre Council,http://opendatacommunities.org/doc/district-council/wyre,30/12/2023,People and Places,Environmental Services,132B,HUWS GRAY LTD,18/12/2023,PE155417,96.46,0.00,2023/2024 Direct Works/ Sea Wall Engineer purchases for works around the Borough,Materials and Consumables
Wyre Council,http://opendatacommunities.org/doc/district-council/wyre,30/12/2023,People and Places,Environmental Services,132B,HUWS GRAY LTD,18/12/2023,PE155416,657.49,0.00,2023/2024 Direct Works/ Sea Wall Engineer purchases for works around the Borough,Materials and Consumables
Wyre Council,http://opendatacommunities.org/doc/district-council/wyre,30/12/2023,People and Places,Environmental Services,132B,HUWS GRAY LTD,11/12/2023,PE155153,58.16,0.00,2023/2024 Direct Works/ Sea Wall Engineer purchases for works around the Borough,Materials and Consumables
Wyre Council,http://opendatacommunities.org/doc/district-council/wyre,30/12/2023,People and Places,Environmental Services,132B,HUWS GRAY LTD,01/12/2023,PE154729,26.16,0.00,2023/2024 Direct Works/ Sea Wall Engineer purchases for works around the Borough,Materials and Consumables
Wyre Council,http://opendatacommunities.org/doc/district-council/wyre,30/12/2023,People and Places,Housing General Fund,134A,HUWS GRAY LTD,11/12/2023,PE155139,139.55,0.00,Invoice IF984440,Materials and Consumables
Wyre Council,http://opendatacommunities.org/doc/district-council/wyre,30/12/2023,People and Places,Housing General Fund,134A,HUWS GRAY LTD,11/12/2023,PE155139,24.99,0.00,Invoice IF984440,Materials and Consumables
Wyre Council,http://opendatacommunities.org/doc/district-council/wyre,30/12/2023,People and Places,Cultural and Related Services,132A,HUWS GRAY LTD,18/12/2023,PE155053,107.22,0.00,3 x ton MOT,Materials and Consumables
Wyre Council,http://opendatacommunities.org/doc/district-council/wyre,30/12/2023,People and Places,Support Services,135B,The Pitchmark Group Ltd,12/12/2023,PE155083,1500.00,0.00,"Supply and deliver as per your quotation QTE-10036 60 (8-CON/010) Elements  8:1 concentrate paint in white 10L  Delivery FAO Roger Brocklebank, Wyre Council, Copse Road Depot, Copse Road, Fleetwood, FY7 6RP",Materials and Consumables
Wyre Council,http://opendatacommunities.org/doc/district-council/wyre,30/12/2023,Resources,Support Services,135B,Amazon Business,13/12/2023,RS155281,17.08,0.00,"2 x Energizer CR2032 Batteries, Lithium Coin Battery Pack, Amazon Exclusive, 12 Pack.",Materials and Consumables
Wyre Council,http://opendatacommunities.org/doc/district-council/wyre,30/12/2023,Resources,Support Services,135B,Amazon Business,07/12/2023,RS155080,17.41,0.00,"2 x Welabel 3X Compatible TZe-231 TZe231 TZ-231 Replacement for Brother Tze 12mm Label Tape TZc-231 for Brother P-Touch PT-H101C PT-H110 PT-H105 H100LB PT-H105 PT-H107B PT-H200 PT-P300BT, Black on White.",Materials and Consumables
Wyre Council,http://opendatacommunities.org/doc/district-council/wyre,30/12/2023,People and Places,Environmental Services,132B,Amazon Business,07/12/2023,PE155069,18.29,0.00,Clipboards Street Cleansing,Materials and Consumables
Wyre Council,http://opendatacommunities.org/doc/district-council/wyre,30/12/2023,Resources,Corporate and Democratic Core,131A,Preston City Council,18/12/2023,RS155350,127.00,0.00,Mayoral Christmas Cards - 2023  A5 4pp printed digitally 4 colour and 2pp on Silk 350gsm. Scored and supplied flat.,Mayoral Hospitality
Wyre Council,http://opendatacommunities.org/doc/district-council/wyre,30/12/2023,Resources,Corporate and Democratic Core,131A,Preston City Council,18/12/2023,RS155350,23.60,0.00,"40 x Leader/CEO Christmas cards,  A5 4pp on 350gsm silk, with 2pp clear toner to outer side",Members' Hospitality
Wyre Council,http://opendatacommunities.org/doc/district-council/wyre,30/12/2023,Resources,Housing General Fund,134A,Mobility Care Services,15/12/2023,RS155339,160.00,0.00,REDACT,Minor Adaptations
Wyre Council,http://opendatacommunities.org/doc/district-council/wyre,30/12/2023,Resources,Housing General Fund,134A,Mobility Care Services,15/12/2023,RS155342,287.00,0.00,REDACT,Minor Adaptations
Wyre Council,http://opendatacommunities.org/doc/district-council/wyre,30/12/2023,Resources,Housing General Fund,134A,Mobility Care Services,15/12/2023,RS155341,287.00,0.00,REDACT,Minor Adaptations
Wyre Council,http://opendatacommunities.org/doc/district-council/wyre,30/12/2023,Resources,Housing General Fund,134A,Mobility Care Services,15/12/2023,RS155338,308.00,0.00,REDACT,Minor Adaptations
Wyre Council,http://opendatacommunities.org/doc/district-council/wyre,30/12/2023,Resources,Housing General Fund,134A,Mobility Care Services,15/12/2023,RS155340,133.00,0.00,REDACT,Minor Adaptations
Wyre Council,http://opendatacommunities.org/doc/district-council/wyre,30/12/2023,Resources,Housing General Fund,134A,J A DICKENS LIMITED,11/12/2023,RS155148,340.00,0.00,REDACT,Minor Adaptations
Wyre Council,http://opendatacommunities.org/doc/district-council/wyre,30/12/2023,Resources,Housing General Fund,134A,J A DICKENS LIMITED,11/12/2023,RS155148,380.00,0.00,REDACT,Minor Adaptations
Wyre Council,http://opendatacommunities.org/doc/district-council/wyre,30/12/2023,Resources,Housing General Fund,134A,J A DICKENS LIMITED,11/12/2023,RS155142,170.00,0.00,REDACT,Minor Adaptations
Wyre Council,http://opendatacommunities.org/doc/district-council/wyre,30/12/2023,Resources,Housing General Fund,134A,J A DICKENS LIMITED,11/12/2023,RS155143,140.00,0.00,REDACT,Minor Adaptations
Wyre Council,http://opendatacommunities.org/doc/district-council/wyre,30/12/2023,Resources,Housing General Fund,134A,J A DICKENS LIMITED,11/12/2023,RS155143,180.00,0.00,REDACT,Minor Adaptations
Wyre Council,http://opendatacommunities.org/doc/district-council/wyre,30/12/2023,Resources,Housing General Fund,134A,J A DICKENS LIMITED,11/12/2023,RS155144,350.00,0.00,REDACT,Minor Adaptations
Wyre Council,http://opendatacommunities.org/doc/district-council/wyre,30/12/2023,Resources,Housing General Fund,134A,J A DICKENS LIMITED,11/12/2023,RS155144,250.00,0.00,REDACT,Minor Adaptations
Wyre Council,http://opendatacommunities.org/doc/district-council/wyre,30/12/2023,Resources,Housing General Fund,134A,J A DICKENS LIMITED,11/12/2023,RS155145,380.00,0.00,REDACT,Minor Adaptations
Wyre Council,http://opendatacommunities.org/doc/district-council/wyre,30/12/2023,Resources,Housing General Fund,134A,J A DICKENS LIMITED,11/12/2023,RS155145,300.00,0.00,REDACT,Minor Adaptations
Wyre Council,http://opendatacommunities.org/doc/district-council/wyre,30/12/2023,Resources,Housing General Fund,134A,J A DICKENS LIMITED,11/12/2023,RS155146,340.00,0.00,REDACT,Minor Adaptations
Wyre Council,http://opendatacommunities.org/doc/district-council/wyre,30/12/2023,Resources,Housing General Fund,134A,J A DICKENS LIMITED,11/12/2023,RS155146,340.00,0.00,REDACT,Minor Adaptations
Wyre Council,http://opendatacommunities.org/doc/district-council/wyre,30/12/2023,Resources,Housing General Fund,134A,J A DICKENS LIMITED,11/12/2023,RS155147,340.00,0.00,REDACT,Minor Adaptations
Wyre Council,http://opendatacommunities.org/doc/district-council/wyre,30/12/2023,Resources,Housing General Fund,134A,J A DICKENS LIMITED,11/12/2023,RS155147,340.00,0.00,REDACT,Minor Adaptations
Wyre Council,http://opendatacommunities.org/doc/district-council/wyre,30/12/2023,Resources,Housing General Fund,134A,J A DICKENS LIMITED,11/12/2023,RS155091,90.00,0.00,REDACT,Minor Adaptations
Wyre Council,http://opendatacommunities.org/doc/district-council/wyre,30/12/2023,Resources,Housing General Fund,134A,J A DICKENS LIMITED,11/12/2023,RS155091,64.00,0.00,REDACT,Minor Adaptations
Wyre Council,http://opendatacommunities.org/doc/district-council/wyre,30/12/2023,Resources,Housing General Fund,134A,J A DICKENS LIMITED,11/12/2023,RS155092,90.00,0.00,REDACT,Minor Adaptations
Wyre Council,http://opendatacommunities.org/doc/district-council/wyre,30/12/2023,Resources,Housing General Fund,134A,J A DICKENS LIMITED,11/12/2023,RS155092,64.00,0.00,REDACT,Minor Adaptations
Wyre Council,http://opendatacommunities.org/doc/district-council/wyre,30/12/2023,Resources,Housing General Fund,134A,J A DICKENS LIMITED,11/12/2023,RS155093,84.00,0.00,REDACT,Minor Adaptations
Wyre Council,http://opendatacommunities.org/doc/district-council/wyre,30/12/2023,Resources,Housing General Fund,134A,J A DICKENS LIMITED,11/12/2023,RS155093,70.00,0.00,REDACT,Minor Adaptations
Wyre Council,http://opendatacommunities.org/doc/district-council/wyre,30/12/2023,Resources,Housing General Fund,134A,J A DICKENS LIMITED,11/12/2023,RS155094,70.00,0.00,REDACT,Minor Adaptations
Wyre Council,http://opendatacommunities.org/doc/district-council/wyre,30/12/2023,Resources,Housing General Fund,134A,J A DICKENS LIMITED,11/12/2023,RS155094,84.00,0.00,REDACT,Minor Adaptations
Wyre Council,http://opendatacommunities.org/doc/district-council/wyre,30/12/2023,Resources,Housing General Fund,134A,J A DICKENS LIMITED,11/12/2023,RS155095,60.00,0.00,REDACT,Minor Adaptations
Wyre Council,http://opendatacommunities.org/doc/district-council/wyre,30/12/2023,Resources,Housing General Fund,134A,J A DICKENS LIMITED,11/12/2023,RS155095,94.00,0.00,REDACT,Minor Adaptations
Wyre Council,http://opendatacommunities.org/doc/district-council/wyre,30/12/2023,Resources,Housing General Fund,134A,J A DICKENS LIMITED,11/12/2023,RS155140,158.00,0.00,REDACT,Minor Adaptations
Wyre Council,http://opendatacommunities.org/doc/district-council/wyre,30/12/2023,Resources,Housing General Fund,134A,J A DICKENS LIMITED,11/12/2023,RS155098,80.00,0.00,REDACT,Minor Adaptations
Wyre Council,http://opendatacommunities.org/doc/district-council/wyre,30/12/2023,Resources,Housing General Fund,134A,J A DICKENS LIMITED,11/12/2023,RS155098,80.00,0.00,REDACT,Minor Adaptations
Wyre Council,http://opendatacommunities.org/doc/district-council/wyre,30/12/2023,Resources,Housing General Fund,134A,J A DICKENS LIMITED,11/12/2023,RS155099,60.00,0.00,REDACT,Minor Adaptations
Wyre Council,http://opendatacommunities.org/doc/district-council/wyre,30/12/2023,Resources,Housing General Fund,134A,J A DICKENS LIMITED,11/12/2023,RS155099,100.00,0.00,REDACT,Minor Adaptations
Wyre Council,http://opendatacommunities.org/doc/district-council/wyre,30/12/2023,Resources,Housing General Fund,134A,J A DICKENS LIMITED,11/12/2023,RS155096,70.00,0.00,REDACT,Minor Adaptations
Wyre Council,http://opendatacommunities.org/doc/district-council/wyre,30/12/2023,Resources,Housing General Fund,134A,J A DICKENS LIMITED,11/12/2023,RS155096,90.00,0.00,REDACT,Minor Adaptations
Wyre Council,http://opendatacommunities.org/doc/district-council/wyre,30/12/2023,Resources,Housing General Fund,134A,J A DICKENS LIMITED,11/12/2023,RS155097,70.00,0.00,REDACT,Minor Adaptations
Wyre Council,http://opendatacommunities.org/doc/district-council/wyre,30/12/2023,Resources,Housing General Fund,134A,J A DICKENS LIMITED,11/12/2023,RS155097,90.00,0.00,REDACT,Minor Adaptations
Wyre Council,http://opendatacommunities.org/doc/district-council/wyre,30/12/2023,Resources,Housing General Fund,134A,J A DICKENS LIMITED,11/12/2023,RS155100,160.00,0.00,REDACT,Minor Adaptations
Wyre Council,http://opendatacommunities.org/doc/district-council/wyre,30/12/2023,Resources,Housing General Fund,134A,J A DICKENS LIMITED,11/12/2023,RS155100,148.00,0.00,REDACT,Minor Adaptations
Wyre Council,http://opendatacommunities.org/doc/district-council/wyre,30/12/2023,Resources,Housing General Fund,134A,J A DICKENS LIMITED,11/12/2023,RS155140,150.00,0.00,REDACT,Minor Adaptations
Wyre Council,http://opendatacommunities.org/doc/district-council/wyre,30/12/2023,Resources,Housing General Fund,134A,J A DICKENS LIMITED,11/12/2023,RS155149,266.00,0.00,REDACT,Minor Adaptations
Wyre Council,http://opendatacommunities.org/doc/district-council/wyre,30/12/2023,Resources,Housing General Fund,134A,J A DICKENS LIMITED,11/12/2023,RS155149,308.00,0.00,REDACT,Minor Adaptations
Wyre Council,http://opendatacommunities.org/doc/district-council/wyre,30/12/2023,Resources,Housing General Fund,134A,J A DICKENS LIMITED,11/12/2023,RS155150,290.00,0.00,REDACT,Minor Adaptations
Wyre Council,http://opendatacommunities.org/doc/district-council/wyre,30/12/2023,Resources,Housing General Fund,134A,J A DICKENS LIMITED,11/12/2023,RS155150,380.00,0.00,REDACT,Minor Adaptations
Wyre Council,http://opendatacommunities.org/doc/district-council/wyre,30/12/2023,Resources,Housing General Fund,134A,J A DICKENS LIMITED,11/12/2023,RS155141,140.00,0.00,REDACT,Minor Adaptations
Wyre Council,http://opendatacommunities.org/doc/district-council/wyre,30/12/2023,Resources,Housing General Fund,134A,J A DICKENS LIMITED,11/12/2023,RS155141,180.00,0.00,REDACT,Minor Adaptations
Wyre Council,http://opendatacommunities.org/doc/district-council/wyre,30/12/2023,Resources,Housing General Fund,134A,J A DICKENS LIMITED,11/12/2023,RS155142,150.00,0.00,REDACT,Minor Adaptations
Wyre Council,http://opendatacommunities.org/doc/district-council/wyre,30/12/2023,Finance,Current Liabilities,130C,,01/12/2023,WPST00126802,1116.00,0.00,29/11/23 LABC Emerging Talent Conference,Miscellaneous Debits
Wyre Council,http://opendatacommunities.org/doc/district-council/wyre,30/12/2023,Resources,Current Liabilities,130C,Department for Energy Security and Net Zero,21/12/2023,RS155553,104200.00,0.00,EPGAFPAFLA-0307ALTERNATIVE FUEL PAYMENT ALTERNATIVE FUNDING (AFP AF),Miscellaneous Debits
Wyre Council,http://opendatacommunities.org/doc/district-council/wyre,30/12/2023,Resources,Current Liabilities,130C,Department for Energy Security and Net Zero,21/12/2023,RS155554,451440.00,0.00,EBSSAFGB-0307ENERGY BILL SUPPORT SCHEME ALTERNATIVE FUNDING (EBSS AF),Miscellaneous Debits
Wyre Council,http://opendatacommunities.org/doc/district-council/wyre,30/12/2023,People and Places,Planning and Development Servs,132C,Huq Industries Ltd,04/12/2023,PE154938,1050.00,0.00,Fleetwood Town Centre Footfall Monitoring 2023/24,Monitoring/Evaluation
Wyre Council,http://opendatacommunities.org/doc/district-council/wyre,30/12/2023,People and Places,Highways,133B,John Fausset LTD,21/12/2023,PE155547,1300.00,0.00,100 Posts for Street name plates 13.00 eachOrdered by Mark Thomason,Naming of Streets
Wyre Council,http://opendatacommunities.org/doc/district-council/wyre,30/12/2023,Finance,Current Assets,130B,,05/12/2023,WPST00127177,7403.99,0.00,01/12/23 NNDR Refunds,NNDR Refunds
Wyre Council,http://opendatacommunities.org/doc/district-council/wyre,30/12/2023,Finance,Current Assets,130B,,13/12/2023,WPST00127916,1839.00,0.00,NNDR Bounced DD 11/12/23,NNDR Refunds
Wyre Council,http://opendatacommunities.org/doc/district-council/wyre,30/12/2023,Finance,Current Assets,130B,,21/12/2023,WPST00128814,945.95,0.00,NNDR DD bounced 19/12/23,NNDR Refunds
Wyre Council,http://opendatacommunities.org/doc/district-council/wyre,30/12/2023,Finance,Current Assets,130B,,19/12/2023,WPST00128443,12973.62,0.00,15/12/23 NNDR Refunds,NNDR Refunds
Wyre Council,http://opendatacommunities.org/doc/district-council/wyre,30/12/2023,Finance,Collection Fund Revenue Accts,138A,DEPARTMENT FOR COMMUNITIES AND LOCAL GOVERNMENT,21/12/2023,WPST00128844,1022749.00,0.00,DLUHC Bus Rate Cent Share 19/12/23,NNDR Tariff to Government
Wyre Council,http://opendatacommunities.org/doc/district-council/wyre,30/12/2023,Finance,General Fund below the line,136A,DEPARTMENT FOR COMMUNITIES AND LOCAL GOVERNMENT,21/12/2023,WPST00128845,643840.00,0.00,19/12/23 R V B C GENERAL,NNDR Tariff to Government
Wyre Council,http://opendatacommunities.org/doc/district-council/wyre,30/12/2023,Resources,Support Services,135B,People Asset Management LTD,22/12/2023,RS155003,559.08,0.00,Monthly PAYG charges - November 2023,Occupational Health Fees
Wyre Council,http://opendatacommunities.org/doc/district-council/wyre,30/12/2023,Resources,Support Services,135B,People Asset Management LTD,22/12/2023,RS155003,939.75,0.00,Monthly PAYG charges - November 2023,Occupational Health Fees
Wyre Council,http://opendatacommunities.org/doc/district-council/wyre,30/12/2023,People and Places,Environmental Services,132B,DANFO (UK) LTD,04/12/2023,PE154911,23387.86,0.00,Public Conveniences - Maintenance and Cleaning 2023/24,Other Establishments
Wyre Council,http://opendatacommunities.org/doc/district-council/wyre,30/12/2023,People and Places,Cultural and Related Services,132A,Glasdon UK LTD,18/12/2023,PE155414,2293.13,0.00,"Supply and deliver 7 Glasdon Jubilee 110 litter bin as your quotation EQ70096349Delivery to Wyre Council, Copse Road Depot, Copse Road, Fleetwood, FY7 6RP",Other Materials
Wyre Council,http://opendatacommunities.org/doc/district-council/wyre,30/12/2023,People and Places,Cultural and Related Services,132A,Granthams Signs LTD,04/12/2023,PE154942,7171.08,0.00,"Park Notice boards Supply and install as shown on Quotation: 47959-1/07Requested by Georgia Luckett Delivery to Wyre Council, Copse Road Depot, Copse Road, Fleetwood, FY7 6RP",Other Materials
Wyre Council,http://opendatacommunities.org/doc/district-council/wyre,30/12/2023,People and Places,Environmental Services,132B,D Hollowell & Sons LTD,13/12/2023,PE155276,2169.00,0.00,REDACT,Other Rechargeable Services
Wyre Council,http://opendatacommunities.org/doc/district-council/wyre,30/12/2023,People and Places,Environmental Services,132B,D Hollowell & Sons LTD,19/12/2023,PE155493,1032.00,0.00,REDACT,Other Rechargeable Services
Wyre Council,http://opendatacommunities.org/doc/district-council/wyre,30/12/2023,People and Places,Parking Services,133F,Compass Minerals UK LTD,06/12/2023,PE155007,1579.94,0.00,60 tons thawrox 6,"Paths, Roads and Car Park Mtnce Annual"
Wyre Council,http://opendatacommunities.org/doc/district-council/wyre,30/12/2023,People and Places,Parking Services,133F,Compass Minerals UK LTD,06/12/2023,PE155007,1565.62,0.00,60 tons thawrox 6,"Paths, Roads and Car Park Mtnce Annual"
Wyre Council,http://opendatacommunities.org/doc/district-council/wyre,30/12/2023,Finance,Corporate and Democratic Core,131A,LANCASHIRE COUNTY COUNCIL,04/12/2023,WPST00126947,16526.27,0.00,30/11/2023LCC Pension,Pension Increase Act Payments
Wyre Council,http://opendatacommunities.org/doc/district-council/wyre,30/12/2023,People and Places,Planning and Development Servs,132C,EAS Electrical Mechanical,15/12/2023,PE155297,204.00,0.00,"Unit 6 Butts Close, Thornton FY5 4HT: Unit 6 EICR",Planned Building Maintenance
Wyre Council,http://opendatacommunities.org/doc/district-council/wyre,30/12/2023,People and Places,Planning and Development Servs,132C,EAS Electrical Mechanical,18/12/2023,PE155402,204.00,0.00,EICR _Eros Roundabout,Planned Building Maintenance
Wyre Council,http://opendatacommunities.org/doc/district-council/wyre,30/12/2023,People and Places,Planning and Development Servs,132C,EAS Electrical Mechanical,15/12/2023,PE155299,144.00,0.00,Copse Rd Depot: Annual gas safety test to boilers,Planned Building Maintenance
Wyre Council,http://opendatacommunities.org/doc/district-council/wyre,30/12/2023,People and Places,Cultural and Related Services,132A,EAS Electrical Mechanical,15/12/2023,PE155298,204.00,0.00,"Ferry Office Retail Unit, The Esplanade, Fleetwood, FY7 7DL: Ferry Office EICR",Planned Building Maintenance
Wyre Council,http://opendatacommunities.org/doc/district-council/wyre,30/12/2023,People and Places,Planning and Development Servs,132C,Lancashire County Council,20/12/2023,PE154813,139.27,0.00,17.08.2023 INS341196 Thornton Cleveleys Unit 17 Croft Court - Legionella  Risk Assessment,Planned Building Maintenance
Wyre Council,http://opendatacommunities.org/doc/district-council/wyre,30/12/2023,People and Places,Planning and Development Servs,132C,Lancashire County Council,20/12/2023,PE154813,243.88,0.00,01.08.2023 INS341665 Thornton Cleveleys Unit 16 Croft Close - Legionella  Risk Assessment,Planned Building Maintenance
Wyre Council,http://opendatacommunities.org/doc/district-council/wyre,30/12/2023,People and Places,Planning and Development Servs,132C,Lancashire County Council,20/12/2023,PE154813,104.40,0.00,01.08.2023 INS341665 Thornton Cleveleys Unit 16 Croft Close - Legionella  Risk Assessment,Planned Building Maintenance
Wyre Council,http://opendatacommunities.org/doc/district-council/wyre,30/12/2023,People and Places,Cultural and Related Services,132A,Lancashire County Council,20/12/2023,PE154406,196.04,0.00,01.06.2023 INS331520 Thornton Cleveleys Marsh Mill - Lightning Conductor,Planned Building Maintenance
Wyre Council,http://opendatacommunities.org/doc/district-council/wyre,30/12/2023,People and Places,Cultural and Related Services,132A,Lancashire County Council,20/12/2023,PE154813,243.87,0.00,01.08.2023 INS341691 Fleetwood The Esplanade Kiosks (Wyre BC) - Number 11  - Legionella Risk Assessment,Planned Building Maintenance
Wyre Council,http://opendatacommunities.org/doc/district-council/wyre,30/12/2023,People and Places,Cultural and Related Services,132A,Lancashire County Council,20/12/2023,PE154406,104.40,0.00,30.06.2023 INS340884 Fleetwood Tennis Pavilion - Legionella Risk  Assessment,Planned Building Maintenance
Wyre Council,http://opendatacommunities.org/doc/district-council/wyre,30/12/2023,People and Places,Cultural and Related Services,132A,Lancashire County Council,20/12/2023,PE154406,104.40,0.00,30.06.2023 INS340954 Fleetwood Memorial Playing Fields - Legionella Risk  Assessment,Planned Building Maintenance
Wyre Council,http://opendatacommunities.org/doc/district-council/wyre,30/12/2023,People and Places,Cultural and Related Services,132A,Lancashire County Council,20/12/2023,PE154406,104.40,0.00,30.06.2023 INS340955 Fleetwood Memorial Playing Fields - Legionella Risk  Assessment,Planned Building Maintenance
Wyre Council,http://opendatacommunities.org/doc/district-council/wyre,30/12/2023,People and Places,Cultural and Related Services,132A,Lancashire County Council,20/12/2023,PE154406,31.54,0.00,25.06.2023 INS307705 Fleetwood Tennis Pavilion - PAT,Planned Building Maintenance
Wyre Council,http://opendatacommunities.org/doc/district-council/wyre,30/12/2023,People and Places,Cultural and Related Services,132A,Lancashire County Council,20/12/2023,PE154813,139.27,0.00,09.06.2023 INS340955 Fleetwood Memorial Playing Fields - Legionella Risk  Assessment,Planned Building Maintenance
Wyre Council,http://opendatacommunities.org/doc/district-council/wyre,30/12/2023,People and Places,Cultural and Related Services,132A,Lancashire County Council,20/12/2023,PE154813,243.88,0.00,14.08.2023 INS341065 Fleetwood The Mount Pavilion - Legionella Risk  Assessment,Planned Building Maintenance
Wyre Council,http://opendatacommunities.org/doc/district-council/wyre,30/12/2023,People and Places,Cultural and Related Services,132A,Lancashire County Council,20/12/2023,PE154813,104.40,0.00,03.08.2023 INS341688 Fleetwood Mount Cottages (Wyre BC) - Legionella Risk  Assessment,Planned Building Maintenance
Wyre Council,http://opendatacommunities.org/doc/district-council/wyre,30/12/2023,People and Places,Cultural and Related Services,132A,Lancashire County Council,20/12/2023,PE154813,104.40,0.00,03.08.2023 INS341689 Fleetwood Mount Cottages (Wyre BC) - Legionella Risk  Assessment,Planned Building Maintenance
Wyre Council,http://opendatacommunities.org/doc/district-council/wyre,30/12/2023,People and Places,Planning and Development Servs,132C,Lancashire County Council,20/12/2023,PE154813,383.22,0.00,01.09.2023 INS341225 Fleetwood Market Hall - Legionella Risk  Assessment,Planned Building Maintenance
Wyre Council,http://opendatacommunities.org/doc/district-council/wyre,30/12/2023,People and Places,Support Services,135B,Lancashire County Council,20/12/2023,PE154813,196.04,0.00,15.08.2023 INS332345 Poulton le Fylde Civic Centre - Lightning  Conductor,Planned Building Maintenance
Wyre Council,http://opendatacommunities.org/doc/district-council/wyre,30/12/2023,People and Places,Support Services,135B,Lancashire County Council,20/12/2023,PE154406,232.00,0.00,31.07.2023 INS340971 Poulton-Le-Fylde Civic Centre - Canteen Building -  Legionella Risk Assessment,Planned Building Maintenance
Wyre Council,http://opendatacommunities.org/doc/district-council/wyre,30/12/2023,People and Places,Support Services,135B,Lancashire County Council,20/12/2023,PE154406,232.00,0.00,31.07.2023 INS340972 Poulton-Le-Fylde Civic Centre -Legionella Risk  Assessment,Planned Building Maintenance
Wyre Council,http://opendatacommunities.org/doc/district-council/wyre,30/12/2023,People and Places,Cultural and Related Services,132A,Lancashire County Council,20/12/2023,PE154406,104.40,0.00,31.07.2023 INS341007 Fleetwood The Ferry Office &amp; Tourist Information  Centre - Legionella Risk Assessment,Planned Building Maintenance
Wyre Council,http://opendatacommunities.org/doc/district-council/wyre,30/12/2023,People and Places,Cultural and Related Services,132A,Lancashire County Council,20/12/2023,PE154813,104.40,0.00,10.07.2023 INS341007 Fleetwood The Ferry Office &amp; Tourist Information  Centre - Legionella Risk Assessment,Planned Building Maintenance
Wyre Council,http://opendatacommunities.org/doc/district-council/wyre,30/12/2023,People and Places,Cultural and Related Services,132A,Lancashire County Council,20/12/2023,PE154406,475.95,0.00,26.06.2023 INS294661 Stanah The Riverside Room - Legionella Risk  Assessment,Planned Building Maintenance
Wyre Council,http://opendatacommunities.org/doc/district-council/wyre,30/12/2023,People and Places,Cultural and Related Services,132A,Lancashire County Council,20/12/2023,PE154406,129.20,0.00,20.04.2023 INS308243 Stanah Wyre Estuary Park - PAT,Planned Building Maintenance
Wyre Council,http://opendatacommunities.org/doc/district-council/wyre,30/12/2023,People and Places,Cultural and Related Services,132A,Lancashire County Council,20/12/2023,PE154813,313.48,0.00,30.08.2023 INS341573 Thornton Little Theatre - Legionella Risk  Asssessment,Planned Building Maintenance
Wyre Council,http://opendatacommunities.org/doc/district-council/wyre,30/12/2023,People and Places,Cultural and Related Services,132A,Lancashire County Council,20/12/2023,PE154813,174.14,0.00,29.06.2023 INS340880 Thornton Cleveleys Little Theatre - Legionella Risk  Assessment,Planned Building Maintenance
Wyre Council,http://opendatacommunities.org/doc/district-council/wyre,30/12/2023,People and Places,Cultural and Related Services,132A,Lancashire County Council,20/12/2023,PE154813,243.88,0.00,30.08.2023 INS341659 Thornton Cleveleys New Wave Caf� Beach Patrol Unit -  Legionella Risk Assessment,Planned Building Maintenance
Wyre Council,http://opendatacommunities.org/doc/district-council/wyre,30/12/2023,People and Places,Cultural and Related Services,132A,Lancashire County Council,20/12/2023,PE154813,196.04,0.00,14.08.2023 INS332344 Thornton Cleveleys New Wave Caf� Beach Patrol Unit -  Lightning Conductor,Planned Building Maintenance
Wyre Council,http://opendatacommunities.org/doc/district-council/wyre,30/12/2023,People and Places,Cultural and Related Services,132A,Lancashire County Council,20/12/2023,PE154406,161.98,0.00,18.04.2023 INT00203245 Fleetwood Marine Gardens - Legionella Sampling,Planned Building Maintenance
Wyre Council,http://opendatacommunities.org/doc/district-council/wyre,30/12/2023,People and Places,Cultural and Related Services,132A,Lancashire County Council,20/12/2023,PE154813,243.87,0.00,31.07.2023 INS341004 Fleetwood Marine Boating Lake (Wyre BC) - Legionella  Risk Assessment,Planned Building Maintenance
Wyre Council,http://opendatacommunities.org/doc/district-council/wyre,30/12/2023,People and Places,Cultural and Related Services,132A,Lancashire County Council,20/12/2023,PE154813,209.01,0.00,03.08.2023 INS341063 Fleetwood The Esplande Kiosks No 6 - Legionella Risk  Assessment,Planned Building Maintenance
Wyre Council,http://opendatacommunities.org/doc/district-council/wyre,30/12/2023,People and Places,Cultural and Related Services,132A,Lancashire County Council,20/12/2023,PE154813,174.14,0.00,02.08.2023 INS341575 Fleetwood The Esplande Kiosks No 4 - Legionella Risk  Assessment,Planned Building Maintenance
Wyre Council,http://opendatacommunities.org/doc/district-council/wyre,30/12/2023,People and Places,Cultural and Related Services,132A,Lancashire County Council,20/12/2023,PE154813,243.88,0.00,03.08.2023 INS341064 Fleetwood The Esplande Kiosks No 7 - Legionella Risk  Assessment,Planned Building Maintenance
Wyre Council,http://opendatacommunities.org/doc/district-council/wyre,30/12/2023,People and Places,Cultural and Related Services,132A,Lancashire County Council,20/12/2023,PE154813,104.40,0.00,02.08.2023 INS341062 Fleetwood The  Esplanade Kiosks (Wyre BC) - Number 3 - Legionella Risk Assessment,Planned Building Maintenance
Wyre Council,http://opendatacommunities.org/doc/district-council/wyre,30/12/2023,People and Places,Cultural and Related Services,132A,Lancashire County Council,20/12/2023,PE154406,161.99,0.00,18.04.2023 INT00203221 Fleetwood The  Esplande Kiosks - Number 3 - Legionella Sampling,Planned Building Maintenance
Wyre Council,http://opendatacommunities.org/doc/district-council/wyre,30/12/2023,People and Places,Cultural and Related Services,132A,Lancashire County Council,20/12/2023,PE154406,161.98,0.00,18.04.2023 INT00203223 Fleetwood The Esplande Kiosks - Number 6 -  Legionella Sampling,Planned Building Maintenance
Wyre Council,http://opendatacommunities.org/doc/district-council/wyre,30/12/2023,People and Places,Cultural and Related Services,132A,Lancashire County Council,20/12/2023,PE154406,161.98,0.00,18.04.2023 INT00203225 Fleetwood The Esplande Kiosks - Number 7 -  Legionella Sampling,Planned Building Maintenance
Wyre Council,http://opendatacommunities.org/doc/district-council/wyre,30/12/2023,People and Places,Environmental Services,132B,Lancashire County Council,20/12/2023,PE154406,27.83,0.00,25.06.2023 INS307680 Fleetwood Cemetery Office - PAT,Planned Building Maintenance
Wyre Council,http://opendatacommunities.org/doc/district-council/wyre,30/12/2023,People and Places,Cultural and Related Services,132A,Lancashire County Council,20/12/2023,PE154406,243.74,0.00,02.06.2023 INS294759 Fleetwood Marine Boating Lake - Legionella Risk  Assessment,Planned Building Maintenance
Wyre Council,http://opendatacommunities.org/doc/district-council/wyre,30/12/2023,People and Places,Cultural and Related Services,132A,Lancashire County Council,20/12/2023,PE154406,174.14,0.00,29.06.2023 INS340880 Ashdell Bowls Pavillion - 173 Victoria Road East  Thornton Cleveleys - Legionella Risk Assessment,Planned Building Maintenance
Wyre Council,http://opendatacommunities.org/doc/district-council/wyre,30/12/2023,People and Places,Environmental Services,132B,Lancashire County Council,20/12/2023,PE154406,117.14,0.00,05.06.2023 INS308330 Wyre Council - Sea Defence Depot - PAT,Planned Building Maintenance
Wyre Council,http://opendatacommunities.org/doc/district-council/wyre,30/12/2023,People and Places,Planning and Development Servs,132C,Lancashire County Council,20/12/2023,PE154813,278.61,0.00,28.06.2023 INS294678 Fleetwood Copse Road Depot - Legionella Risk  Assessment,Planned Building Maintenance
Wyre Council,http://opendatacommunities.org/doc/district-council/wyre,30/12/2023,People and Places,Cultural and Related Services,132A,Lancashire County Council,20/12/2023,PE154406,81.65,0.00,25.06.2023 INS307697 Fleetwood Rossall Point Observatory - PAT,Planned Building Maintenance
Wyre Council,http://opendatacommunities.org/doc/district-council/wyre,30/12/2023,People and Places,Cultural and Related Services,132A,Lancashire County Council,20/12/2023,PE154406,196.04,0.00,12.04.2023 INS331473 Fleetwood Rossall Point Observatory - Lightning  Conductor,Planned Building Maintenance
Wyre Council,http://opendatacommunities.org/doc/district-council/wyre,30/12/2023,People and Places,Cultural and Related Services,132A,M D Security,12/12/2023,PE154914,50.00,0.00,Rossal Point: Emergency light test for 11/23,Planned Building Maintenance
Wyre Council,http://opendatacommunities.org/doc/district-council/wyre,30/12/2023,People and Places,Cultural and Related Services,132A,John Carney,18/12/2023,PE155400,180.00,0.00,Cleaning ourt all gutters and downpipes to Mount Pavilion,Planned Building Maintenance
Wyre Council,http://opendatacommunities.org/doc/district-council/wyre,30/12/2023,People and Places,Environmental Services,132B,Lancashire Home Inspection Ltd,11/12/2023,PE155169,164.00,0.00,"Commercial EPC: Poulton New Cemetery, Garstang Rd East, Poulton le Fylde, FY6 8JH",Planned Building Maintenance
Wyre Council,http://opendatacommunities.org/doc/district-council/wyre,30/12/2023,People and Places,Cultural and Related Services,132A,Lancashire Home Inspection Ltd,12/12/2023,PE155001,978.00,0.00,Thornton Cleveleys Sports Centre FY5 3SX: Commercial EPC,Planned Building Maintenance
Wyre Council,http://opendatacommunities.org/doc/district-council/wyre,30/12/2023,People and Places,Cultural and Related Services,132A,Cumbria Clock Company Ltd,20/12/2023,PE155542,6729.00,0.00,"Please undertake  all associated works to convert  the Mount clock from original wind up to auto wind (to include all 3 sections of works quoted i.e. quotes 1,2,3) on your quotation 31 May 23.12,470 plus VATNote contacts for access to the Mount Clo",Planned Building Maintenance
Wyre Council,http://opendatacommunities.org/doc/district-council/wyre,30/12/2023,People and Places,Planning and Development Servs,132C,RENTOKIL INITIAL UK LTD,18/12/2023,PE155165,243.04,0.00,R14121 Service Period 21/12/2023 to 20/03/2024,Planned Building Maintenance
Wyre Council,http://opendatacommunities.org/doc/district-council/wyre,30/12/2023,People and Places,Cultural and Related Services,132A,RENTOKIL INITIAL UK LTD,18/12/2023,PE155165,21.33,0.00,R14124 Service Period 21/12/2023 to 20/03/2024,Planned Building Maintenance
Wyre Council,http://opendatacommunities.org/doc/district-council/wyre,30/12/2023,People and Places,Planning and Development Servs,132C,RENTOKIL INITIAL UK LTD,18/12/2023,PE155165,333.32,0.00,R14122 Service Period 21/12/2023 to 20/03/2024,Planned Building Maintenance
Wyre Council,http://opendatacommunities.org/doc/district-council/wyre,30/12/2023,People and Places,Cultural and Related Services,132A,RENTOKIL INITIAL UK LTD,18/12/2023,PE155165,247.30,0.00,R14123 Service Period 21/12/2023 to 20/03/2024,Planned Building Maintenance
Wyre Council,http://opendatacommunities.org/doc/district-council/wyre,30/12/2023,People and Places,Support Services,135B,RENTOKIL INITIAL UK LTD,18/12/2023,PE155165,709.35,0.00,R14120 Service Period 21/12/2023 to 20/03/2024,Planned Building Maintenance
Wyre Council,http://opendatacommunities.org/doc/district-council/wyre,30/12/2023,Finance,Central Services to the Public,131C,SANTANDER,08/12/2023,WPST00127579,693.74,0.00,06/12/23 Santander Charges Nov 23,Plastic Cards Processing Fees
Wyre Council,http://opendatacommunities.org/doc/district-council/wyre,30/12/2023,People and Places,Support Services,135B, The Play Inspection Company LTD,05/12/2023,PE154956,1951.75,0.00,Annual Independent Playground Inspection to inspect and report on 38 sites,Playground Equipment
Wyre Council,http://opendatacommunities.org/doc/district-council/wyre,30/12/2023,Resources,Central Services to the Public,131C,Critiqom LTD,11/12/2023,RS155161,558.68,0.00,Services Nov 23 HSF4 DBR &amp; SMI,Postage
Wyre Council,http://opendatacommunities.org/doc/district-council/wyre,30/12/2023,Resources,Cultural and Related Services,132A,Critiqom LTD,11/12/2023,RS155161,13.00,0.00,Services Nov 23 IQ Post - Marine Hall,Postage
Wyre Council,http://opendatacommunities.org/doc/district-council/wyre,30/12/2023,Resources,Central Services to the Public,131C,Critiqom LTD,11/12/2023,RS155162,1899.15,0.00,Postage Nov 23 Daily Bills,Postage
Wyre Council,http://opendatacommunities.org/doc/district-council/wyre,30/12/2023,Resources,Central Services to the Public,131C,Critiqom LTD,11/12/2023,RS155161,421.33,0.00,Services Nov 23 Daily Bills,Postage
Wyre Council,http://opendatacommunities.org/doc/district-council/wyre,30/12/2023,Resources,Housing General Fund,134A,Critiqom LTD,11/12/2023,RS155162,156.66,0.00,Postage Nov 23 Benefit Notifications,Postage
Wyre Council,http://opendatacommunities.org/doc/district-council/wyre,30/12/2023,Resources,Housing General Fund,134A,Critiqom LTD,11/12/2023,RS155161,39.56,0.00,Services Nov 23 Benefit Notifications,Postage
Wyre Council,http://opendatacommunities.org/doc/district-council/wyre,30/12/2023,Resources,Support Services,135B,Critiqom LTD,11/12/2023,RS155161,300.00,0.00,Services Nov 23 Wyre Adhoc Welfare Rights Pension Check,Postage
Wyre Council,http://opendatacommunities.org/doc/district-council/wyre,30/12/2023,Resources,Support Services,135B,Critiqom LTD,11/12/2023,RS155161,477.18,0.00,Services Nov 23 Wyre Adhoc Welfare Rights Pension Check,Postage
Wyre Council,http://opendatacommunities.org/doc/district-council/wyre,30/12/2023,Resources,Support Services,135B,Critiqom LTD,11/12/2023,RS155162,440.64,0.00,Postage Nov 23 Council Tax Reminders,Postage
Wyre Council,http://opendatacommunities.org/doc/district-council/wyre,30/12/2023,Resources,Support Services,135B,Critiqom LTD,11/12/2023,RS155162,27.68,0.00,Postage Nov 23 NNDR Reminders,Postage
Wyre Council,http://opendatacommunities.org/doc/district-council/wyre,30/12/2023,Resources,Support Services,135B,Critiqom LTD,11/12/2023,RS155162,225.48,0.00,Postage Nov 23 Council Tax Summons,Postage
Wyre Council,http://opendatacommunities.org/doc/district-council/wyre,30/12/2023,Resources,Support Services,135B,Critiqom LTD,11/12/2023,RS155162,11.48,0.00,Postage Nov 23 NNDR Summons,Postage
Wyre Council,http://opendatacommunities.org/doc/district-council/wyre,30/12/2023,Resources,Support Services,135B,Critiqom LTD,11/12/2023,RS155161,346.58,0.00,Services Nov 23 IQ Post - Planning,Postage
Wyre Council,http://opendatacommunities.org/doc/district-council/wyre,30/12/2023,Resources,Central Services to the Public,131C,Critiqom LTD,11/12/2023,RS155161,307.22,0.00,Services Nov 23 IQ post - Electoral,Postage
Wyre Council,http://opendatacommunities.org/doc/district-council/wyre,30/12/2023,Resources,Support Services,135B,Critiqom LTD,11/12/2023,RS155161,957.14,0.00,Services Nov 23 IQ post - Off Serv Admin,Postage
Wyre Council,http://opendatacommunities.org/doc/district-council/wyre,30/12/2023,Resources,Support Services,135B,Critiqom LTD,11/12/2023,RS155161,1024.77,0.00,Services Nov 23 IQ post - CC,Postage
Wyre Council,http://opendatacommunities.org/doc/district-council/wyre,30/12/2023,Resources,Support Services,135B,Critiqom LTD,11/12/2023,RS155161,128.44,0.00,Services Nov 23 Ctax Reminders,Postage
Wyre Council,http://opendatacommunities.org/doc/district-council/wyre,30/12/2023,Resources,Support Services,135B,Critiqom LTD,11/12/2023,RS155161,3.44,0.00,Services Nov 23 NNDR Reminders,Postage
Wyre Council,http://opendatacommunities.org/doc/district-council/wyre,30/12/2023,Resources,Support Services,135B,Critiqom LTD,11/12/2023,RS155161,74.63,0.00,Services Nov 23 Ctax Summons,Postage
Wyre Council,http://opendatacommunities.org/doc/district-council/wyre,30/12/2023,Resources,Support Services,135B,Critiqom LTD,11/12/2023,RS155161,3.05,0.00,Services Nov 23 NNDR Summons,Postage
Wyre Council,http://opendatacommunities.org/doc/district-council/wyre,30/12/2023,Resources,Support Services,135B,Critiqom LTD,11/12/2023,RS155162,1290.64,0.00,Postage Nov 23 Wyre Adhoc Welfare Rights Pension Check,Postage
Wyre Council,http://opendatacommunities.org/doc/district-council/wyre,30/12/2023,Finance,Housing General Fund,134A,,05/12/2023,WPST00127173,679.10,0.00,Re council tax - 74245835,Private Contractors
Wyre Council,http://opendatacommunities.org/doc/district-council/wyre,30/12/2023,Finance,Housing General Fund,134A,,11/12/2023,WPST00127672,9000.00,0.00,07/12/23 Homes for Ukraine,Private Contractors
Wyre Council,http://opendatacommunities.org/doc/district-council/wyre,30/12/2023,People and Places,Parking Services,133F,NSL Services Group,08/12/2023,PE155090,4360.80,0.00,Provide enforcement officer for Wyre Council car parks - 1 April 2023 - 31 March 2024,Private Contractors
Wyre Council,http://opendatacommunities.org/doc/district-council/wyre,30/12/2023,People and Places,Environmental Services,132B,I E M S Services,12/12/2023,PE155182,950.00,0.00,David Knight. Email IEMS@blueyonder.co.ukIEMS110 Warbreck Hill RoadBlackpoolFY2 0TR. Carry out electrical work at Royles Brook pumping station as per your email quote sent 30th November 2023.Total 950.00,Private Contractors
Wyre Council,http://opendatacommunities.org/doc/district-council/wyre,30/12/2023,People and Places,Planning and Development Servs,132C,Relandscape LTD,20/12/2023,PE155533,5313.00,0.00,"Works to Cottam Hall Masterplan, Poulton.    Arranged by Christina Marginson",Project Costs
Wyre Council,http://opendatacommunities.org/doc/district-council/wyre,30/12/2023,Resources,Planning and Development Servs,132C,Cleveleys Town Centre Group Ltd,19/12/2023,RS155508,9000.00,0.00,Cleveleys Multiple Arts- This purchase order is from Aug-Dec,Project Costs
Wyre Council,http://opendatacommunities.org/doc/district-council/wyre,30/12/2023,People and Places,Cultural and Related Services,132A,The Creation Station Blackpool,05/12/2023,PE154966,300.00,0.00,"Payment 2 of 2 for arts and crafts sessions at Victoria Day Centre, Autumn 2023 = 300 of 850",Project Costs
Wyre Council,http://opendatacommunities.org/doc/district-council/wyre,30/12/2023,Finance,Planning and Development Servs,132C,,04/12/2023,WPST00126944,1833.33,0.00,Coach Drivrs refresh 011023 to 3009224,Promotions - General
Wyre Council,http://opendatacommunities.org/doc/district-council/wyre,30/12/2023,People and Places,Planning and Development Servs,132C,Amazon Business,06/12/2023,PE154665,107.97,0.00,3 sets Christmas lights 8lcd bulbs,Promotions - General
Wyre Council,http://opendatacommunities.org/doc/district-council/wyre,30/12/2023,People and Places,Cultural and Related Services,132A,Amazon Business,13/12/2023,PE155179,179.91,0.00,Fitwatches for participants on the PASTA and HAF programmes as an incentive to complete and attend the programmes,Promotions - General
Wyre Council,http://opendatacommunities.org/doc/district-council/wyre,30/12/2023,People and Places,Environmental Services,132B,Key Engineering & Hygiene Supplies LTD,14/12/2023,PE155170,69.54,0.00,"Supply 3 no Hi-vis Traffic Jackets, code S460YER in size 2XLWith Wyre logo to front and rear Delivery to Wyre Council, Copse Road Depot, Copse Road, Fleetwood, FY7 6RP",Protective Clothing
Wyre Council,http://opendatacommunities.org/doc/district-council/wyre,30/12/2023,People and Places,Cultural and Related Services,132A,Key Engineering & Hygiene Supplies LTD,21/12/2023,PE155540,101.60,0.00,4 x forestry kit helmets,Protective Clothing
Wyre Council,http://opendatacommunities.org/doc/district-council/wyre,30/12/2023,People and Places,Cultural and Related Services,132A,Key Engineering & Hygiene Supplies LTD,21/12/2023,PE155541,49.40,0.00,Blue hard hats basic,Protective Clothing
Wyre Council,http://opendatacommunities.org/doc/district-council/wyre,30/12/2023,People and Places,Housing General Fund,134A,Key Engineering & Hygiene Supplies LTD,15/12/2023,PE155326,15.68,0.00,"Supply fleece with Wyre emb logo as your quotation 21439FAO Chris WebsterDelivery to Wyre Council, Civic Centre, Poulton, FY6 7PU",Protective Clothing
Wyre Council,http://opendatacommunities.org/doc/district-council/wyre,30/12/2023,People and Places,Cultural and Related Services,132A,HUWS GRAY LTD,20/12/2023,PE155476,26.51,0.00,New wellies for Casual ranger,Protective Clothing
Wyre Council,http://opendatacommunities.org/doc/district-council/wyre,30/12/2023,People and Places,Support Services,135B,Amazon Business,07/12/2023,PE155063,53.50,0.00,Extra wide boots,Protective Clothing
Wyre Council,http://opendatacommunities.org/doc/district-council/wyre,30/12/2023,People and Places,Support Services,135B,Amazon Business,13/12/2023,PE155283,27.49,0.00,Nitrile safety wellington boots Weed spraying,Protective Clothing
Wyre Council,http://opendatacommunities.org/doc/district-council/wyre,30/12/2023,People and Places,Environmental Services,132B,Key Engineering & Hygiene Supplies LTD,18/12/2023,PE155428,883.00,0.00,"Supply and deliver before Christmas break 50 boxes of Blue Refuse bags, code BL09OCI @ 17.66 per box of 200Delivery to Wyre Council, Copse Road Depot, Copse Road, Fleetwood, FY7 6RP","Provision of Bins, Boxes and Sacks"
Wyre Council,http://opendatacommunities.org/doc/district-council/wyre,30/12/2023,People and Places,Environmental Services,132B,A & C Weber UK LTD,04/12/2023,PE154818,1065.00,0.00,240ltr V2/3 Blue Lids @ 7.10 per unit,"Provision of Bins, Boxes and Sacks"
Wyre Council,http://opendatacommunities.org/doc/district-council/wyre,30/12/2023,People and Places,Environmental Services,132B,A & C Weber UK LTD,04/12/2023,PE154818,129.00,0.00,V1 Lid Pins @ 0.30 each,"Provision of Bins, Boxes and Sacks"
Wyre Council,http://opendatacommunities.org/doc/district-council/wyre,30/12/2023,People and Places,Environmental Services,132B,A & C Weber UK LTD,04/12/2023,PE154818,11653.00,0.00,240ltr Grey Carcasses V1 @ 27.10 per unit,"Provision of Bins, Boxes and Sacks"
Wyre Council,http://opendatacommunities.org/doc/district-council/wyre,30/12/2023,People and Places,Environmental Services,132B,A & C Weber UK LTD,06/12/2023,PE155028,8145.00,0.00,240ltr Grey Carcasses V2 with Blue Lid @ 27.15 per unit,"Provision of Bins, Boxes and Sacks"
Wyre Council,http://opendatacommunities.org/doc/district-council/wyre,30/12/2023,People and Places,Environmental Services,132B,A & C Weber UK LTD,06/12/2023,PE155028,8145.00,0.00,240ltr Grey Carcasses V2 with Red Lid @ 27.15 per unit,"Provision of Bins, Boxes and Sacks"
Wyre Council,http://opendatacommunities.org/doc/district-council/wyre,30/12/2023,People and Places,Environmental Services,132B,A & C Weber UK LTD,06/12/2023,PE155028,3258.00,0.00,240ltr Grey Carcasses V2 with Green Lid @ 27.15 per unit,"Provision of Bins, Boxes and Sacks"
Wyre Council,http://opendatacommunities.org/doc/district-council/wyre,30/12/2023,People and Places,Environmental Services,132B,A & C Weber UK LTD,06/12/2023,PE155028,110.00,0.00,"DeliveryPrices as per ESPO Contract Schedule 860ADDDelivery ASAP (can accept delivery any time, but please advise in advance if possible)e-mail address:sales@w-weber.com & d.elliott@w-weber.com & t.anklam@w-weber.comTo be delivered","Provision of Bins, Boxes and Sacks"
Wyre Council,http://opendatacommunities.org/doc/district-council/wyre,30/12/2023,People and Places,Environmental Services,132B,A & C Weber UK LTD,04/12/2023,PE154818,280.00,0.00,V2/3 Lid Pins @ 0.35 each,"Provision of Bins, Boxes and Sacks"
Wyre Council,http://opendatacommunities.org/doc/district-council/wyre,30/12/2023,People and Places,Environmental Services,132B,A & C Weber UK LTD,04/12/2023,PE154818,110.00,0.00,"Delivery  Prices as per ESPO Contract Schedule 860ADD  Delivery ASAP  (can accept delivery any time, but please  advise in advance if possible) e-mail address: sales@w-weber.com &  d.elliott@w-weber.com &  t.anklam@w-weber.com  To be delivered to: Copse R","Provision of Bins, Boxes and Sacks"
Wyre Council,http://opendatacommunities.org/doc/district-council/wyre,30/12/2023,People and Places,Environmental Services,132B,A & C Weber UK LTD,04/12/2023,PE154818,710.00,0.00,240ltr V2/3 Green Lids @ 7.10 per unit,"Provision of Bins, Boxes and Sacks"
Wyre Council,http://opendatacommunities.org/doc/district-council/wyre,30/12/2023,People and Places,Environmental Services,132B,A & C Weber UK LTD,04/12/2023,PE154818,1065.00,0.00,240ltr V2/3 Grey Lids @ 7.10 per unit,"Provision of Bins, Boxes and Sacks"
Wyre Council,http://opendatacommunities.org/doc/district-council/wyre,30/12/2023,People and Places,Environmental Services,132B,Veolia ES (UK) LTD,22/12/2023,PE155566,4977.81,0.00,Bin Provision,"Provision of Bins, Boxes and Sacks"
Wyre Council,http://opendatacommunities.org/doc/district-council/wyre,30/12/2023,Resources,Support Services,135B,Zurich Municipal,15/12/2023,RS155345,45102.86,0.00,Combined renewal invoice,Public and Product Liability Insurance
Wyre Council,http://opendatacommunities.org/doc/district-council/wyre,30/12/2023,Resources,Support Services,135B,Zurich Municipal,15/12/2023,RS155345,942.17,0.00,Combined renewal invoice,Public Health Act Insurance
Wyre Council,http://opendatacommunities.org/doc/district-council/wyre,30/12/2023,Resources,Support Services,135B,Preston City Council,18/12/2023,RS155348,30.22,0.00,,Public Relations
Wyre Council,http://opendatacommunities.org/doc/district-council/wyre,30/12/2023,Resources,Support Services,135B,Preston City Council,18/12/2023,RS155348,48.89,0.00,"Bus stop poster, leaflets and posters ordered for Festive Fayre",Public Relations
Wyre Council,http://opendatacommunities.org/doc/district-council/wyre,30/12/2023,Resources,Support Services,135B,Preston City Council,18/12/2023,RS155350,105.40,0.00, to supply and post as per quote Wyre007 . Req 081123 A4 pad  white/yellow-pink in 50sets - Shellfish Registration,Purchase of Publications
Wyre Council,http://opendatacommunities.org/doc/district-council/wyre,30/12/2023,Resources,Housing General Fund,134A,Key Engineering & Hygiene Supplies LTD,06/12/2023,RS155023,12.00,0.00,SAFETY HELMET,Purchase of Tools or Equipment
Wyre Council,http://opendatacommunities.org/doc/district-council/wyre,30/12/2023,People and Places,Support Services,135B,Aitch Tools & Fasteners LTD,14/12/2023,PE155290,183.40,0.00,Materials,Purchase of Tools or Equipment
Wyre Council,http://opendatacommunities.org/doc/district-council/wyre,30/12/2023,People and Places,Support Services,135B,Aitch Tools & Fasteners LTD,14/12/2023,PE155290,988.00,0.00,Materials,Purchase of Tools or Equipment
Wyre Council,http://opendatacommunities.org/doc/district-council/wyre,30/12/2023,People and Places,Support Services,135B,Steve Wear Blinds,18/12/2023,PE155398,800.00,0.00,6 x vertical blinds to committee rooms 1 & 2,Purchase of Tools or Equipment
Wyre Council,http://opendatacommunities.org/doc/district-council/wyre,30/12/2023,People and Places,Cultural and Related Services,132A,Thornton Cleveleys Operatic Society,06/12/2023,PE155037,38780.00,0.00,TCOS Phantom 22 to 28/10/23 ticket sales,Refund of Ticket Sales to Ext Promoters
Wyre Council,http://opendatacommunities.org/doc/district-council/wyre,30/12/2023,People and Places,Cultural and Related Services,132A,Cou-Cou Theatre Productions CIC,06/12/2023,PE155034,15352.00,0.00,Nativity the Musical Nov 23 ticket sales,Refund of Ticket Sales to Ext Promoters
Wyre Council,http://opendatacommunities.org/doc/district-council/wyre,30/12/2023,People and Places,Cultural and Related Services,132A,Starlight Stage School,06/12/2023,PE155038,7160.00,0.00,Starlight - Matilda Jnr 19 to 25 Nov 23 ticket sales,Refund of Ticket Sales to Ext Promoters
Wyre Council,http://opendatacommunities.org/doc/district-council/wyre,30/12/2023,People and Places,Planning and Development Servs,132C,Suez Recycling And Recovery UK LTD,06/12/2023,PE154955,1371.75,0.00,waste removal market suez,Refuse Collection
Wyre Council,http://opendatacommunities.org/doc/district-council/wyre,30/12/2023,People and Places,Environmental Services,132B,Veolia ES (UK) LTD,22/12/2023,PE155566,194547.14,0.00,Domestic Waste Management Collection Contract 2023/24,Refuse Collection Contract
Wyre Council,http://opendatacommunities.org/doc/district-council/wyre,30/12/2023,People and Places,Environmental Services,132B,Veolia ES (UK) LTD,22/12/2023,PE155566,436.50,0.00,Pension Pass Through,Refuse Collection Contract
Wyre Council,http://opendatacommunities.org/doc/district-council/wyre,30/12/2023,People and Places,Environmental Services,132B,Calico Enterprise,04/12/2023,PE154908,1946.64,0.00,Bulky Matters Contract Calico 2023/24,Refuse Collection Contract
Wyre Council,http://opendatacommunities.org/doc/district-council/wyre,30/12/2023,People and Places,Environmental Services,132B,Calico Enterprise,22/12/2023,PE155567,1946.64,0.00,Bulky Matters Contract Calico 2023/24,Refuse Collection Contract
Wyre Council,http://opendatacommunities.org/doc/district-council/wyre,30/12/2023,People and Places,Cultural and Related Services,132A,EAS Electrical Mechanical,15/12/2023,PE155303,48.00,0.00,Rossall Point Observatory: Internal and External lights are on a sensor - can these be given an override switch so when an event is on the lights will not time out whilst people are on the premises,Responsive Building Maintenance
Wyre Council,http://opendatacommunities.org/doc/district-council/wyre,30/12/2023,People and Places,Cultural and Related Services,132A,EAS Electrical Mechanical,15/12/2023,PE155302,121.54,0.00,Cottam Hall Pavillion: Investigate lack of light to ladies toilets in pavailion,Responsive Building Maintenance
Wyre Council,http://opendatacommunities.org/doc/district-council/wyre,30/12/2023,People and Places,Environmental Services,132B,EAS Electrical Mechanical,15/12/2023,PE155315,65.47,0.00,"Beach Rd Cemetery, Fleetwood: Investigate fault on bib tap, isolate water to tap and replace with new, test on completetion",Responsive Building Maintenance
Wyre Council,http://opendatacommunities.org/doc/district-council/wyre,30/12/2023,People and Places,Cultural and Related Services,132A,EAS Electrical Mechanical,15/12/2023,PE155306,49.03,0.00,"Marine Hall: Investigate fault with storage heater, fuse has blown and thermal cut out tripped reset and replaced fuse, tested and heating up",Responsive Building Maintenance
Wyre Council,http://opendatacommunities.org/doc/district-council/wyre,30/12/2023,People and Places,Cultural and Related Services,132A,EAS Electrical Mechanical,15/12/2023,PE155304,54.89,0.00,"Marine hall: Isolate water to cold tap, install top hat and tighten, test on completion",Responsive Building Maintenance
Wyre Council,http://opendatacommunities.org/doc/district-council/wyre,30/12/2023,People and Places,Cultural and Related Services,132A,EAS Electrical Mechanical,15/12/2023,PE155305,48.00,0.00,Thornton Little Theatre: Investigate water leak and look at possible root cause,Responsive Building Maintenance
Wyre Council,http://opendatacommunities.org/doc/district-council/wyre,30/12/2023,People and Places,Cultural and Related Services,132A,EAS Electrical Mechanical,15/12/2023,PE155301,96.00,0.00,Thornton Little Theatre: labour,Responsive Building Maintenance
Wyre Council,http://opendatacommunities.org/doc/district-council/wyre,30/12/2023,People and Places,Environmental Services,132B,EAS Electrical Mechanical,15/12/2023,PE155310,48.00,0.00,"Chatsworth Depot: outside light no power traced back to key sw which was turned off after an emergency light test turned on Al, good",Responsive Building Maintenance
Wyre Council,http://opendatacommunities.org/doc/district-council/wyre,30/12/2023,People and Places,Planning and Development Servs,132C,EAS Electrical Mechanical,15/12/2023,PE155307,62.99,0.00,"Copse  Rd Depot: Investigate fault on unrinal 1st floor gents, unblock 2 no. urinals and pipework, test on completion",Responsive Building Maintenance
Wyre Council,http://opendatacommunities.org/doc/district-council/wyre,30/12/2023,People and Places,Planning and Development Servs,132C,EAS Electrical Mechanical,15/12/2023,PE155311,142.31,0.00,Copse Rd Depot: Replaced x2 4inch fans,Responsive Building Maintenance
Wyre Council,http://opendatacommunities.org/doc/district-council/wyre,30/12/2023,People and Places,Planning and Development Servs,132C,EAS Electrical Mechanical,15/12/2023,PE155316,131.11,0.00,Fleetwood Market: Remove and replace damaged accessible toilet seat,Responsive Building Maintenance
Wyre Council,http://opendatacommunities.org/doc/district-council/wyre,30/12/2023,People and Places,Planning and Development Servs,132C,EAS Electrical Mechanical,18/12/2023,PE155395,1057.45,0.00,Replace faulty lamps and wiring  at cpse road,Responsive Building Maintenance
Wyre Council,http://opendatacommunities.org/doc/district-council/wyre,30/12/2023,People and Places,Planning and Development Servs,132C,EAS Electrical Mechanical,18/12/2023,PE155403,211.50,0.00,Broken Storage Heater at Copse Road. Removed and re installed new heater with timer,Responsive Building Maintenance
Wyre Council,http://opendatacommunities.org/doc/district-council/wyre,30/12/2023,People and Places,Planning and Development Servs,132C,EAS Electrical Mechanical,15/12/2023,PE155300,69.00,0.00,Fleetwood Market: Remove and replace 8 no. batteries in fire doors and test,Responsive Building Maintenance
Wyre Council,http://opendatacommunities.org/doc/district-council/wyre,30/12/2023,People and Places,Planning and Development Servs,132C,EAS Electrical Mechanical,15/12/2023,PE155319,66.11,0.00,wFleetwood Market: Replaced 1 x double metal clad socket in vape store and 1 switched fused spur and back box in fruit and veg shop,Responsive Building Maintenance
Wyre Council,http://opendatacommunities.org/doc/district-council/wyre,30/12/2023,People and Places,Support Services,135B,EAS Electrical Mechanical,11/12/2023,PE155168,49.05,0.00,"Civic Centre: Investigate leak on ladies toilets, check all outlets, cubicle 3 leaking from syphon, isolate toilet and replace spilt washer and test",Responsive Building Maintenance
Wyre Council,http://opendatacommunities.org/doc/district-council/wyre,30/12/2023,People and Places,Support Services,135B,EAS Electrical Mechanical,15/12/2023,PE155318,48.00,0.00,Civic Centre: isolate electrics to annexe following water leak,Responsive Building Maintenance
Wyre Council,http://opendatacommunities.org/doc/district-council/wyre,30/12/2023,People and Places,Support Services,135B,EAS Electrical Mechanical,15/12/2023,PE155313,48.00,0.00,"Civic Centre: Investigate problem on radiator, remove trv, release stuck pin and allow to cool",Responsive Building Maintenance
Wyre Council,http://opendatacommunities.org/doc/district-council/wyre,30/12/2023,People and Places,Support Services,135B,EAS Electrical Mechanical,18/12/2023,PE155397,581.62,0.00,Install additional power sockets to room 112,Responsive Building Maintenance
Wyre Council,http://opendatacommunities.org/doc/district-council/wyre,30/12/2023,People and Places,Support Services,135B,EAS Electrical Mechanical,18/12/2023,PE155396,487.50,0.00,Repair external lights to garden side elevation - members lounge civic centre,Responsive Building Maintenance
Wyre Council,http://opendatacommunities.org/doc/district-council/wyre,30/12/2023,People and Places,Environmental Services,132B,EAS Electrical Mechanical,20/12/2023,PE155507,120.91,0.00,"Preesall Cemetery: Investigate leak on pipework, water leaking from pipe, replace non return, back plate elbow and bib tap, unable to test properly as don`t know where water is turned off and no contact no or anyone on site",Responsive Building Maintenance
Wyre Council,http://opendatacommunities.org/doc/district-council/wyre,30/12/2023,People and Places,Cultural and Related Services,132A,EAS Electrical Mechanical,15/12/2023,PE155308,97.99,0.00,"Cottage 2, Mount Rd, Fleetwood: No power at water heater but at db something had tripped but wasn`t labelled water heater turned on and water heater was live but protected by c10 rcbo swapped rcbos around so labelled correctly and installed 20amp rcb",Responsive Building Maintenance
Wyre Council,http://opendatacommunities.org/doc/district-council/wyre,30/12/2023,People and Places,Cultural and Related Services,132A,EAS Electrical Mechanical,15/12/2023,PE155312,119.00,0.00,Mount Pavilion: Installed x2 surface pvc sockets fed via local clock  circuit 20amp,Responsive Building Maintenance
Wyre Council,http://opendatacommunities.org/doc/district-council/wyre,30/12/2023,People and Places,Cultural and Related Services,132A,EAS Electrical Mechanical,15/12/2023,PE155320,80.83,0.00,"Mount Cottages: investigate leak on toilet, carried out repair on cistern behind hatch and test",Responsive Building Maintenance
Wyre Council,http://opendatacommunities.org/doc/district-council/wyre,30/12/2023,People and Places,Cultural and Related Services,132A,EAS Electrical Mechanical,15/12/2023,PE155317,72.00,0.00,"Marine Hall: Urgent call out to smell of burning from electrics in the disabled toilet, water in the electrics via leak in the roof",Responsive Building Maintenance
Wyre Council,http://opendatacommunities.org/doc/district-council/wyre,30/12/2023,People and Places,Cultural and Related Services,132A,EAS Electrical Mechanical,15/12/2023,PE155314,24.00,0.00,"Marine Hall: Attended site , staff said cleaner has carried out repairing by tightening seat, checked and all ok",Responsive Building Maintenance
Wyre Council,http://opendatacommunities.org/doc/district-council/wyre,30/12/2023,People and Places,Cultural and Related Services,132A,EAS Electrical Mechanical,15/12/2023,PE155309,48.00,0.00,Marine Hall: Repair or replace strip light to main porch,Responsive Building Maintenance
Wyre Council,http://opendatacommunities.org/doc/district-council/wyre,30/12/2023,People and Places,Support Services,135B,John Carney,20/12/2023,PE155506,220.00,0.00,Civic Centre room 178: For carrying out roofing repairs to flat roof bay and land gutter to stop water ingress,Responsive Building Maintenance
Wyre Council,http://opendatacommunities.org/doc/district-council/wyre,30/12/2023,People and Places,Support Services,135B,John Carney,18/12/2023,PE155401,170.00,0.00,"Carrying out work to gutters and land valley, unblocking debris lodged in downpipes at Civice Centre Room 104",Responsive Building Maintenance
Wyre Council,http://opendatacommunities.org/doc/district-council/wyre,30/12/2023,People and Places,Environmental Services,132B,John Carney,18/12/2023,PE155399,180.00,0.00,Carrying out slate repairs to front and rear of main roof at Preesall Cemetery,Responsive Building Maintenance
Wyre Council,http://opendatacommunities.org/doc/district-council/wyre,30/12/2023,People and Places,Cultural and Related Services,132A,FCB Building and Roofing Ltd,21/12/2023,PE155073,1681.49,0.00,"Further to your quote ref: 6653 1681.49 +VAT Please undertake test and repair to single ply membrane over studio at Poulton Leisure Centre, Breck Road, Poulton - le - Fylde. FY6 7HJ.",Responsive Building Maintenance
Wyre Council,http://opendatacommunities.org/doc/district-council/wyre,30/12/2023,People and Places,Cultural and Related Services,132A,GARRY CARR BUILDING SERVICES LTD,19/12/2023,PE155473,180.00,0.00,Carry out repairs to roof leak at Poulton Baths,Responsive Building Maintenance
Wyre Council,http://opendatacommunities.org/doc/district-council/wyre,30/12/2023,People and Places,Cultural and Related Services,132A,GARRY CARR BUILDING SERVICES LTD,19/12/2023,PE155321,331.00,0.00,Undertake roof repairs at Poulton Swimming Baths,Responsive Building Maintenance
Wyre Council,http://opendatacommunities.org/doc/district-council/wyre,30/12/2023,People and Places,Cultural and Related Services,132A,GARRY CARR BUILDING SERVICES LTD,08/12/2023,PE155021,175.00,0.00,Pharos Lighthouse - internal clean down of walls and stairs.  Remove rubbish,Responsive Building Maintenance
Wyre Council,http://opendatacommunities.org/doc/district-council/wyre,30/12/2023,People and Places,Cultural and Related Services,132A,GARRY CARR BUILDING SERVICES LTD,12/12/2023,PE154796,86.00,0.00,Mount Cottages: Magicide steps and flagged areas,Responsive Building Maintenance
Wyre Council,http://opendatacommunities.org/doc/district-council/wyre,30/12/2023,People and Places,Cultural and Related Services,132A,GARRY CARR BUILDING SERVICES LTD,19/12/2023,PE155471,113.00,0.00,Repair concrete base at Duck Pond Shelter Cleveleys,Responsive Building Maintenance
Wyre Council,http://opendatacommunities.org/doc/district-council/wyre,30/12/2023,People and Places,Support Services,135B,GARRY CARR BUILDING SERVICES LTD,18/12/2023,PE155322,110.00,0.00,"Finance Office, room 174, investigate roof leak to corner of office",Responsive Building Maintenance
Wyre Council,http://opendatacommunities.org/doc/district-council/wyre,30/12/2023,People and Places,Cultural and Related Services,132A,GARRY CARR BUILDING SERVICES LTD,08/12/2023,PE155022,100.00,0.00,Marsh Mill.  Attend site and remove 2 loose shutters to sails,Responsive Building Maintenance
Wyre Council,http://opendatacommunities.org/doc/district-council/wyre,30/12/2023,People and Places,Cultural and Related Services,132A,EUROSAFE SOLUTIONS LTD,14/12/2023,PE154910,1988.00,0.00,Pharos Lighthouse,Responsive Building Maintenance
Wyre Council,http://opendatacommunities.org/doc/district-council/wyre,30/12/2023,People and Places,Support Services,135B,Harrison External Display Systems,12/12/2023,PE155051,1000.00,0.00,"Service of the flagpole including access platformThe Mount, Fleetwood Amended quotation 11/2023 - 5765",Routine Maintenance
Wyre Council,http://opendatacommunities.org/doc/district-council/wyre,30/12/2023,Resources,Support Services,135B,Phoenix Software LTD,11/12/2023,RS154568,978.51,0.00,Azure overage for period ending October 2023,Software Maintenance
Wyre Council,http://opendatacommunities.org/doc/district-council/wyre,30/12/2023,Resources,Support Services,135B,Phoenix Software LTD,04/12/2023,RS154954,13608.00,0.00,SQL Server Standard Core All Language Subscription 2 Core - LicencePeriod 1/1/2023 to 31/12/2024SCE Year 2,Software Maintenance
Wyre Council,http://opendatacommunities.org/doc/district-council/wyre,30/12/2023,Resources,Support Services,135B,NEC Software Solutions UK Limited,12/12/2023,RS154958,9500.00,0.00,"SUPPLIER REFERENCE:CRM 145376 - SAG 10 days Consultancy Block Booking� To be utilised by the Customer on a call off basis� To be delivered: Remotely, during normal working hours� All days must be used within 18 months from the date of order.",Software Maintenance
Wyre Council,http://opendatacommunities.org/doc/district-council/wyre,30/12/2023,Resources,Support Services,135B,JADU CREATIVE LTD,04/12/2023,RS153920,6093.15,0.00,Bundled Address Base Premium Full GB and LLPG,Software Maintenance
Wyre Council,http://opendatacommunities.org/doc/district-council/wyre,30/12/2023,Resources,Support Services,135B,JADU CREATIVE LTD,04/12/2023,RS153920,11700.00,0.00,Live Hosting Gold,Software Maintenance
Wyre Council,http://opendatacommunities.org/doc/district-council/wyre,30/12/2023,Resources,Support Services,135B,JADU CREATIVE LTD,04/12/2023,RS153920,2400.00,0.00,UAT Hosting - Gold,Software Maintenance
Wyre Council,http://opendatacommunities.org/doc/district-council/wyre,30/12/2023,Resources,Support Services,135B,JADU CREATIVE LTD,04/12/2023,RS153920,17447.67,0.00,Jadu Connect (CXM),Software Maintenance
Wyre Council,http://opendatacommunities.org/doc/district-council/wyre,30/12/2023,Resources,Support Services,135B,JADU CREATIVE LTD,04/12/2023,RS153920,1869.86,0.00,Jadu Central Content Only Basic Support,Software Maintenance
Wyre Council,http://opendatacommunities.org/doc/district-council/wyre,30/12/2023,Resources,Support Services,135B,JADU CREATIVE LTD,04/12/2023,RS153920,1869.86,0.00,Jadu Central Forms Only Basic Support,Software Maintenance
Wyre Council,http://opendatacommunities.org/doc/district-council/wyre,30/12/2023,Resources,Support Services,135B,JADU CREATIVE LTD,04/12/2023,RS153920,840.00,0.00,Paybridge Software Support,Software Maintenance
Wyre Council,http://opendatacommunities.org/doc/district-council/wyre,30/12/2023,Resources,Support Services,135B,JADU CREATIVE LTD,04/12/2023,RS153920,240.00,0.00,Paybridge Adapter Support,Software Maintenance
Wyre Council,http://opendatacommunities.org/doc/district-council/wyre,30/12/2023,Resources,Support Services,135B,JADU CREATIVE LTD,04/12/2023,RS153920,455.89,0.00,Custom Support - Bin Lookup,Software Maintenance
Wyre Council,http://opendatacommunities.org/doc/district-council/wyre,30/12/2023,Resources,Support Services,135B,THE NETWORKING PEOPLE (TNP) LTD,04/12/2023,RS154261,5784.00,0.00,Renewal of Network Service Support (inc. 48 RMACs),Software Maintenance
Wyre Council,http://opendatacommunities.org/doc/district-council/wyre,30/12/2023,Resources,Support Services,135B,8x8 UK Limited,11/12/2023,RS155024,251.00,0.00,Additional Local Number x 502,Software Maintenance
Wyre Council,http://opendatacommunities.org/doc/district-council/wyre,30/12/2023,Resources,Support Services,135B,8x8 UK Limited,11/12/2023,RS155024,1117.20,0.00,SVC: X Series - X1 UK GOV x 280,Software Maintenance
Wyre Council,http://opendatacommunities.org/doc/district-council/wyre,30/12/2023,Resources,Support Services,135B,8x8 UK Limited,11/12/2023,RS155024,218.40,0.00,X Series - X2 x12,Software Maintenance
Wyre Council,http://opendatacommunities.org/doc/district-council/wyre,30/12/2023,Resources,Support Services,135B,8x8 UK Limited,11/12/2023,RS155024,928.00,0.00,X Series - X4 x32,Software Maintenance
Wyre Council,http://opendatacommunities.org/doc/district-council/wyre,30/12/2023,Resources,Support Services,135B,8x8 UK Limited,11/12/2023,RS155024,87.60,0.00,SVC Usage INTL,Software Maintenance
Wyre Council,http://opendatacommunities.org/doc/district-council/wyre,30/12/2023,People and Places,Planning and Development Servs,132C,NEWSQUEST MEDIA GROUP,11/12/2023,PE154959,412.50,0.00,Lancashire Life ad for FM,Special Events
Wyre Council,http://opendatacommunities.org/doc/district-council/wyre,30/12/2023,People and Places,Planning and Development Servs,132C,Same Difference Arts Ltd,20/12/2023,PE155509,668.00,0.00,BS FM,Special Events
Wyre Council,http://opendatacommunities.org/doc/district-council/wyre,30/12/2023,People and Places,Planning and Development Servs,132C,Amazon Business,04/12/2023,PE154943,4.16,0.00,Crafts for FM event,Special Events
Wyre Council,http://opendatacommunities.org/doc/district-council/wyre,30/12/2023,People and Places,Planning and Development Servs,132C,Amazon Business,04/12/2023,PE154945,12.13,0.00,Crafts for FM event,Special Events
Wyre Council,http://opendatacommunities.org/doc/district-council/wyre,30/12/2023,People and Places,Planning and Development Servs,132C,Amazon Business,04/12/2023,PE154944,16.32,0.00,Crafts for FM event,Special Events
Wyre Council,http://opendatacommunities.org/doc/district-council/wyre,30/12/2023,People and Places,Planning and Development Servs,132C,Amazon Business,04/12/2023,PE154930,3.75,0.00,Crafts for FM event,Special Events
Wyre Council,http://opendatacommunities.org/doc/district-council/wyre,30/12/2023,People and Places,Planning and Development Servs,132C,Amazon Business,01/12/2023,PE154923,6.14,0.00,Crafts for FM event,Special Events
Wyre Council,http://opendatacommunities.org/doc/district-council/wyre,30/12/2023,People and Places,Planning and Development Servs,132C,Amazon Business,01/12/2023,PE154926,8.26,0.00,Crafts for FM event,Special Events
Wyre Council,http://opendatacommunities.org/doc/district-council/wyre,30/12/2023,People and Places,Planning and Development Servs,132C,Amazon Business,04/12/2023,PE154946,7.98,0.00,Crafts for FM event,Special Events
Wyre Council,http://opendatacommunities.org/doc/district-council/wyre,30/12/2023,People and Places,Support Services,135B,Dr Tree Surgeons,20/12/2023,PE155543,500.00,0.00,Quote Number: 9131 Extra Tree work at Civic Centre as requested. 500.00 500.00Total Net Amount: 500.00VAT @ 20%: 100.00Quote Total: 600.00,Special Maintenance - Trees
Wyre Council,http://opendatacommunities.org/doc/district-council/wyre,30/12/2023,People and Places,Support Services,135B,Dr Tree Surgeons,20/12/2023,PE155545,380.00,0.00,"Quote Number: 900Quote Ref: Park next to Carleton St Hilda`s1 Hard reduce on on previously pollard, poplar tree and trim back remaining two poplar trees from neighbouring property up 12 foot 380.00 Total Net Amount: 380.00VAT @ 20%: 76.00",Special Maintenance - Trees
Wyre Council,http://opendatacommunities.org/doc/district-council/wyre,30/12/2023,People and Places,Support Services,135B,Dr Tree Surgeons,18/12/2023,PE155421,700.00,0.00,Quote Number: 902 1 Carry out tree works as per site meeting with Ryan arrell  on treessurrounding civic center car parkQuote based on car parking bays along tree line being clearWorks to be undertakenPhoto 1&#8208;1a Hard Cut back of,Special Maintenance - Trees
Wyre Council,http://opendatacommunities.org/doc/district-council/wyre,30/12/2023,People and Places,Support Services,135B,Dr Tree Surgeons,13/12/2023,PE155278,380.00,0.00,Quote Number: 901Quote Ref: Leyfield Close1 Pollard a group Willow Trees  to  approximately 5 feet .Total Net Amount: 380.00VAT @ 20%: 76.00Quote Total: 456.00,Special Maintenance - Trees
Wyre Council,http://opendatacommunities.org/doc/district-council/wyre,30/12/2023,People and Places,Support Services,135B,HMA Tree Care,19/12/2023,PE155461,1720.00,0.00,"Date Sent: 30/10/2023 Quote No: 614 Surveyor: Ben WallerSite Address - Pheasants Wood , Thornton Cleveleys Undertake all tree works identified on the Quote Schedule regarding trees and tree groups:G1 a,b,c,d T1 G2 T2 T3, T5,T6,T7,T8, T9,T10.",Special Maintenance - Trees
Wyre Council,http://opendatacommunities.org/doc/district-council/wyre,30/12/2023,People and Places,Support Services,135B,HMA Tree Care,19/12/2023,PE155460,450.00,0.00,"Quote No: 634 Site Address church road playing field , church road , Thornton , Lancashire , FY5 2TZT1 White poplarAir Spade -create trench for surveying root system along neighbour fence to establish the extentof root system causing growth in",Special Maintenance - Trees
Wyre Council,http://opendatacommunities.org/doc/district-council/wyre,30/12/2023,People and Places,Support Services,135B,HMA Tree Care,20/12/2023,PE155528,450.00,0.00,"Quote 629 Site Address poulton cemetery , Garstang road east , poulton , fy6 8jhG5 White poplar Reduce back selected branches to provide 4 metres clearance from neighbouringbuilding roof. Sever ivy from all stems. Access required next door property.",Special Maintenance - Trees
Wyre Council,http://opendatacommunities.org/doc/district-council/wyre,30/12/2023,People and Places,Support Services,135B,T-Fer Tree Surgeons,18/12/2023,PE155427,850.00,0.00,Quote 0045 03/12/23Broadwater Woods - Tree works as per schedule along Bridle path.850Total quote value 850,Special Maintenance - Trees
Wyre Council,http://opendatacommunities.org/doc/district-council/wyre,30/12/2023,People and Places,Support Services,135B,T-Fer Tree Surgeons,21/12/2023,PE155534,550.00,0.00,"Quote 004715/12/23Vicarage Park, PoultonCherry, fruiting bodies around base. Fell and grind stump.550Total net amount 550VAT@20% 0Quote total 550",Special Maintenance - Trees
Wyre Council,http://opendatacommunities.org/doc/district-council/wyre,30/12/2023,People and Places,Support Services,135B,T-Fer Tree Surgeons,14/12/2023,PE155286,2230.00,0.00,"Quote 0042 Memorial Park , Fleetwood01/12/23Memorial garden, fleetwood , Scheduled tree works around Memorial garden.2,230Total net amount 2230VAT at 20% 0Quote total 2230",Special Maintenance - Trees
Wyre Council,http://opendatacommunities.org/doc/district-council/wyre,30/12/2023,People and Places,Support Services,135B,T-Fer Tree Surgeons,14/12/2023,PE155287,400.00,0.00,"Quote 0043 127a breck road, Poulton Lift and reduce back to allow clearance for open reach 280 Reduce hawthorn 120Total Net Amount 400VAT @20% 0Quote Total 400",Special Maintenance - Trees
Wyre Council,http://opendatacommunities.org/doc/district-council/wyre,30/12/2023,People and Places,Environmental Services,132B,HUWS GRAY LTD,12/12/2023,PE154809,336.26,0.00, To supply for collection Week comm - 06/11/23  as per Quote  H5L18242  30           concrete block  10           wyresdale smooth slab 600x600  10           Common brick concrete  2             cement  10           building sand mini bag  10           gr,Special Works
Wyre Council,http://opendatacommunities.org/doc/district-council/wyre,30/12/2023,Resources,Support Services,135B,Amazon Business,15/12/2023,RS155331,48.40,0.00,REY ADAGIO A3 YELLOW 80GSM PAPER (500 SHEETS),Stationery
Wyre Council,http://opendatacommunities.org/doc/district-council/wyre,30/12/2023,Resources,Support Services,135B,Amazon Business,13/12/2023,RS155280,9.91,0.00,"1 x 5 Packs Spiral Notepad A5, 120 Pages/ 60 Sheets Kraft Cover Wirebound Notebooks Bulk Journals, 8.3 * 5.5 inch Lined Notebook for Business Office School Travel",Stationery
Wyre Council,http://opendatacommunities.org/doc/district-council/wyre,30/12/2023,People and Places,Support Services,135B,Amazon Business,18/12/2023,PE155440,60.31,0.00,Fellowes office Laminator  to replace broken one in room 132,Stationery
Wyre Council,http://opendatacommunities.org/doc/district-council/wyre,30/12/2023,People and Places,Cultural and Related Services,132A,Amazon Business,04/12/2023,PE154781,2.66,0.00,Sticky pads,Stationery
Wyre Council,http://opendatacommunities.org/doc/district-council/wyre,30/12/2023,People and Places,Support Services,135B,Amazon Business,12/12/2023,PE155085,36.99,0.00,Book called High Street: How our town centres can bounce back from the retail crisis,Stationery
Wyre Council,http://opendatacommunities.org/doc/district-council/wyre,30/12/2023,People and Places,Current Assets,130B,Standard Fuel Oils,18/12/2023,PE155425,41513.80,0.00,"SUPPLY AND DELIVER DIESEL 35089 LITRES @ 1.1831 pplDELIVERED 5/12/23Delivered to Copse Road Depot, Fleetwood",Stock - Copse Road Fuel
Wyre Council,http://opendatacommunities.org/doc/district-council/wyre,30/12/2023,Resources,Current Assets,130B,Whistl Uk Limited,20/12/2023,RS155518,363.72,0.00,Postal charges 01/04/2023-31/03/2024,Stores Purchases
Wyre Council,http://opendatacommunities.org/doc/district-council/wyre,30/12/2023,Resources,Current Assets,130B,Whistl Uk Limited,05/12/2023,RS154988,225.93,0.00,Postal charges 01/04/2023-31/03/2024,Stores Purchases
Wyre Council,http://opendatacommunities.org/doc/district-council/wyre,30/12/2023,Resources,Current Assets,130B,Whistl Uk Limited,05/12/2023,RS154988,1.60,0.00,Postal charges 01/04/2023-31/03/2024,Stores Purchases
Wyre Council,http://opendatacommunities.org/doc/district-council/wyre,30/12/2023,Resources,Current Assets,130B,Whistl Uk Limited,18/12/2023,RS155327,327.40,0.00,Postal charges 01/04/2023-31/03/2024,Stores Purchases
Wyre Council,http://opendatacommunities.org/doc/district-council/wyre,30/12/2023,Resources,Current Assets,130B,Whistl Uk Limited,18/12/2023,RS155327,3.90,0.00,Postal charges 01/04/2023-31/03/2024,Stores Purchases
Wyre Council,http://opendatacommunities.org/doc/district-council/wyre,30/12/2023,Resources,Current Assets,130B,Pitney Bowes LTD  Postage By Phone,06/12/2023,RS155009,1000.61,0.00,Franking Machine Top Up,Stores Purchases
Wyre Council,http://opendatacommunities.org/doc/district-council/wyre,30/12/2023,People and Places,Environmental Services,132B,Nicholaus Cardwell Building & Maintenance,20/12/2023,PE155505,216.00,0.00,RE:TO PRESURE WASH EMULSION PAINT (AT 3 X AREAS) FROM ROAD ADJ TO MANOR APARTMENTS POULTON GARDENS POULTON,Street Cleansing Projects
Wyre Council,http://opendatacommunities.org/doc/district-council/wyre,30/12/2023,Resources,Support Services,135B,LA Directories Ltd,19/12/2023,RS155496,440.00,0.00,Specified Accommodation and Service Charges � two-day 24/01/2024 25/01/2024 - Caroline Porter,Technical Training
Wyre Council,http://opendatacommunities.org/doc/district-council/wyre,30/12/2023,Resources,Support Services,135B,LA Directories Ltd,19/12/2023,RS155496,325.00,0.00,Subsidy Course 07/02/2024 - 08/02/2024 - Caroline Porter,Technical Training
Wyre Council,http://opendatacommunities.org/doc/district-council/wyre,30/12/2023,Resources,Support Services,135B,Daisy Communications LTD,18/12/2023,RS155033,39.72,0.00,Service Charges 01/12/23 to 31/12/23,Telephone - Buildings and Offices
Wyre Council,http://opendatacommunities.org/doc/district-council/wyre,30/12/2023,Resources,Environmental Services,132B,Daisy Communications LTD,11/12/2023,RS155033,13.87,0.00,Service Charges 01/12/23 to 31/12/23,Telephone - Buildings and Offices
Wyre Council,http://opendatacommunities.org/doc/district-council/wyre,30/12/2023,Resources,Environmental Services,132B,Daisy Communications LTD,11/12/2023,RS155033,41.61,0.00,Service Charges 01/12/23 to 31/12/23,Telephone - Buildings and Offices
Wyre Council,http://opendatacommunities.org/doc/district-council/wyre,30/12/2023,Resources,Planning and Development Servs,132C,Daisy Communications LTD,11/12/2023,RS155033,0.59,0.00,Service Charges 01/12/23 to 31/12/23,Telephone - Buildings and Offices
Wyre Council,http://opendatacommunities.org/doc/district-council/wyre,30/12/2023,Resources,Support Services,135B,Daisy Communications LTD,11/12/2023,RS155033,2.52,0.00,Service Charges 01/12/23 to 31/12/23,Telephone - Buildings and Offices
Wyre Council,http://opendatacommunities.org/doc/district-council/wyre,30/12/2023,Resources,Planning and Development Servs,132C,Daisy Communications LTD,11/12/2023,RS155033,2.52,0.00,Service Charges 01/12/23 to 31/12/23,Telephone - Buildings and Offices
Wyre Council,http://opendatacommunities.org/doc/district-council/wyre,30/12/2023,Resources,Planning and Development Servs,132C,Daisy Communications LTD,11/12/2023,RS155033,13.87,0.00,Service Charges 01/12/23 to 31/12/23,Telephone - Buildings and Offices
Wyre Council,http://opendatacommunities.org/doc/district-council/wyre,30/12/2023,Resources,Support Services,135B,Daisy Communications LTD,11/12/2023,RS155033,855.72,0.00,Service Charges 01/12/23 to 31/12/23,Telephone - Buildings and Offices
Wyre Council,http://opendatacommunities.org/doc/district-council/wyre,30/12/2023,Resources,Support Services,135B,Daisy Communications LTD,11/12/2023,RS155033,1395.09,0.00,Call Charges to 30/11/23,Telephone - Buildings and Offices
Wyre Council,http://opendatacommunities.org/doc/district-council/wyre,30/12/2023,Resources,Cultural and Related Services,132A,Daisy Communications LTD,11/12/2023,RS155033,13.87,0.00,Service Charges 01/12/23 to 31/12/23,Telephone - Buildings and Offices
Wyre Council,http://opendatacommunities.org/doc/district-council/wyre,30/12/2023,Resources,Cultural and Related Services,132A,Daisy Communications LTD,11/12/2023,RS155033,13.87,0.00,Service Charges 01/12/23 to 31/12/23,Telephone - Buildings and Offices
Wyre Council,http://opendatacommunities.org/doc/district-council/wyre,30/12/2023,Resources,Cultural and Related Services,132A,Daisy Communications LTD,11/12/2023,RS155033,14.02,0.00,Service Charges 01/12/23 to 31/12/23,Telephone - Buildings and Offices
Wyre Council,http://opendatacommunities.org/doc/district-council/wyre,30/12/2023,Resources,Cultural and Related Services,132A,Daisy Communications LTD,11/12/2023,RS155033,0.12,0.00,Call Charges to 30/11/23,Telephone - Buildings and Offices
Wyre Council,http://opendatacommunities.org/doc/district-council/wyre,30/12/2023,Resources,Cultural and Related Services,132A,Daisy Communications LTD,11/12/2023,RS155033,39.86,0.00,Service Charges 01/12/23 to 31/12/23,Telephone - Buildings and Offices
Wyre Council,http://opendatacommunities.org/doc/district-council/wyre,30/12/2023,Resources,Support Services,135B,Daisy Communications LTD,11/12/2023,RS155033,13.87,0.00,Service Charges 01/12/23 to 31/12/23,Telephone - Buildings and Offices
Wyre Council,http://opendatacommunities.org/doc/district-council/wyre,30/12/2023,Resources,Cultural and Related Services,132A,Daisy Communications LTD,11/12/2023,RS155033,27.74,0.00,Service Charges 01/12/23 to 31/12/23,Telephone - Buildings and Offices
Wyre Council,http://opendatacommunities.org/doc/district-council/wyre,30/12/2023,Resources,Cultural and Related Services,132A,Daisy Communications LTD,11/12/2023,RS155033,13.87,0.00,Service Charges 01/12/23 to 31/12/23,Telephone - Buildings and Offices
Wyre Council,http://opendatacommunities.org/doc/district-council/wyre,30/12/2023,Resources,Cultural and Related Services,132A,Daisy Communications LTD,11/12/2023,RS155033,79.43,0.00,Service Charges 01/12/23 to 31/12/23,Telephone - Buildings and Offices
Wyre Council,http://opendatacommunities.org/doc/district-council/wyre,30/12/2023,Resources,Cultural and Related Services,132A,Daisy Communications LTD,11/12/2023,RS155033,72.96,0.00,Service Charges 01/12/23 to 31/12/23,Telephone - Buildings and Offices
Wyre Council,http://opendatacommunities.org/doc/district-council/wyre,30/12/2023,Resources,Support Services,135B,PSTAX Consulting Limited,04/12/2023,RS154939,150.00,0.00,Pop Up Training 28 November VAT changes for Leisure Services: in-house and outsourcing questions ( P Jones),Training - Non HR Controlled
Wyre Council,http://opendatacommunities.org/doc/district-council/wyre,30/12/2023,People and Places,Support Services,135B,The County Tyre (Holdings) LTD,21/12/2023,PE155559,637.30,0.00,Tyres,Tyres
Wyre Council,http://opendatacommunities.org/doc/district-council/wyre,30/12/2023,Resources,Support Services,135B,Zurich Municipal,15/12/2023,RS155345,45932.12,0.00,Combined renewal invoice,Vehicle Insurance Premiums
Wyre Council,http://opendatacommunities.org/doc/district-council/wyre,30/12/2023,People and Places,Cultural and Related Services,132A,Miles Bramwell Admin Services T/A Slimming World,06/12/2023,PE154840,3150.00,0.00,Places on the wyre weight management programme with slimming world for 2023/24,Weight Management Programme
Wyre Council,http://opendatacommunities.org/doc/district-council/wyre,30/12/2023,People and Places,Cultural and Related Services,132A,Healthy Heads Education Ltd,13/12/2023,PE155277,3334.00,0.00,PASTA programme 10 and 11,Weight Management Programme
